,Directorate,Supplier Name,Supplier Invoice No,Payment Date,Gross Invoice Value,Vat Amount,Vendor Id,Purpose of Expenditure,Description,Redact flag,Year,Period
1,Community and Housing,SOUTHPARK RESIDENTIAL HOME,861020,04-Aug-22,2965.2,0,19,Older People Placements - East,321017              Social Community Care Supplies & Services - Adult,A,2022,5
2,Community and Housing,SOUTHPARK RESIDENTIAL HOME,861265,04-Aug-22,2965.2,0,19,Older People Placements - East,321017              Social Community Care Supplies & Services - Adult,A,2022,5
3,Community and Housing,SOUTHPARK RESIDENTIAL HOME,861362,04-Aug-22,2965.2,0,19,Older People Placements - East,321017              Social Community Care Supplies & Services - Adult,A,2022,5
4,Community and Housing,SOUTHPARK RESIDENTIAL HOME,871885,31-Aug-22,2965.2,0,19,Older People Placements - East,321017              Social Community Care Supplies & Services - Adult,A,2022,5
5,Community and Housing,SOUTHPARK RESIDENTIAL HOME,872126,31-Aug-22,2965.2,0,19,Older People Placements - East,321017              Social Community Care Supplies & Services - Adult,A,2022,5
6,Community and Housing,SOUTHPARK RESIDENTIAL HOME,872227,31-Aug-22,2965.2,0,19,Older People Placements - East,321017              Social Community Care Supplies & Services - Adult,A,2022,5
7,Community and Housing,POLISH CITIZENS COMMITTEE,861108,04-Aug-22,2937.76,0,71,Older People Placements - East,321017              Nursing & Residential Care Homes,A,2022,5
8,Community and Housing,POLISH CITIZENS COMMITTEE,871972,31-Aug-22,2937.76,0,71,Older People Placements - East,321017              Nursing & Residential Care Homes,A,2022,5
9,"Children, Schools and Family",MORE HOUSE SCHOOL,28686,17-Aug-22,6295,0,345,Non-Delegated Statements,170000              Education,A,2022,5
10,"Children, Schools and Family",MORE HOUSE SCHOOL,28705,17-Aug-22,6912,0,345,Non-Delegated Statements,170000              Education,A,2022,5
11,"Children, Schools and Family",MORE HOUSE SCHOOL,28711,17-Aug-22,6093,0,345,Non-Delegated Statements,170000              Education,A,2022,5
12,"Children, Schools and Family",MORE HOUSE SCHOOL,28972,17-Aug-22,6295,0,345,Non-Delegated Statements,170000              Education,A,2022,5
13,"Children, Schools and Family",MORE HOUSE SCHOOL,29007,17-Aug-22,6912,0,345,Non-Delegated Statements,170000              Education,A,2022,5
14,"Children, Schools and Family",MORE HOUSE SCHOOL,28977,26-Aug-22,6295,0,345,Non-Delegated Statements,170000              Education,A,2022,5
15,"Children, Schools and Family",MORE HOUSE SCHOOL,28960,17-Aug-22,9932,0,345,SEN Residential (DSG),170000              Education,A,2022,5
16,"Children, Schools and Family",MORE HOUSE SCHOOL,29032,26-Aug-22,9932,0,345,SEN Residential (DSG),170000              Education,A,2022,5
17,Community and Housing,ST TERESA`S HOME FOR THE ELDERLY,861127,04-Aug-22,3080,0,362,Older People Placements - East,321017              Nursing & Residential Care Homes,A,2022,5
18,Community and Housing,ST TERESA`S HOME FOR THE ELDERLY,861348,04-Aug-22,2443.16,0,362,Older People Placements - East,321017              Nursing & Residential Care Homes,A,2022,5
19,Community and Housing,ST TERESA`S HOME FOR THE ELDERLY,871988,31-Aug-22,3080,0,362,Older People Placements - East,321017              Nursing & Residential Care Homes,A,2022,5
20,Community and Housing,ST TERESA`S HOME FOR THE ELDERLY,872213,31-Aug-22,2443.16,0,362,Older People Placements - East,321017              Nursing & Residential Care Homes,A,2022,5
21,Community and Housing,THE WHITE HOUSE NURSING HOME,861343,04-Aug-22,3396,0,611,Older People Placements - East,321000              Social Community Care Supplies & Services - Adult,A,2022,5
22,Community and Housing,THE WHITE HOUSE NURSING HOME,872208,31-Aug-22,3396,0,611,Older People Placements - East,321000              Social Community Care Supplies & Services - Adult,A,2022,5
23,Corporate Services,Quadient,807646129,19-Aug-22,1505.02,0,793,Legal Shared Service,300000              Mail Services,A,2022,5
24,Unassigned,PERSEID SCHOOL,SCHOOLS 2223/5 A,08-Aug-22,553006.19,0,983,Schools,170000              Education,A,2022,5
25,Community and Housing,FAMILY STAR LTD,861366,04-Aug-22,968.04,0,1160,Older People Placements - East,321017              Nursing & Residential Care Homes,A,2022,5
26,Community and Housing,SUTTON NURSING HOMES LTD,860973,04-Aug-22,3056.44,0,1208,Older People Placements - East,321017              Nursing & Residential Care Homes,A,2022,5
27,Community and Housing,SUTTON NURSING HOMES LTD,861058,04-Aug-22,3087.16,0,1208,Older People Placements - East,321017              Nursing & Residential Care Homes,A,2022,5
28,Community and Housing,SUTTON NURSING HOMES LTD,871836,31-Aug-22,3056.44,0,1208,Older People Placements - East,321017              Nursing & Residential Care Homes,A,2022,5
29,Community and Housing,SUTTON NURSING HOMES LTD,871921,31-Aug-22,3087.16,0,1208,Older People Placements - East,321017              Nursing & Residential Care Homes,A,2022,5
30,Environment and Regeneration,LONDON BOROUGH OF CROYDON,3017799,10-Aug-22,158448.94,24891.59,1258,PARK OPERATIONS,OLA,A,2022,5
31,Capital,LONDON BOROUGH OF CROYDON,3017057,22-Aug-22,406118.4,67686.4,1258,Waste SLWP,OLA,A,2022,5
32,Corporate Services,L.B OF RICHMOND UPON THAMES,RC376792128M04D,04-Aug-22,2600,0,1353,SLLP Client Income,OLA,A,2022,5
33,Unassigned,L.B OF RICHMOND UPON THAMES,�HUD200STAN�,15-Aug-22,3660,0,1353,Corporate Services,OLA,A,2022,5
34,Unassigned,MELROSE SPECIAL SCHOOL,SCHOOLS 2223/5 A,08-Aug-22,363074.75,0,1393,Schools,170000              Education,A,2022,5
35,Unassigned,WILLIAM MORRIS PRIMARY SCHOOL,SCHOOLS 2223/5 A,08-Aug-22,146542.17,0,1416,Schools,170000              Education,A,2022,5
36,Unassigned,ST THOMAS OF CANTERBURY PRIMARY,SCHOOLS 2223/5 A,08-Aug-22,239535.1,0,1418,Schools,170000              Education,A,2022,5
37,Unassigned,PRIORY C OF E MIDDLE SCHOOL,SCHOOLS 2223/5 A,08-Aug-22,118108.69,0,1420,Schools,170000              Education,A,2022,5
38,Unassigned,LIBERTY PRIMARY SCHOOL,SCHOOLS 2223/5 A,08-Aug-22,180454.49,0,1424,Schools,170000              Education,A,2022,5
39,Unassigned,HILLCROSS PRIMARY SCHOOL,SCHOOLS 2223/5 A,08-Aug-22,217186.97,0,1425,Schools,170000              Education,A,2022,5
40,Unassigned,CRANMER PRIMARY SCHOOL,SCHOOLS 2223/5 A,08-Aug-22,352348.17,0,1426,Schools,170000              Education,A,2022,5
41,Unassigned,WIMBLEDON COLLEGE SCHOOL,SCHOOLS 2223/5 A,08-Aug-22,613406.14,0,1428,Schools,170000              Education,A,2022,5
42,Unassigned,URSULINE HIGH SCHOOL,SCHOOLS 2223/5 A,08-Aug-22,651918.84,0,1429,Schools,170000              Education,A,2022,5
43,Unassigned,RUTLISH SCHOOL,SCHOOLS 2223/5 A,08-Aug-22,705178.11,0,1431,Schools,170000              Education,A,2022,5
44,Unassigned,RICARDS LODGE SECONDARY SCHOOL,SCHOOLS 2223/5 A,08-Aug-22,638454.03,0,1433,Schools,170000              Education,A,2022,5
45,Unassigned,WIMBLEDON PARK PRIMARY SCHOOL,SCHOOLS 2223/5 A,08-Aug-22,234006.41,0,1436,Schools,170000              Education,A,2022,5
46,Unassigned,ST TERESA'S R C PRIMARY SCHOOL,SCHOOLS 2223/5 A,08-Aug-22,257544.79,0,1438,Schools,170000              Education,A,2022,5
47,Unassigned,ST MARYS CATHOLIC PRIMARY SCHOOL,SCHOOLS 2223/5 A,08-Aug-22,179199.48,0,1439,Schools,170000              Education,A,2022,5
48,Unassigned,ST MARKS PRIMARY SCHOOL,SCHOOLS 2223/5 A,08-Aug-22,113285.31,0,1440,Schools,170000              Education,A,2022,5
49,Unassigned,ST JOHN FISHER RC PRIMARY SCH.,SCHOOLS 2223/5 A,08-Aug-22,147793.98,0,1441,Schools,170000              Education,A,2022,5
50,Unassigned,SINGLEGATE PRIMARY SCHOOL,SCHOOLS 2223/5 A,08-Aug-22,239190.46,0,1442,Schools,170000              Education,A,2022,5
51,Unassigned,SHERWOOD PRIMARY SCHOOL,SCHOOLS 2223/5 A,08-Aug-22,158646.3,0,1443,Schools,170000              Education,A,2022,5
52,Unassigned,POPLAR PRIMARY SCHOOL,SCHOOLS 2223/5 A,08-Aug-22,272687.21,0,1444,Schools,170000              Education,A,2022,5
53,Unassigned,PELHAM PRIMARY SCHOOL,SCHOOLS 2223/5 A,08-Aug-22,179892.57,0,1445,Schools,170000              Education,A,2022,5
54,Unassigned,MORDEN PRIMARY SCHOOL,SCHOOLS 2223/5 A,08-Aug-22,120555.25,0,1446,Schools,170000              Education,A,2022,5
55,Unassigned,MERTON PARK PRIMARY SCHOOL,SCHOOLS 2223/5 A,08-Aug-22,100000.92,0,1447,Schools,170000              Education,A,2022,5
56,Unassigned,MERTON ABBEY PRIMARY SCHOOL,SCHOOLS 2223/5 A,08-Aug-22,114970.03,0,1448,Schools,170000              Education,A,2022,5
57,Unassigned,LONESOME PRIMARY SCHOOL,SCHOOLS 2223/5 A,08-Aug-22,186299.31,0,1450,Schools,170000              Education,A,2022,5
58,Unassigned,LINKS PRIMARY SCHOOL,SCHOOLS 2223/5 A,08-Aug-22,188921.39,0,1451,Schools,170000              Education,A,2022,5
59,"Children, Schools and Family",LINKS PRIMARY SCHOOL,HAFSUM22-P2,23-Aug-22,2630,0,1451,Holiday Act Food Prog grntfnd,170000              Education,A,2022,5
60,Unassigned,JOSEPH HOOD PRIMARY SCHOOL,SCHOOLS 2223/5 A,08-Aug-22,158547.05,0,1452,Schools,170000              Education,A,2022,5
61,Unassigned,HOLY TRINITY C OF E PRIMARY SCHOOL,SCHOOLS 2223/5 A,08-Aug-22,159028.72,0,1453,Schools,170000              Education,A,2022,5
62,Unassigned,HOLLYMOUNT PRIMARY SCHOOL,SCHOOLS 2223/5 A,08-Aug-22,176343.73,0,1454,Schools,170000              Education,A,2022,5
63,Unassigned,HATFEILD PRIMARY SCHOOL,SCHOOLS 2223/5 A,08-Aug-22,198400.92,0,1455,Schools,170000              Education,A,2022,5
64,Unassigned,HASLEMERE PRIMARY SCHOOL,SCHOOLS 2223/5 A,08-Aug-22,241460.4,0,1456,Schools,170000              Education,A,2022,5
65,Unassigned,GARFIELD PRIMARY SCHOOL,SCHOOLS 2223/5 A,08-Aug-22,149757.12,0,1460,Schools,170000              Education,A,2022,5
66,Unassigned,BOND PRIMARY SCHOOL,SCHOOLS 2223/5 A,08-Aug-22,196723.9,0,1462,Schools,170000              Education,A,2022,5
67,Unassigned,BISHOP GILPIN C OF E PRIMARY,SCHOOLS 2223/5 A,08-Aug-22,173368.28,0,1463,Schools,170000              Education,A,2022,5
68,Unassigned,ABBOTSBURY PRIMARY SCHOOL,SCHOOLS 2223/5 A,08-Aug-22,172999.35,0,1467,Schools,170000              Education,A,2022,5
69,Unassigned,WIMBLEDON CHASE PRIMARY SCHOOL,SCHOOLS 2223/5 A,08-Aug-22,279839.56,0,1469,Schools,170000              Education,A,2022,5
70,Unassigned,GORRINGE PARK PRIMARY SCHOOL,SCHOOLS 2223/5 A,08-Aug-22,200502.27,0,1470,Schools,170000              Education,A,2022,5
71,Unassigned,RAYNES PARK SECONDARY SCHOOL,SCHOOLS 2223/5 A,08-Aug-22,631624.97,0,1471,Schools,170000              Education,A,2022,5
72,Unassigned,SS PETER AND PAUL RC PRIMARY SCH,SCHOOLS 2223/5 A,08-Aug-22,152044.98,0,1472,Schools,170000              Education,A,2022,5
73,Unassigned,DUNDONALD PRIMARY SCHOOL,SCHOOLS 2223/5 A,08-Aug-22,190641.13,0,1473,Schools,170000              Education,A,2022,5
74,Unassigned,ALL SAINTS C OF E PRIMARY SCH,SCHOOLS 2223/5 A,08-Aug-22,173892.22,0,1680,Schools,170000              Education,A,2022,5
75,"Children, Schools and Family",REDACTED PERSONAL DATA,862461,05-Aug-22,514.75,0,1801,Placements Under 18,321100              Social Community Care Supplies & Services - Children,R,2022,5
76,"Children, Schools and Family",REDACTED PERSONAL DATA,864922,12-Aug-22,514.75,0,1801,Placements Under 18,321100              Social Community Care Supplies & Services - Children,R,2022,5
77,"Children, Schools and Family",REDACTED PERSONAL DATA,869356,19-Aug-22,514.75,0,1801,Placements Under 18,321100              Social Community Care Supplies & Services - Children,R,2022,5
78,"Children, Schools and Family",REDACTED PERSONAL DATA,872611,26-Aug-22,514.75,0,1801,Placements Under 18,321100              Social Community Care Supplies & Services - Children,R,2022,5
79,Corporate Services,CIVICA UK LIMITED,C/BN248478,25-Aug-22,8928.68,1488.11,1873,Benefits Administration,270000              Information Communication Technology,A,2022,5
80,Corporate Services,CIVICA UK LIMITED,C/BN249342,26-Aug-22,824.83,137.47,1873,Local Taxation Services,270000              Information Communication Technology,A,2022,5
81,Corporate Services,CIVICA UK LIMITED,C/BN249567,30-Aug-22,3920.56,653.43,1873,Benefits Administration,270000              Information Communication Technology,A,2022,5
82,Corporate Services,CIVICA UK LIMITED,C/BN249566,30-Aug-22,1377.94,229.66,1873,Local Taxation Services,270000              Information Communication Technology,A,2022,5
83,Corporate Services,CIVICA UK LIMITED,C/RB249595,30-Aug-22,900,150,1873,Benefits Administration,270000              Information Communication Technology,A,2022,5
84,Corporate Services,CIVICA UK LIMITED,C/RB249596,30-Aug-22,2100,350,1873,Benefits Administration,270000              Information Communication Technology,A,2022,5
85,"Children, Schools and Family",THE CHILDRENS TRUST,4582,15-Aug-22,7805.18,0,1980,Non-Delegated Statements,170000              Education,A,2022,5
86,"Children, Schools and Family",THE CHILDRENS TRUST,4583,15-Aug-22,3237.33,0,1980,Non-Delegated Statements,170000              Education,A,2022,5
87,"Children, Schools and Family",THE CHILDRENS TRUST,4584,15-Aug-22,6149.78,0,1980,Non-Delegated Statements,170000              Education,A,2022,5
88,Community and Housing,THE FRANCES TAYLOR FOUNDATION,861043,04-Aug-22,3812.04,0,2011,Learning Disabilities Placemnt,321017              Nursing & Residential Care Homes,A,2022,5
89,Community and Housing,THE FRANCES TAYLOR FOUNDATION,871907,31-Aug-22,3812.04,0,2011,Learning Disabilities Placemnt,321017              Nursing & Residential Care Homes,A,2022,5
90,Unassigned,SACRED HEART R C PRIMARY SCH.,SCHOOLS 2223/5 A,08-Aug-22,115991.73,0,2076,Schools,170000              Education,A,2022,5
91,Community and Housing,GENEVA ROAD LIMITED,310722JW,19-Aug-22,721.01,120.17,2198,Older People Placements - East,321000              Social Community Care Supplies & Services - Adult,A,2022,5
92,Community and Housing,LONDON BOROUGH OF SUTTON,3190427384,19-Aug-22,43499.28,0,2313,Com Care Placement Contingency,OLA,A,2022,5
93,Corporate Services,GREENHAM TRADING LTD,07/470260,23-Aug-22,1758.72,293.12,2445,Corporate Contracts - FM,130000              Cleaning & Janitorial,A,2022,5
94,Community and Housing,FREEWAYS TRUST LTD,860954,04-Aug-22,3229.2,0,2474,Learning Disabilities Placemnt,321017              Nursing & Residential Care Homes,A,2022,5
95,Community and Housing,FREEWAYS TRUST LTD,871817,31-Aug-22,3229.2,0,2474,Learning Disabilities Placemnt,321017              Nursing & Residential Care Homes,A,2022,5
96,Unassigned,WIMBLEDON AND PUTNEY COMMON,2.02208E+11,01-Aug-22,37623.1,0,10566,WPCC,PRECEPT,A,2022,5
97,Unassigned,WIMBLEDON AND PUTNEY COMMON,2.02208E+11,31-Aug-22,37623.1,0,10566,WPCC,PRECEPT,A,2022,5
98,Environment and Regeneration,FREIGHT TRANSPORT ASSOCIATION,300347298,30-Aug-22,1500,250,10681,Transport-Contract Hire,380000              Vehicle Management,A,2022,5
99,Community and Housing,CLOYDA LTD,861392,02-Aug-22,2739.43,0,10762,Older People Placements - East,321017              Nursing & Residential Care Homes,A,2022,5
100,Community and Housing,CLOYDA LTD,860991,04-Aug-22,570.71,0,10762,Older People Placements - East,321017              Nursing & Residential Care Homes,A,2022,5
101,Community and Housing,CLOYDA LTD,861221,04-Aug-22,3294.48,0,10762,Older People Placements - East,321017              Nursing & Residential Care Homes,A,2022,5
102,Community and Housing,CLOYDA LTD,872081,31-Aug-22,3294.48,0,10762,Older People Placements - East,321017              Nursing & Residential Care Homes,A,2022,5
103,Community and Housing,CHEGWORTH N.H. (BAYSWIFT LTD),861179,04-Aug-22,3056.4,0,11057,Learning Disabilities Placemnt,321000              Social Community Care Supplies & Services - Adult,A,2022,5
104,Community and Housing,CHEGWORTH N.H. (BAYSWIFT LTD),872041,31-Aug-22,3056.4,0,11057,Learning Disabilities Placemnt,321000              Social Community Care Supplies & Services - Adult,A,2022,5
105,"Children, Schools and Family",REDACTED PERSONAL DATA,862411,05-Aug-22,580.36,0,11130,Placements Under 18,321100              Social Community Care Supplies & Services - Children,R,2022,5
106,"Children, Schools and Family",REDACTED PERSONAL DATA,864874,12-Aug-22,580.36,0,11130,Placements Under 18,321100              Social Community Care Supplies & Services - Children,R,2022,5
107,"Children, Schools and Family",REDACTED PERSONAL DATA,869304,19-Aug-22,580.36,0,11130,Placements Under 18,321100              Social Community Care Supplies & Services - Children,R,2022,5
108,"Children, Schools and Family",REDACTED PERSONAL DATA,872562,26-Aug-22,580.36,0,11130,Placements Under 18,321100              Social Community Care Supplies & Services - Children,R,2022,5
109,Environment and Regeneration,CIPFA,3165280,16-Aug-22,1350,225,13055,Property Mgt & Review,200000              Financial Services,A,2022,5
110,Community and Housing,ASHCROFT CARE SERVICES,861178,04-Aug-22,6161.24,0,13287,Learning Disabilities Placemnt,321017              Nursing & Residential Care Homes,A,2022,5
111,Community and Housing,ASHCROFT CARE SERVICES,872040,31-Aug-22,6161.24,0,13287,Learning Disabilities Placemnt,321017              Nursing & Residential Care Homes,A,2022,5
112,Community and Housing,SHARE COMMUNITY LTD,230517,04-Aug-22,1050.6,0,13487,Learning Disabilities Placemnt,321017              Nursing & Residential Care Homes,A,2022,5
113,Community and Housing,SHARE COMMUNITY LTD,230496,04-Aug-22,975,0,13487,Learning Disabilities Placemnt,321017              Nursing & Residential Care Homes,A,2022,5
114,Community and Housing,SHARE COMMUNITY LTD,230491,04-Aug-22,669.5,0,13487,Learning Disabilities Placemnt,321017              Nursing & Residential Care Homes,A,2022,5
115,Community and Housing,SHARE COMMUNITY LTD,230482,12-Aug-22,700.4,0,13487,Learning Disabilities Placemnt,321017              Nursing & Residential Care Homes,A,2022,5
116,Community and Housing,SHARE COMMUNITY LTD,230485,12-Aug-22,918.15,0,13487,Learning Disabilities Placemnt,321017              Nursing & Residential Care Homes,A,2022,5
117,Community and Housing,SHARE COMMUNITY LTD,230500,12-Aug-22,1300,0,13487,Learning Disabilities Placemnt,321017              Nursing & Residential Care Homes,A,2022,5
118,"Children, Schools and Family",SHARE COMMUNITY LTD,230499,15-Aug-22,680,0,13487,Non-Delegated Statements,321017              Nursing & Residential Care Homes,A,2022,5
119,Community and Housing,SHARE COMMUNITY LTD,230663,31-Aug-22,840.48,0,13487,Learning Disabilities Placemnt,321017              Nursing & Residential Care Homes,A,2022,5
120,Community and Housing,SHARE COMMUNITY LTD,230646,31-Aug-22,1040,0,13487,Learning Disabilities Placemnt,321017              Nursing & Residential Care Homes,A,2022,5
121,Community and Housing,FITZROY SUPPORT,861289,04-Aug-22,8304.28,0,13535,Learning Disabilities Placemnt,321017              Nursing & Residential Care Homes,A,2022,5
122,Community and Housing,FITZROY SUPPORT,872152,31-Aug-22,8304.28,0,13535,Learning Disabilities Placemnt,321017              Nursing & Residential Care Homes,A,2022,5
123,Community and Housing,CANTERBURY OAST TRUST LTD,860966,04-Aug-22,2541.24,0,13566,Learning Disabilities Placemnt,321017              Nursing & Residential Care Homes,A,2022,5
124,Community and Housing,CANTERBURY OAST TRUST LTD,871828,31-Aug-22,2541.24,0,13566,Learning Disabilities Placemnt,321017              Nursing & Residential Care Homes,A,2022,5
125,Community and Housing,MACINTYRE,860978,04-Aug-22,5776,0,13585,Learning Disabilities Placemnt,321017              Nursing & Residential Care Homes,A,2022,5
126,Community and Housing,MACINTYRE,861154,04-Aug-22,5641.36,0,13585,Learning Disabilities Placemnt,321017              Nursing & Residential Care Homes,A,2022,5
127,Community and Housing,MACINTYRE,861257,04-Aug-22,5641.36,0,13585,Older People Placements - East,321017              Nursing & Residential Care Homes,A,2022,5
128,Community and Housing,MACINTYRE,861286,04-Aug-22,4825.24,0,13585,Learning Disabilities Placemnt,321017              Nursing & Residential Care Homes,A,2022,5
129,Community and Housing,MACINTYRE,871842,31-Aug-22,5776,0,13585,Learning Disabilities Placemnt,321017              Nursing & Residential Care Homes,A,2022,5
130,Community and Housing,MACINTYRE,872014,31-Aug-22,5641.36,0,13585,Learning Disabilities Placemnt,321017              Nursing & Residential Care Homes,A,2022,5
131,Community and Housing,MACINTYRE,872118,31-Aug-22,5641.36,0,13585,Older People Placements - East,321017              Nursing & Residential Care Homes,A,2022,5
132,Community and Housing,MACINTYRE,872150,31-Aug-22,4825.24,0,13585,Learning Disabilities Placemnt,321017              Nursing & Residential Care Homes,A,2022,5
133,Community and Housing,KENT AUTISTIC TRUST,861266,04-Aug-22,7494.72,0,13670,Learning Disabilities Placemnt,321017              Nursing & Residential Care Homes,A,2022,5
134,Community and Housing,KENT AUTISTIC TRUST,872127,31-Aug-22,7494.72,0,13670,Learning Disabilities Placemnt,321017              Nursing & Residential Care Homes,A,2022,5
135,Community and Housing,WANDLE HOUSING ASSOCIATION LTD,JANE THISTLEWHIT,19-Aug-22,5000,0,14419,Homelessness Prevention,250000              Housing Management,A,2022,5
136,Community and Housing,WANDLE HOUSING ASSOCIATION LTD,SIN10007,30-Aug-22,1609.92,268.32,14419,Riverside Res Home,250000              Housing Management,A,2022,5
137,Community and Housing,UNITED RESPONSE,VSMR781312BA,22-Aug-22,4837.78,806.3,14616,Learning Disabilities Placemnt,321000              Social Community Care Supplies & Services - Adult,A,2022,5
138,Community and Housing,UNITED RESPONSE,VSMR781312BO,22-Aug-22,4837.78,806.3,14616,Learning Disabilities Placemnt,321000              Social Community Care Supplies & Services - Adult,A,2022,5
139,Community and Housing,UNITED RESPONSE,VSMR781312ST,22-Aug-22,4837.78,806.3,14616,Learning Disabilities Placemnt,321000              Social Community Care Supplies & Services - Adult,A,2022,5
140,Community and Housing,UNITED RESPONSE,VSMR781312SV,22-Aug-22,4837.78,806.3,14616,Learning Disabilities Placemnt,321000              Social Community Care Supplies & Services - Adult,A,2022,5
141,Community and Housing,UNITED RESPONSE,VSMR781312RW,22-Aug-22,4837.78,806.3,14616,Learning Disabilities Placemnt,321000              Social Community Care Supplies & Services - Adult,A,2022,5
142,Corporate Services,KINGSTON CORPORATION,M04LEGAL22/23',10-Aug-22,8590,0,21573,SLLP Client Income,180000              Environmental Services,A,2022,5
143,Environment and Regeneration,KINGSTON CORPORATION,37360452,15-Aug-22,10395.57,1732.59,21573,Waste Disposal,180000              Environmental Services,A,2022,5
144,Unassigned,KINGSTON CORPORATION,17EFFINGHAMHS,15-Aug-22,5037,0,21573,Corporate Services,180000              Environmental Services,A,2022,5
145,Environment and Regeneration,KINGSTON CORPORATION,37360258,19-Aug-22,38142.25,6357.04,21573,Garden Waste Service,180000              Environmental Services,A,2022,5
146,Environment and Regeneration,KINGSTON CORPORATION,37360240,19-Aug-22,27512.86,4585.47,21573,Garden Waste Service,180000              Environmental Services,A,2022,5
147,Unassigned, GREATER LONDON AUTHORITY (LPFA),2.02208E+11,01-Aug-22,25430.2,0,21763,London Pens Fund Auth,PRECEPT,A,2022,5
148,Corporate Services,I J BEIM AND ASSOCIATES LTD,12290,22-Aug-22,640.8,106.8,24949,SLLP - Disbursements,280000              Legal Services,A,2022,5
149,Corporate Services,I J BEIM AND ASSOCIATES LTD,12254,12-Aug-22,649.8,108.3,24949,SLLP - Disbursements,280000              Legal Services,A,2022,5
150,Corporate Services,I J BEIM AND ASSOCIATES LTD,12327,31-Aug-22,604.92,100.82,24949,SLLP - Disbursements,280000              Legal Services,A,2022,5
151,Community and Housing,TRINITY COURT NURSING HOME,861389,02-Aug-22,2188.02,0,30306,Older People Placements - East,321017              Nursing & Residential Care Homes,A,2022,5
152,Community and Housing,TRINITY COURT NURSING HOME,861390,02-Aug-22,547.01,0,30306,Older People Placements - East,321017              Nursing & Residential Care Homes,A,2022,5
153,Community and Housing,TRINITY COURT NURSING HOME,861016,04-Aug-22,2861.6,0,30306,Older People Placements - East,321017              Nursing & Residential Care Homes,A,2022,5
154,Community and Housing,TRINITY COURT NURSING HOME,861101,04-Aug-22,1750.42,0,30306,Older People Placements - East,321017              Nursing & Residential Care Homes,A,2022,5
155,Community and Housing,TRINITY COURT NURSING HOME,861113,04-Aug-22,547.01,0,30306,Older People Placements - East,321017              Nursing & Residential Care Homes,A,2022,5
156,Community and Housing,TRINITY COURT NURSING HOME,861155,04-Aug-22,2985.6,0,30306,Older People Placements - East,321017              Nursing & Residential Care Homes,A,2022,5
157,Community and Housing,TRINITY COURT NURSING HOME,861199,04-Aug-22,3313.84,0,30306,Phys/Sens Placements - East,321017              Nursing & Residential Care Homes,A,2022,5
158,Community and Housing,TRINITY COURT NURSING HOME,861203,04-Aug-22,3149.6,0,30306,Phys/Sens Placements - East,321017              Nursing & Residential Care Homes,A,2022,5
159,Community and Housing,TRINITY COURT NURSING HOME,861222,04-Aug-22,3135.72,0,30306,Older People Placements - East,321017              Nursing & Residential Care Homes,A,2022,5
160,Community and Housing,TRINITY COURT NURSING HOME,861264,04-Aug-22,2985.6,0,30306,Older People Placements - East,321017              Nursing & Residential Care Homes,A,2022,5
161,Community and Housing,TRINITY COURT NURSING HOME,861271,04-Aug-22,2861.6,0,30306,Older People Placements - East,321017              Nursing & Residential Care Homes,A,2022,5
162,Community and Housing,TRINITY COURT NURSING HOME,861280,04-Aug-22,3063.24,0,30306,Older People Placements - East,321017              Nursing & Residential Care Homes,A,2022,5
163,Community and Housing,TRINITY COURT NURSING HOME,861338,04-Aug-22,2985.6,0,30306,Older People Placements - East,321017              Nursing & Residential Care Homes,A,2022,5
164,Community and Housing,TRINITY COURT NURSING HOME,861367,04-Aug-22,2876.32,0,30306,Older People Placements - East,321017              Nursing & Residential Care Homes,A,2022,5
165,Community and Housing,TRINITY COURT NURSING HOME,861368,04-Aug-22,3149.6,0,30306,Older People Placements - East,321017              Nursing & Residential Care Homes,A,2022,5
166,Community and Housing,TRINITY COURT NURSING HOME,861370,04-Aug-22,2521.12,0,30306,Older People Placements - East,321017              Nursing & Residential Care Homes,A,2022,5
167,Community and Housing,TRINITY COURT NURSING HOME,866173,16-Aug-22,1312.82,0,30306,Older People Placements - East,321017              Nursing & Residential Care Homes,A,2022,5
168,Community and Housing,TRINITY COURT NURSING HOME,866182,16-Aug-22,2516.25,0,30306,Older People Placements - East,321017              Nursing & Residential Care Homes,A,2022,5
169,Community and Housing,TRINITY COURT NURSING HOME,871881,31-Aug-22,2861.6,0,30306,Older People Placements - East,321017              Nursing & Residential Care Homes,A,2022,5
170,Community and Housing,TRINITY COURT NURSING HOME,872015,31-Aug-22,2985.6,0,30306,Older People Placements - East,321017              Nursing & Residential Care Homes,A,2022,5
171,Community and Housing,TRINITY COURT NURSING HOME,872047,31-Aug-22,3063.24,0,30306,Older People Placements - East,321017              Nursing & Residential Care Homes,A,2022,5
172,Community and Housing,TRINITY COURT NURSING HOME,872061,31-Aug-22,3313.84,0,30306,Phys/Sens Placements - East,321017              Nursing & Residential Care Homes,A,2022,5
173,Community and Housing,TRINITY COURT NURSING HOME,872066,31-Aug-22,3149.6,0,30306,Phys/Sens Placements - East,321017              Nursing & Residential Care Homes,A,2022,5
174,Community and Housing,TRINITY COURT NURSING HOME,872083,31-Aug-22,3135.72,0,30306,Older People Placements - East,321017              Nursing & Residential Care Homes,A,2022,5
175,Community and Housing,TRINITY COURT NURSING HOME,872125,31-Aug-22,2985.6,0,30306,Older People Placements - East,321017              Nursing & Residential Care Homes,A,2022,5
176,Community and Housing,TRINITY COURT NURSING HOME,872132,31-Aug-22,2861.6,0,30306,Older People Placements - East,321017              Nursing & Residential Care Homes,A,2022,5
177,Community and Housing,TRINITY COURT NURSING HOME,872142,31-Aug-22,3063.24,0,30306,Older People Placements - East,321017              Nursing & Residential Care Homes,A,2022,5
178,Community and Housing,TRINITY COURT NURSING HOME,872203,31-Aug-22,2985.6,0,30306,Older People Placements - East,321017              Nursing & Residential Care Homes,A,2022,5
179,Community and Housing,TRINITY COURT NURSING HOME,872231,31-Aug-22,2876.32,0,30306,Older People Placements - East,321017              Nursing & Residential Care Homes,A,2022,5
180,Community and Housing,TRINITY COURT NURSING HOME,872232,31-Aug-22,3149.6,0,30306,Older People Placements - East,321017              Nursing & Residential Care Homes,A,2022,5
181,Community and Housing,TRINITY COURT NURSING HOME,872234,31-Aug-22,2521.12,0,30306,Older People Placements - East,321017              Nursing & Residential Care Homes,A,2022,5
182,Community and Housing,HAYDON PARK LODGE,860972,04-Aug-22,4680,0,31434,Learning Disabilities Placemnt,321017              Nursing & Residential Care Homes,A,2022,5
183,Community and Housing,HAYDON PARK LODGE,861106,04-Aug-22,3485,0,31434,Learning Disabilities Placemnt,321017              Nursing & Residential Care Homes,A,2022,5
184,Community and Housing,HAYDON PARK LODGE,861135,04-Aug-22,4591.44,0,31434,Learning Disabilities Placemnt,321017              Nursing & Residential Care Homes,A,2022,5
185,Community and Housing,HAYDON PARK LODGE,861207,04-Aug-22,5070.76,0,31434,Learning Disabilities Placemnt,321017              Nursing & Residential Care Homes,A,2022,5
186,Community and Housing,HAYDON PARK LODGE,861213,04-Aug-22,6911.12,0,31434,Learning Disabilities Placemnt,321017              Nursing & Residential Care Homes,A,2022,5
187,Community and Housing,HAYDON PARK LODGE,861253,04-Aug-22,4420.08,0,31434,Learning Disabilities Placemnt,321017              Nursing & Residential Care Homes,A,2022,5
188,Community and Housing,HAYDON PARK LODGE,871835,31-Aug-22,4680,0,31434,Learning Disabilities Placemnt,321017              Nursing & Residential Care Homes,A,2022,5
189,Community and Housing,HAYDON PARK LODGE,871970,31-Aug-22,3485,0,31434,Learning Disabilities Placemnt,321017              Nursing & Residential Care Homes,A,2022,5
190,Community and Housing,HAYDON PARK LODGE,871995,31-Aug-22,4591.44,0,31434,Learning Disabilities Placemnt,321017              Nursing & Residential Care Homes,A,2022,5
191,Community and Housing,HAYDON PARK LODGE,872069,31-Aug-22,5070.76,0,31434,Learning Disabilities Placemnt,321017              Nursing & Residential Care Homes,A,2022,5
192,Community and Housing,HAYDON PARK LODGE,872114,31-Aug-22,4420.08,0,31434,Learning Disabilities Placemnt,321017              Nursing & Residential Care Homes,A,2022,5
193,Community and Housing,COMFORT CARE SERVICES (UK) LTD,SU0201/1226,12-Aug-22,2380,0,34932,Mental Health Placements,321000              Social Community Care Supplies & Services - Adult,A,2022,5
194,Community and Housing,COMFORT CARE SERVICES (UK) LTD,SU0201/1262,12-Aug-22,2380,0,34932,Mental Health Placements,321000              Social Community Care Supplies & Services - Adult,A,2022,5
195,Community and Housing,COMFORT CARE SERVICES (UK) LTD,SU0184/820,12-Aug-22,2380,0,34932,Mental Health Placements,321000              Social Community Care Supplies & Services - Adult,A,2022,5
196,Community and Housing,COMFORT CARE SERVICES (UK) LTD,SU0184/789,12-Aug-22,2380,0,34932,Mental Health Placements,321000              Social Community Care Supplies & Services - Adult,A,2022,5
197,Community and Housing,COMFORT CARE SERVICES (UK) LTD,SU0184/760,12-Aug-22,2380,0,34932,Mental Health Placements,321000              Social Community Care Supplies & Services - Adult,A,2022,5
198,Community and Housing,COMFORT CARE SERVICES (UK) LTD,SU0146/1261,12-Aug-22,2380,0,34932,Mental Health Placements,321000              Social Community Care Supplies & Services - Adult,A,2022,5
199,Community and Housing,COMFORT CARE SERVICES (UK) LTD,SU0146/1201,12-Aug-22,2380,0,34932,Mental Health Placements,321000              Social Community Care Supplies & Services - Adult,A,2022,5
200,Community and Housing,COMFORT CARE SERVICES (UK) LTD,SU0146/1225,12-Aug-22,2380,0,34932,Mental Health Placements,321000              Social Community Care Supplies & Services - Adult,A,2022,5
201,Community and Housing,COMFORT CARE SERVICES (UK) LTD,SU0133/991,12-Aug-22,2380,0,34932,Mental Health Placements,321000              Social Community Care Supplies & Services - Adult,A,2022,5
202,Community and Housing,COMFORT CARE SERVICES (UK) LTD,SU0133/967,12-Aug-22,2380,0,34932,Mental Health Placements,321000              Social Community Care Supplies & Services - Adult,A,2022,5
203,Community and Housing,COMFORT CARE SERVICES (UK) LTD,SU0133/950,12-Aug-22,2380,0,34932,Mental Health Placements,321000              Social Community Care Supplies & Services - Adult,A,2022,5
204,Community and Housing,COMFORT CARE SERVICES (UK) LTD,SU0091/260,12-Aug-22,871.36,0,34932,Mental Health Placements,321000              Social Community Care Supplies & Services - Adult,A,2022,5
205,Community and Housing,COMFORT CARE SERVICES (UK) LTD,SU0184/844,23-Aug-22,2380,0,34932,Mental Health Placements,321000              Social Community Care Supplies & Services - Adult,A,2022,5
206,Community and Housing,COMFORT CARE SERVICES (UK) LTD,SU0298/845,23-Aug-22,2380,0,34932,Mental Health Placements,321000              Social Community Care Supplies & Services - Adult,A,2022,5
207,Community and Housing,COMFORT CARE SERVICES (UK) LTD,SU0133/1003,23-Aug-22,2380,0,34932,Mental Health Placements,321000              Social Community Care Supplies & Services - Adult,A,2022,5
208,Community and Housing,COMFORT CARE SERVICES (UK) LTD,SU0210/1004,23-Aug-22,2380,0,34932,Mental Health Placements,321000              Social Community Care Supplies & Services - Adult,A,2022,5
209,Community and Housing,COMFORT CARE SERVICES (UK) LTD,SU0291/1005,23-Aug-22,2380,0,34932,Mental Health Placements,321000              Social Community Care Supplies & Services - Adult,A,2022,5
210,Community and Housing,COMFORT CARE SERVICES (UK) LTD,SU0146/1279,23-Aug-22,2380,0,34932,Mental Health Placements,321000              Social Community Care Supplies & Services - Adult,A,2022,5
211,Community and Housing,COMFORT CARE SERVICES (UK) LTD,SU0201/1280,23-Aug-22,2380,0,34932,Mental Health Placements,321000              Social Community Care Supplies & Services - Adult,A,2022,5
212,Community and Housing,COMFORT CARE SERVICES (UK) LTD,SU0208/1392,23-Aug-22,2380,0,34932,Mental Health Placements,321000              Social Community Care Supplies & Services - Adult,A,2022,5
213,Community and Housing,COMFORT CARE SERVICES (UK) LTD,SU0294/1380,23-Aug-22,2380,0,34932,Mental Health Placements,321000              Social Community Care Supplies & Services - Adult,A,2022,5
214,Community and Housing,COMFORT CARE SERVICES (UK) LTD,SU0208/1373,12-Aug-22,2380,0,34932,Mental Health Placements,321000              Social Community Care Supplies & Services - Adult,A,2022,5
215,Community and Housing,COMFORT CARE SERVICES (UK) LTD,SU0294/1359,12-Aug-22,2380,0,34932,Mental Health Placements,321000              Social Community Care Supplies & Services - Adult,A,2022,5
216,Community and Housing,COMFORT CARE SERVICES (UK) LTD,SU0208/1335,12-Aug-22,2380,0,34932,Mental Health Placements,321000              Social Community Care Supplies & Services - Adult,A,2022,5
217,Community and Housing,COMFORT CARE SERVICES (UK) LTD,SU0266/1326,12-Aug-22,2380,0,34932,Mental Health Placements,321000              Social Community Care Supplies & Services - Adult,A,2022,5
218,Community and Housing,COMFORT CARE SERVICES (UK) LTD,SU0294/1317,12-Aug-22,2380,0,34932,Mental Health Placements,321000              Social Community Care Supplies & Services - Adult,A,2022,5
219,Community and Housing,COMFORT CARE SERVICES (UK) LTD,SU0208/1307,12-Aug-22,2380,0,34932,Mental Health Placements,321000              Social Community Care Supplies & Services - Adult,A,2022,5
220,Community and Housing,COMFORT CARE SERVICES (UK) LTD,SU0266/1292,12-Aug-22,2380,0,34932,Mental Health Placements,321000              Social Community Care Supplies & Services - Adult,A,2022,5
221,Community and Housing,COMFORT CARE SERVICES (UK) LTD,SU0294/1284,12-Aug-22,2380,0,34932,Mental Health Placements,321000              Social Community Care Supplies & Services - Adult,A,2022,5
222,Community and Housing,COMFORT CARE SERVICES (UK) LTD,SU0298/761,12-Aug-22,2380,0,34932,Mental Health Placements,321000              Social Community Care Supplies & Services - Adult,A,2022,5
223,Community and Housing,COMFORT CARE SERVICES (UK) LTD,SU0266/1271,12-Aug-22,2380,0,34932,Mental Health Placements,321000              Social Community Care Supplies & Services - Adult,A,2022,5
224,Community and Housing,COMFORT CARE SERVICES (UK) LTD,SU0266/1234,12-Aug-22,2380,0,34932,Mental Health Placements,321000              Social Community Care Supplies & Services - Adult,A,2022,5
225,Community and Housing,COMFORT CARE SERVICES (UK) LTD,SU0210/992,12-Aug-22,2380,0,34932,Mental Health Placements,321000              Social Community Care Supplies & Services - Adult,A,2022,5
226,Community and Housing,COMFORT CARE SERVICES (UK) LTD,SU0291/993,12-Aug-22,2380,0,34932,Mental Health Placements,321000              Social Community Care Supplies & Services - Adult,A,2022,5
227,Community and Housing,COMFORT CARE SERVICES (UK) LTD,SU0291/952,12-Aug-22,2380,0,34932,Mental Health Placements,321000              Social Community Care Supplies & Services - Adult,A,2022,5
228,Community and Housing,COMFORT CARE SERVICES (UK) LTD,SU0291/969,12-Aug-22,2380,0,34932,Mental Health Placements,321000              Social Community Care Supplies & Services - Adult,A,2022,5
229,Community and Housing,COMFORT CARE SERVICES (UK) LTD,SU0210/968,12-Aug-22,2380,0,34932,Mental Health Placements,321000              Social Community Care Supplies & Services - Adult,A,2022,5
230,Community and Housing,COMFORT CARE SERVICES (UK) LTD,SU0210/951,12-Aug-22,2380,0,34932,Mental Health Placements,321000              Social Community Care Supplies & Services - Adult,A,2022,5
231,Community and Housing,COMFORT CARE SERVICES (UK) LTD,SU0298/790,12-Aug-22,2380,0,34932,Mental Health Placements,321000              Social Community Care Supplies & Services - Adult,A,2022,5
232,Community and Housing,COMFORT CARE SERVICES (UK) LTD,SU0298/821,12-Aug-22,2380,0,34932,Mental Health Placements,321000              Social Community Care Supplies & Services - Adult,A,2022,5
233,Community and Housing,COMFORT CARE SERVICES (UK) LTD,SU0201/1202,19-Aug-22,2380,0,34932,Mental Health Placements,321000              Social Community Care Supplies & Services - Adult,A,2022,5
234,Community and Housing,COMFORT CARE SERVICES (UK) LTD,SU1041/756,24-Aug-22,1632.15,0,34932,Mental Health Placements,321000              Social Community Care Supplies & Services - Adult,A,2022,5
235,Unassigned,ST MATTHEW'S C OF E PRIMARY,SCHOOLS 2223/5 A,08-Aug-22,95483.57,0,36050,Schools,170000              Education,A,2022,5
236,"Children, Schools and Family",REDACTED PERSONAL DATA,872559,26-Aug-22,584,0,36376,Placements Under 18,321100              Social Community Care Supplies & Services - Children,R,2022,5
237,Community and Housing,AGE UK MERTON,12131,22-Aug-22,99806,0,37401,Physical/Sensory Contracts,190000              Facilities & Management Services,A,2022,5
238,Unassigned,I AND  J BUSHELL LTD,4617,24-Aug-22,1056,176,42221,Mitcham Common Conservators,"390000              Works - Construction, Repair & Maintenance",A,2022,5
239,Community and Housing,JESMUND CARE LTD,861204,04-Aug-22,4000,0,46751,Older People Placements - East,321017              Nursing & Residential Care Homes,A,2022,5
240,Community and Housing,JESMUND CARE LTD,861325,04-Aug-22,3600,0,46751,Older People Placements - East,321017              Nursing & Residential Care Homes,A,2022,5
241,Community and Housing,JESMUND CARE LTD,872067,31-Aug-22,4000,0,46751,Older People Placements - East,321017              Nursing & Residential Care Homes,A,2022,5
242,Community and Housing,JESMUND CARE LTD,872188,31-Aug-22,3600,0,46751,Older People Placements - East,321017              Nursing & Residential Care Homes,A,2022,5
243,Community and Housing,REDACTED PERSONAL DATA,864311,16-Aug-22,4900.28,0,50448,Older People Placements - East,DIRECT PAYMENTS,R,2022,5
244,Community and Housing,LINKAGE COMMUNITY TR.LONG-STAY,861243,04-Aug-22,3340.08,0,52552,Learning Disabilities Placemnt,321017              Nursing & Residential Care Homes,A,2022,5
245,Community and Housing,LINKAGE COMMUNITY TR.LONG-STAY,872104,31-Aug-22,3340.08,0,52552,Learning Disabilities Placemnt,321017              Nursing & Residential Care Homes,A,2022,5
246,Community and Housing,RUTLAND HOUSE CARE HOME,861126,04-Aug-22,3156,0,53424,Older People Placements - East,321017              Nursing & Residential Care Homes,A,2022,5
247,Community and Housing,CLIFTON MANOR,861356,04-Aug-22,4022.16,0,56118,Learning Disabilities Placemnt,321017              Nursing & Residential Care Homes,A,2022,5
248,Community and Housing,CLIFTON MANOR,872221,31-Aug-22,4022.16,0,56118,Learning Disabilities Placemnt,321017              Nursing & Residential Care Homes,A,2022,5
249,Community and Housing,PARK LODGE,861085,04-Aug-22,2940,0,56878,Learning Disabilities Placemnt,321017              Nursing & Residential Care Homes,A,2022,5
250,Community and Housing,PARK LODGE,861183,04-Aug-22,3026.8,0,56878,Learning Disabilities Placemnt,321017              Nursing & Residential Care Homes,A,2022,5
251,Community and Housing,PARK LODGE,871950,31-Aug-22,2940,0,56878,Learning Disabilities Placemnt,321017              Nursing & Residential Care Homes,A,2022,5
252,Community and Housing,PARK LODGE,872045,31-Aug-22,3026.8,0,56878,Learning Disabilities Placemnt,321017              Nursing & Residential Care Homes,A,2022,5
253,Unassigned,CRICKET GREEN SCHOOL,SCHOOLS 2223/5 A,08-Aug-22,381512.87,0,57057,Schools,170000              Education,A,2022,5
254,Community and Housing,KENWARD TRUST,866163,16-Aug-22,3995,0,57058,Substance Misuse Placements,321000              Social Community Care Supplies & Services - Children,A,2022,5
255,Community and Housing,KENWARD TRUST,872148,31-Aug-22,913.14,0,57058,Substance Misuse Placements,321000              Social Community Care Supplies & Services - Children,A,2022,5
256,Corporate Services,MERTON VOLUNTARY SERV COUNCIL,5173,23-Aug-22,10416.67,0,57560,Healthwatch,190000              Facilities & Management Services,A,2022,5
257,"Children, Schools and Family",CANBURY SCHOOL LIMITED,3975,04-Aug-22,11882.49,0,57830,Non-Delegated Statements,170000              Education,A,2022,5
258,"Children, Schools and Family",CANBURY SCHOOL LIMITED,3977,04-Aug-22,6080,0,57830,Non-Delegated Statements,170000              Education,A,2022,5
259,"Children, Schools and Family",CANBURY SCHOOL LIMITED,3990,04-Aug-22,8972.88,0,57830,Non-Delegated Statements,170000              Education,A,2022,5
260,"Children, Schools and Family",CANBURY SCHOOL LIMITED,3983,04-Aug-22,5100.83,0,57830,Non-Delegated Statements,170000              Education,A,2022,5
261,"Children, Schools and Family",CANBURY SCHOOL LIMITED,3989,04-Aug-22,11238.84,0,57830,Non-Delegated Statements,170000              Education,A,2022,5
262,"Children, Schools and Family",CANBURY SCHOOL LIMITED,3988,04-Aug-22,12944.21,0,57830,Non-Delegated Statements,170000              Education,A,2022,5
263,"Children, Schools and Family",CANBURY SCHOOL LIMITED,3974,04-Aug-22,10145,0,57830,Non-Delegated Statements,170000              Education,A,2022,5
264,Community and Housing,WALSINGHAM,861060,04-Aug-22,5486.52,0,58466,Learning Disabilities Placemnt,321017              Nursing & Residential Care Homes,A,2022,5
265,Community and Housing,WALSINGHAM,861241,04-Aug-22,5486.4,0,58466,Learning Disabilities Placemnt,321017              Nursing & Residential Care Homes,A,2022,5
266,Community and Housing,WALSINGHAM,861297,04-Aug-22,5552.64,0,58466,Learning Disabilities Placemnt,321017              Nursing & Residential Care Homes,A,2022,5
267,Community and Housing,WALSINGHAM,861302,04-Aug-22,5476.12,0,58466,Learning Disabilities Placemnt,321017              Nursing & Residential Care Homes,A,2022,5
268,Community and Housing,WALSINGHAM,871924,31-Aug-22,5486.52,0,58466,Learning Disabilities Placemnt,321017              Nursing & Residential Care Homes,A,2022,5
269,Community and Housing,WALSINGHAM,872102,31-Aug-22,5486.4,0,58466,Learning Disabilities Placemnt,321017              Nursing & Residential Care Homes,A,2022,5
270,Community and Housing,WALSINGHAM,872161,31-Aug-22,5552.64,0,58466,Learning Disabilities Placemnt,321017              Nursing & Residential Care Homes,A,2022,5
271,Community and Housing,WALSINGHAM,872166,31-Aug-22,5476.12,0,58466,Learning Disabilities Placemnt,321017              Nursing & Residential Care Homes,A,2022,5
272,Community and Housing,CARE UK,861403,02-Aug-22,857.14,0,58851,Older People Placements - East,321017              Nursing & Residential Care Homes,A,2022,5
273,Community and Housing,CARE UK,860952,04-Aug-22,3229.52,0,58851,Older People Placements - East,321017              Nursing & Residential Care Homes,A,2022,5
274,Community and Housing,CARE UK,860970,04-Aug-22,3800,0,58851,Older People Placements - East,321017              Nursing & Residential Care Homes,A,2022,5
275,Community and Housing,CARE UK,861006,04-Aug-22,3143.16,0,58851,Older People Placements - East,321017              Nursing & Residential Care Homes,A,2022,5
276,Community and Housing,CARE UK,861133,04-Aug-22,3264.32,0,58851,Older People Placements - East,321017              Nursing & Residential Care Homes,A,2022,5
277,Community and Housing,CARE UK,861232,04-Aug-22,3229.52,0,58851,Older People Placements - East,321017              Nursing & Residential Care Homes,A,2022,5
278,Community and Housing,CARE UK,861308,04-Aug-22,3736,0,58851,Older People Placements - East,321017              Nursing & Residential Care Homes,A,2022,5
279,Community and Housing,CARE UK,861320,04-Aug-22,4000,0,58851,Older People Placements - East,321017              Nursing & Residential Care Homes,A,2022,5
280,Community and Housing,CARE UK,861323,04-Aug-22,3049.6,0,58851,Older People Placements - East,321017              Nursing & Residential Care Homes,A,2022,5
281,Community and Housing,CARE UK,862142,04-Aug-22,719.68,0,58851,Older People Placements - East,321017              Nursing & Residential Care Homes,A,2022,5
282,Community and Housing,CARE UK,866019,16-Aug-22,3324.23,0,58851,Older People Placements - East,321017              Nursing & Residential Care Homes,A,2022,5
283,Community and Housing,CARE UK,866021,16-Aug-22,3030.9,0,58851,Older People Placements - East,321017              Nursing & Residential Care Homes,A,2022,5
284,Community and Housing,CARE UK,871814,31-Aug-22,3229.52,0,58851,Older People Placements - East,321017              Nursing & Residential Care Homes,A,2022,5
285,Community and Housing,CARE UK,871832,31-Aug-22,3800,0,58851,Older People Placements - East,321017              Nursing & Residential Care Homes,A,2022,5
286,Community and Housing,CARE UK,871869,31-Aug-22,3229.52,0,58851,Older People Placements - East,321017              Nursing & Residential Care Homes,A,2022,5
287,Community and Housing,CARE UK,871993,31-Aug-22,3264.32,0,58851,Older People Placements - East,321017              Nursing & Residential Care Homes,A,2022,5
288,Community and Housing,CARE UK,872092,31-Aug-22,3229.52,0,58851,Older People Placements - East,321017              Nursing & Residential Care Homes,A,2022,5
289,Community and Housing,CARE UK,872172,31-Aug-22,3736,0,58851,Older People Placements - East,321017              Nursing & Residential Care Homes,A,2022,5
290,Community and Housing,CARE UK,872183,31-Aug-22,4000,0,58851,Older People Placements - East,321017              Nursing & Residential Care Homes,A,2022,5
291,Community and Housing,CARE UK,872186,31-Aug-22,3229.52,0,58851,Older People Placements - East,321017              Nursing & Residential Care Homes,A,2022,5
292,Community and Housing,CARE UK,872192,31-Aug-22,3143.16,0,58851,Older People Placements - East,321017              Nursing & Residential Care Homes,A,2022,5
293,Capital,BARCHAM TREES P.L.C.,151617,30-Aug-22,744.12,124.02,62024,Street Trees,240000              Horticultural,A,2022,5
294,Environment and Regeneration,EDE'S (U.K.) LTD,INV23731,02-Aug-22,1263.6,210.6,62345,Parks & Recreation Grounds,190000              Facilities & Management Services,A,2022,5
295,Environment and Regeneration,EDE'S (U.K.) LTD,INV24048,02-Aug-22,1263.6,210.6,62345,Parks & Recreation Grounds,190000              Facilities & Management Services,A,2022,5
296,Environment and Regeneration,EDE'S (U.K.) LTD,INV24352,02-Aug-22,1263.6,210.6,62345,Parks & Recreation Grounds,190000              Facilities & Management Services,A,2022,5
297,"Children, Schools and Family",EDE'S (U.K.) LTD,INV24256,18-Aug-22,2371.2,395.2,62345, Children's Centres Support,190000              Facilities & Management Services,A,2022,5
298,Community and Housing,BARONS LODGE NURSING HOME,861385,02-Aug-22,5801.14,0,62371,Older People Placements - East,321017              Nursing & Residential Care Homes,A,2022,5
299,Community and Housing,BARONS LODGE NURSING HOME,861013,04-Aug-22,1716,0,62371,Mental Health Placements,321017              Nursing & Residential Care Homes,A,2022,5
300,Community and Housing,BARONS LODGE NURSING HOME,861200,04-Aug-22,3502,0,62371,Mental Health Placements,321017              Nursing & Residential Care Homes,A,2022,5
301,Community and Housing,BARONS LODGE NURSING HOME,861212,04-Aug-22,4200,0,62371,Mental Health Placements,321017              Nursing & Residential Care Homes,A,2022,5
302,Community and Housing,BARONS LODGE NURSING HOME,861270,04-Aug-22,2678,0,62371,Learning Disabilities Placemnt,321017              Nursing & Residential Care Homes,A,2022,5
303,Community and Housing,BARONS LODGE NURSING HOME,861274,04-Aug-22,4360,0,62371,Mental Health Placements,321017              Nursing & Residential Care Homes,A,2022,5
304,Community and Housing,BARONS LODGE NURSING HOME,861281,04-Aug-22,4360,0,62371,Older People Placements - East,321017              Nursing & Residential Care Homes,A,2022,5
305,Community and Housing,BARONS LODGE NURSING HOME,861282,04-Aug-22,3807.2,0,62371,Learning Disabilities Placemnt,321017              Nursing & Residential Care Homes,A,2022,5
306,Community and Housing,BARONS LODGE NURSING HOME,861317,04-Aug-22,3502,0,62371,Older People Placements - East,321017              Nursing & Residential Care Homes,A,2022,5
307,Community and Housing,BARONS LODGE NURSING HOME,866009,16-Aug-22,1401.43,0,62371,Older People Placements - East,321017              Nursing & Residential Care Homes,A,2022,5
308,Community and Housing,BARONS LODGE NURSING HOME,871877,31-Aug-22,1716,0,62371,Mental Health Placements,321017              Nursing & Residential Care Homes,A,2022,5
309,Community and Housing,BARONS LODGE NURSING HOME,872062,31-Aug-22,3502,0,62371,Mental Health Placements,321017              Nursing & Residential Care Homes,A,2022,5
310,Community and Housing,BARONS LODGE NURSING HOME,872074,31-Aug-22,4200,0,62371,Mental Health Placements,321017              Nursing & Residential Care Homes,A,2022,5
311,Community and Housing,BARONS LODGE NURSING HOME,872131,31-Aug-22,2678,0,62371,Learning Disabilities Placemnt,321017              Nursing & Residential Care Homes,A,2022,5
312,Community and Housing,BARONS LODGE NURSING HOME,872136,31-Aug-22,4360,0,62371,Mental Health Placements,321017              Nursing & Residential Care Homes,A,2022,5
313,Community and Housing,BARONS LODGE NURSING HOME,872143,31-Aug-22,4360,0,62371,Older People Placements - East,321017              Nursing & Residential Care Homes,A,2022,5
314,Community and Housing,BARONS LODGE NURSING HOME,872144,31-Aug-22,3807.2,0,62371,Learning Disabilities Placemnt,321017              Nursing & Residential Care Homes,A,2022,5
315,Community and Housing,BARONS LODGE NURSING HOME,872180,31-Aug-22,3502,0,62371,Older People Placements - East,321017              Nursing & Residential Care Homes,A,2022,5
316,Community and Housing,BARONS LODGE NURSING HOME,873666,31-Aug-22,2390.77,0,62371,Older People Placements - East,321017              Nursing & Residential Care Homes,A,2022,5
317,Corporate Services,MASTERS LEGAL COSTS SERV'S LLP,73949,09-Aug-22,684,114,63103,SLLP - Disbursements,280000              Legal Services                                                                            Confirmed,A,2022,5
318,Community and Housing,SANCTUARY CARE LTD,860980,04-Aug-22,3117.52,0,63458,Learning Disabilities Placemnt,321017              Nursing & Residential Care Homes,A,2022,5
319,Community and Housing,SANCTUARY CARE LTD,871844,31-Aug-22,3117.52,0,63458,Learning Disabilities Placemnt,321017              Nursing & Residential Care Homes,A,2022,5
320,Community and Housing,THE REGARD PARTNERSHIP LTD,860964,04-Aug-22,6220.72,0,63796,Learning Disabilities Placemnt,321017              Nursing & Residential Care Homes,A,2022,5
321,Community and Housing,THE REGARD PARTNERSHIP LTD,861057,04-Aug-22,6010.48,0,63796,Learning Disabilities Placemnt,321017              Nursing & Residential Care Homes,A,2022,5
322,Community and Housing,THE REGARD PARTNERSHIP LTD,861072,04-Aug-22,9681.96,0,63796,Learning Disabilities Placemnt,321017              Nursing & Residential Care Homes,A,2022,5
323,Community and Housing,THE REGARD PARTNERSHIP LTD,861083,04-Aug-22,5765,0,63796,Learning Disabilities Placemnt,321017              Nursing & Residential Care Homes,A,2022,5
324,Community and Housing,THE REGARD PARTNERSHIP LTD,861189,04-Aug-22,6126.52,0,63796,Learning Disabilities Placemnt,321017              Nursing & Residential Care Homes,A,2022,5
325,Community and Housing,THE REGARD PARTNERSHIP LTD,861298,04-Aug-22,4901.24,0,63796,Learning Disabilities Placemnt,321017              Nursing & Residential Care Homes,A,2022,5
326,Community and Housing,THE REGARD PARTNERSHIP LTD,934000313A,19-Aug-22,586.71,0,63796,Older People Placements - East,321017              Nursing & Residential Care Homes,A,2022,5
327,Community and Housing,THE REGARD PARTNERSHIP LTD,871827,31-Aug-22,6220.72,0,63796,Learning Disabilities Placemnt,321017              Nursing & Residential Care Homes,A,2022,5
328,Community and Housing,THE REGARD PARTNERSHIP LTD,871920,31-Aug-22,6010.48,0,63796,Learning Disabilities Placemnt,321017              Nursing & Residential Care Homes,A,2022,5
329,Community and Housing,THE REGARD PARTNERSHIP LTD,871936,31-Aug-22,9681.96,0,63796,Learning Disabilities Placemnt,321017              Nursing & Residential Care Homes,A,2022,5
330,Community and Housing,THE REGARD PARTNERSHIP LTD,871948,31-Aug-22,5765,0,63796,Learning Disabilities Placemnt,321017              Nursing & Residential Care Homes,A,2022,5
331,Community and Housing,THE REGARD PARTNERSHIP LTD,872052,31-Aug-22,6126.52,0,63796,Learning Disabilities Placemnt,321017              Nursing & Residential Care Homes,A,2022,5
332,Community and Housing,THE REGARD PARTNERSHIP LTD,872162,31-Aug-22,4901.24,0,63796,Learning Disabilities Placemnt,321017              Nursing & Residential Care Homes,A,2022,5
333,Community and Housing,WINGREACH LIMITED,871871,31-Aug-22,1386.99,0,64877,Learning Disabilities Placemnt,321017              Nursing & Residential Care Homes,A,2022,5
334,Community and Housing,NEEDHAM AND SAUNDERS,2562,30-Aug-22,985,0,68089,Occupational Therapy,"390000              Works - Construction, Repair & Maintenance",A,2022,5
335,Community and Housing,NAS SERVICES LIMITED,ASU2378918,19-Aug-22,4546.8,757.8,68929,Mental Health Placements,321100              Social Community Care Supplies & Services - Children,A,2022,5
336,Unassigned,LEE VALLEY REGIONAL PARK AUTH.,2.02208E+11,22-Aug-22,14935.26,0,70554,Lee Valley Regional Park,PRECEPT,A,2022,5
337,"Children, Schools and Family",ETHELBERT SPECIALIST HOMES LTD,BH/0722/396,03-Aug-22,6787.58,0,72942,Placements Under 18,321100              Social Community Care Supplies & Services - Children,A,2022,5
338,"Children, Schools and Family",ETHELBERT SPECIALIST HOMES LTD,LL/0722/424,03-Aug-22,15032.7,0,72942,Placements Under 18,321100              Social Community Care Supplies & Services - Children,A,2022,5
339,Corporate Services,NEC Software Solutions UK Limited,91464124,31-Aug-22,1800,300,72946,Local Land Charges,190000              Facilities & Management Services,A,2022,5
340,Community and Housing,BRANDON TRUST,860975,04-Aug-22,4054,0,76126,Learning Disabilities Placemnt,321017              Nursing & Residential Care Homes,A,2022,5
341,Community and Housing,BRANDON TRUST,871838,31-Aug-22,4054,0,76126,Learning Disabilities Placemnt,321017              Nursing & Residential Care Homes,A,2022,5
342,Unassigned,LONDON BOROUGH OF SUTTON,BAILIFFJULYE2022,05-Aug-22,90643.71,0,76615,Corporate Services,OLA,A,2022,5
343,Unassigned,POST OFFICE LTD,MERTON 22/23 PO8,15-Aug-22,17033.35,0,77066,Adults Social Care,200000              Financial Services,A,2022,5
344,Unassigned,POST OFFICE LTD,MERTON 22/23 PO9,25-Aug-22,13148.6,0,77066,Adults Social Care,200000              Financial Services,A,2022,5
345,Environment and Regeneration,HEMMING GROUP LTD (LOCAL GOV),AD2867,09-Aug-22,1380,230,78178,Reg. Serv - Shared Mgnt Costs,200000              Financial Services,A,2022,5
346,Community and Housing,ABBEY HOUSE RESIDENTIAL HOMES,860976,04-Aug-22,2700,0,78937,Older People Placements - East,321017              Nursing & Residential Care Homes,A,2022,5
347,Community and Housing,ABBEY HOUSE RESIDENTIAL HOMES,860996,04-Aug-22,3151.8,0,78937,Older People Placements - East,321017              Nursing & Residential Care Homes,A,2022,5
348,Community and Housing,ABBEY HOUSE RESIDENTIAL HOMES,860999,04-Aug-22,5520,0,78937,Mental Health Placements,321017              Nursing & Residential Care Homes,A,2022,5
349,Community and Housing,ABBEY HOUSE RESIDENTIAL HOMES,871839,31-Aug-22,2700,0,78937,Older People Placements - East,321017              Nursing & Residential Care Homes,A,2022,5
350,Community and Housing,ABBEY HOUSE RESIDENTIAL HOMES,871859,31-Aug-22,3151.8,0,78937,Older People Placements - East,321017              Nursing & Residential Care Homes,A,2022,5
351,Community and Housing,ABBEY HOUSE RESIDENTIAL HOMES,871862,31-Aug-22,5520,0,78937,Mental Health Placements,321017              Nursing & Residential Care Homes,A,2022,5
352,Community and Housing,REDACTED PERSONAL DATA,863944,16-Aug-22,5088.12,0,81639,Older People Placements - East,DIRECT PAYMENTS,R,2022,5
353,Corporate Services,IRON MOUNTAIN (UK) LTD,17147251,22-Aug-22,847.91,141.32,82409,IT-Telecomms,270000              Information Communication Technology,A,2022,5
354,Community and Housing,ASKEWS AND HOLTS LIBRARY SRV LTD,6737616,30-Aug-22,564.35,0,82770,Media Fund,200000              Financial Services,A,2022,5
355,Community and Housing,ASKEWS AND HOLTS LIBRARY SRV LTD,6737388,26-Aug-22,637.96,0,82770,Media Fund,200000              Financial Services,A,2022,5
356,Unassigned,GREATER LONDON AUTHORITY,2.02208E+11,01-Aug-22,3076302.89,0,83050,Collection Fund,PRECEPT,A,2022,5
357,Unassigned,GREATER LONDON AUTHORITY,2.02208E+11,17-Aug-22,2786396,0,83050,Collection Fund,PRECEPT,A,2022,5
358,Unassigned,GREATER LONDON AUTHORITY,2.02208E+11,26-Aug-22,189714,0,83050,Collection Fund,PRECEPT,A,2022,5
359,Corporate Services,REDACTED PERSONAL DATA,INVJD151,23-Aug-22,1260,210,83383,SLLP - Disbursements,280000              Legal Services,R,2022,5
360,Corporate Services,REDACTED PERSONAL DATA,INVJD148,16-Aug-22,840,140,83383,SLLP - Disbursements,280000              Legal Services,R,2022,5
361,Unassigned,MALMESBURY PRIMARY SCHOOL,SCHOOLS 2223/5 A,08-Aug-22,226173.83,0,83593,Schools,170000              Education,A,2022,5
362,Community and Housing,YOUNG EPILEPSY,INV010375,19-Aug-22,38200.21,0,84094,Learning Disabilities Placemnt,170000              Education,A,2022,5
363,Environment and Regeneration,NEWSQUEST MEDIA GROUP LTD,40166635,09-Aug-22,954,159,85566,Passenger Transport,190000              Facilities & Management Services,A,2022,5
364,Environment and Regeneration,NEWSQUEST MEDIA GROUP LTD,40576063,22-Aug-22,2690.82,448.47,85566,Highways Maintenance,190000              Facilities & Management Services,A,2022,5
365,Capital,NEWSQUEST MEDIA GROUP LTD,40669876,31-Aug-22,587.09,97.85,85566,Highways & Footways,190000              Facilities & Management Services,A,2022,5
366,Capital,NEWSQUEST MEDIA GROUP LTD,40669702,31-Aug-22,3131.14,521.86,85566,Highways & Footways,190000              Facilities & Management Services,A,2022,5
367,Corporate Services,L.B.RICHMOND UPON THAMES,3001533513,23-Aug-22,235198.8,39199.8,86993,Benefits Investigations,OLA,A,2022,5
368,Corporate Services,AXIS ELEVATORS LTD,NV204847,15-Aug-22,500.45,83.41,89013,Civic Centre,190000              Facilities & Management Services,A,2022,5
369,"Children, Schools and Family",LONDON GRID FOR LEARNING TRUST,2020012470,16-Aug-22,4872.8,812.13,90449, Schools IT Support,270000              Information Communication Technology,A,2022,5
370,Community and Housing,SUPREME CARE SERVICES LIMITED,85408,01-Aug-22,705.15,0,91840,Older People Placements - East,321000              Social Community Care Supplies & Services - Adult,A,2022,5
371,"Children, Schools and Family",OWN LIFE LTD - 14+ Team - FC,220871,24-Aug-22,1594.28,265.71,92197,CIC Care Exp under 18 staffing,321100              Social Community Care Supplies & Services - Children,A,2022,5
372,Community and Housing,THE GARWOOD FOUNDATION,BHF/3020,30-Aug-22,737.4,0,92268,Older People Placements - East,321000              Social Community Care Supplies & Services - Adult,A,2022,5
373,Community and Housing,Allied Healthcare,RF/264/1061779,19-Aug-22,968.53,0,92896,Older People Placements - East,321000              Social Community Care Supplies & Services - Adult,A,2022,5
374,Community and Housing,CARE MANAGEMENT GROUP,860958,04-Aug-22,4593.88,0,93533,Mental Health Placements,321017              Nursing & Residential Care Homes,A,2022,5
375,Community and Housing,CARE MANAGEMENT GROUP,861007,04-Aug-22,6572.16,0,93533,Learning Disabilities Placemnt,321017              Nursing & Residential Care Homes,A,2022,5
376,Community and Housing,CARE MANAGEMENT GROUP,861024,04-Aug-22,6279.2,0,93533,Learning Disabilities Placemnt,321017              Nursing & Residential Care Homes,A,2022,5
377,Community and Housing,CARE MANAGEMENT GROUP,861129,04-Aug-22,5936.6,0,93533,Learning Disabilities Placemnt,321017              Nursing & Residential Care Homes,A,2022,5
378,Community and Housing,CARE MANAGEMENT GROUP,861169,04-Aug-22,8733.64,0,93533,Phys/Sens Placements - East,321017              Nursing & Residential Care Homes,A,2022,5
379,Community and Housing,CARE MANAGEMENT GROUP,861201,04-Aug-22,7712.12,0,93533,Learning Disabilities Placemnt,321017              Nursing & Residential Care Homes,A,2022,5
380,Community and Housing,CARE MANAGEMENT GROUP,861330,04-Aug-22,7974.36,0,93533,Learning Disabilities Placemnt,321017              Nursing & Residential Care Homes,A,2022,5
381,Community and Housing,CARE MANAGEMENT GROUP,255001443,19-Aug-22,8725.64,0,93533,Learning Disabilities Placemnt,321017              Nursing & Residential Care Homes,A,2022,5
382,Community and Housing,CARE MANAGEMENT GROUP,613000578,19-Aug-22,6353.48,0,93533,Learning Disabilities Placemnt,321017              Nursing & Residential Care Homes,A,2022,5
383,Community and Housing,CARE MANAGEMENT GROUP,397000612,19-Aug-22,4961.72,0,93533,Learning Disabilities Placemnt,321017              Nursing & Residential Care Homes,A,2022,5
384,Community and Housing,CARE MANAGEMENT GROUP,871821,31-Aug-22,4593.88,0,93533,Mental Health Placements,321017              Nursing & Residential Care Homes,A,2022,5
385,Community and Housing,CARE MANAGEMENT GROUP,871870,31-Aug-22,6572.16,0,93533,Learning Disabilities Placemnt,321017              Nursing & Residential Care Homes,A,2022,5
386,Community and Housing,CARE MANAGEMENT GROUP,871889,31-Aug-22,6279.2,0,93533,Learning Disabilities Placemnt,321017              Nursing & Residential Care Homes,A,2022,5
387,Community and Housing,CARE MANAGEMENT GROUP,871990,31-Aug-22,5936.6,0,93533,Learning Disabilities Placemnt,321017              Nursing & Residential Care Homes,A,2022,5
388,Community and Housing,CARE MANAGEMENT GROUP,872031,31-Aug-22,8733.64,0,93533,Phys/Sens Placements - East,321017              Nursing & Residential Care Homes,A,2022,5
389,Community and Housing,CARE MANAGEMENT GROUP,872064,31-Aug-22,7712.12,0,93533,Learning Disabilities Placemnt,321017              Nursing & Residential Care Homes,A,2022,5
390,Community and Housing,CARE MANAGEMENT GROUP,872195,31-Aug-22,7974.36,0,93533,Learning Disabilities Placemnt,321017              Nursing & Residential Care Homes,A,2022,5
391,Community and Housing,A AND R CARE LTD,861015,04-Aug-22,3300,0,94357,Older People Placements - East,321017              Nursing & Residential Care Homes,A,2022,5
392,Community and Housing,A AND R CARE LTD,861267,04-Aug-22,3400,0,94357,Older People Placements - East,321017              Nursing & Residential Care Homes,A,2022,5
393,Community and Housing,A AND R CARE LTD,861295,04-Aug-22,3809.6,0,94357,Older People Placements - East,321017              Nursing & Residential Care Homes,A,2022,5
394,Community and Housing,A AND R CARE LTD,861359,04-Aug-22,3824.32,0,94357,Phys/Sens Placements - East,321017              Nursing & Residential Care Homes,A,2022,5
395,Community and Housing,A AND R CARE LTD,871880,31-Aug-22,3300,0,94357,Older People Placements - East,321017              Nursing & Residential Care Homes,A,2022,5
396,Community and Housing,A AND R CARE LTD,872128,31-Aug-22,3400,0,94357,Older People Placements - East,321017              Nursing & Residential Care Homes,A,2022,5
397,Community and Housing,A AND R CARE LTD,872159,31-Aug-22,3809.6,0,94357,Older People Placements - East,321017              Nursing & Residential Care Homes,A,2022,5
398,Community and Housing,A AND R CARE LTD,872224,31-Aug-22,3824.32,0,94357,Phys/Sens Placements - East,321017              Nursing & Residential Care Homes,A,2022,5
399,"Children, Schools and Family",CARERS SUPPORT MERTON,453,11-Aug-22,18750,0,95795, Centralised Commiss Services,290000              Arts & Leisure Services,A,2022,5
400,Community and Housing,COMMONSIDE COMMUNITY DEV TRUST,CCDT UKRAINE HUB,31-Aug-22,40000,0,95839,UKRAINE,321000              Social Community Care Supplies & Services - Adult,A,2022,5
401,Community and Housing,Aspens Charities Ltd,861153,04-Aug-22,8954.28,0,96019,Learning Disabilities Placemnt,321017              Nursing & Residential Care Homes,A,2022,5
402,Community and Housing,Aspens Charities Ltd,872013,31-Aug-22,8954.28,0,96019,Learning Disabilities Placemnt,321017              Nursing & Residential Care Homes,A,2022,5
403,Community and Housing,REDACTED PERSONAL DATA,863936,16-Aug-22,4260.16,0,96859,Learning Disabilities Placemnt,DIRECT PAYMENTS,R,2022,5
404,Community and Housing,Rosenmanor Ltd,861149,04-Aug-22,2924.24,0,97808,Mental Health Placements,321017              Nursing & Residential Care Homes,A,2022,5
405,Community and Housing,Rosenmanor Ltd,872009,31-Aug-22,2924.24,0,97808,Mental Health Placements,321017              Nursing & Residential Care Homes,A,2022,5
406,Community and Housing,MERTON COMMUNITY TRANSPORT,16581,22-Aug-22,1209.6,201.6,98164,Learning Disabilities Placemnt,360000              Passenger Transport,A,2022,5
407,Community and Housing,MERTON COMMUNITY TRANSPORT,16568,22-Aug-22,528,88,98164,Learning Disabilities Placemnt,360000              Passenger Transport,A,2022,5
408,Unassigned,BEECHOLME PRIMARY ACADEMY,SCHOOLS 2223/5 A,08-Aug-22,13912.53,0,98168,Schools,170000              Education,A,2022,5
409,"Children, Schools and Family",Evolve Housing + Support,3080,15-Aug-22,2200,0,98536,UASC Care Leavers Over 18,321000              Social Community Care Supplies & Services - Adult,A,2022,5
410,"Children, Schools and Family",Evolve Housing + Support,3081,15-Aug-22,2200,0,98536,UASC Care Leavers Over 18,321000              Social Community Care Supplies & Services - Adult,A,2022,5
411,"Children, Schools and Family",Evolve Housing + Support,3082,15-Aug-22,2200,0,98536,UASC Care Leavers Over 18,321000              Social Community Care Supplies & Services - Adult,A,2022,5
412,"Children, Schools and Family",Evolve Housing + Support,3083,15-Aug-22,1480,0,98536,UASC Care Leavers Over 18,321000              Social Community Care Supplies & Services - Adult,A,2022,5
413,"Children, Schools and Family",Evolve Housing + Support,3084,15-Aug-22,1480,0,98536,Placements Over 18,321000              Social Community Care Supplies & Services - Adult,A,2022,5
414,"Children, Schools and Family",Evolve Housing + Support,3085,15-Aug-22,1480,0,98536,Placements Over 18,321000              Social Community Care Supplies & Services - Adult,A,2022,5
415,Community and Housing,ROYAL MENCAP SOCIETY,X03708478,25-Aug-22,2613.96,0,98713,Learning Disabilities Placemnt,321000              Social Community Care Supplies & Services - Adult,A,2022,5
416,Community and Housing,ROYAL MENCAP SOCIETY,X03708477,25-Aug-22,2290.96,0,98713,Learning Disabilities Placemnt,321000              Social Community Care Supplies & Services - Adult,A,2022,5
417,Community and Housing,ROYAL MENCAP SOCIETY,X03701978-A,31-Aug-22,2613.96,0,98713,Learning Disabilities Placemnt,321000              Social Community Care Supplies & Services - Adult,A,2022,5
418,"Children, Schools and Family",REDACTED PERSONAL DATA,860136,01-Aug-22,869.5,0,101120,Fostering Recruit/Assessment,290000              Arts & Leisure Services,R,2022,5
419,"Children, Schools and Family",REDACTED PERSONAL DATA,865368,15-Aug-22,869.5,0,101120,Fostering Recruit/Assessment,290000              Arts & Leisure Services,R,2022,5
420,"Children, Schools and Family",REDACTED PERSONAL DATA,871648,31-Aug-22,2111.64,0,101120,Fostering Recruit/Assessment,290000              Arts & Leisure Services,R,2022,5
421,Unassigned,WEST WIMBLEDON PRIMARY SCHOOL,SCHOOLS 2223/5 A,08-Aug-22,255813.7,0,101674,Schools,170000              Education,A,2022,5
422,Community and Housing,HILLDALE AND NORTHVIEW,861114,04-Aug-22,2072.52,0,103592,Older People Placements - East,321000              Social Community Care Supplies & Services - Adult,A,2022,5
423,Community and Housing,HILLDALE AND NORTHVIEW,871976,31-Aug-22,2072.52,0,103592,Older People Placements - East,321000              Social Community Care Supplies & Services - Adult,A,2022,5
424,Community and Housing,BUPA CARE HOMES,860981,04-Aug-22,3154.12,0,105027,Older People Placements - East,321017              Nursing & Residential Care Homes,A,2022,5
425,Community and Housing,BUPA CARE HOMES,860987,04-Aug-22,3289.24,0,105027,Older People Placements - East,321017              Nursing & Residential Care Homes,A,2022,5
426,Community and Housing,BUPA CARE HOMES,860990,04-Aug-22,3289.24,0,105027,Older People Placements - East,321017              Nursing & Residential Care Homes,A,2022,5
427,Community and Housing,BUPA CARE HOMES,861014,04-Aug-22,3154.12,0,105027,Older People Placements - East,321017              Nursing & Residential Care Homes,A,2022,5
428,Community and Housing,BUPA CARE HOMES,861065,04-Aug-22,3289.24,0,105027,Older People Placements - East,321017              Nursing & Residential Care Homes,A,2022,5
429,Community and Housing,BUPA CARE HOMES,861074,04-Aug-22,3154.12,0,105027,Older People Placements - East,321017              Nursing & Residential Care Homes,A,2022,5
430,Community and Housing,BUPA CARE HOMES,861096,04-Aug-22,3154.12,0,105027,Older People Placements - East,321017              Nursing & Residential Care Homes,A,2022,5
431,Community and Housing,BUPA CARE HOMES,861122,04-Aug-22,3154.12,0,105027,Older People Placements - East,321017              Nursing & Residential Care Homes,A,2022,5
432,Community and Housing,BUPA CARE HOMES,861177,04-Aug-22,3154.12,0,105027,Older People Placements - East,321017              Nursing & Residential Care Homes,A,2022,5
433,Community and Housing,BUPA CARE HOMES,861190,04-Aug-22,3289.24,0,105027,Older People Placements - East,321017              Nursing & Residential Care Homes,A,2022,5
434,Community and Housing,BUPA CARE HOMES,861193,04-Aug-22,3154.12,0,105027,Older People Placements - East,321017              Nursing & Residential Care Homes,A,2022,5
435,Community and Housing,BUPA CARE HOMES,861237,04-Aug-22,3289.24,0,105027,Older People Placements - East,321017              Nursing & Residential Care Homes,A,2022,5
436,Community and Housing,BUPA CARE HOMES,861239,04-Aug-22,3289.24,0,105027,Older People Placements - East,321017              Nursing & Residential Care Homes,A,2022,5
437,Community and Housing,BUPA CARE HOMES,861247,04-Aug-22,4321.08,0,105027,Phys/Sens Placements - East,321017              Nursing & Residential Care Homes,A,2022,5
438,Community and Housing,BUPA CARE HOMES,861260,04-Aug-22,3569.4,0,105027,Older People Placements - East,321017              Nursing & Residential Care Homes,A,2022,5
439,Community and Housing,BUPA CARE HOMES,861292,04-Aug-22,3154.12,0,105027,Older People Placements - East,321017              Nursing & Residential Care Homes,A,2022,5
440,Community and Housing,BUPA CARE HOMES,861312,04-Aug-22,4249.6,0,105027,Older People Placements - East,321017              Nursing & Residential Care Homes,A,2022,5
441,Community and Housing,BUPA CARE HOMES,861375,04-Aug-22,3154.12,0,105027,Older People Placements - East,321017              Nursing & Residential Care Homes,A,2022,5
442,Community and Housing,BUPA CARE HOMES,865575,15-Aug-22,7870.68,0,105027,Older People Placements - East,321017              Nursing & Residential Care Homes,A,2022,5
443,Community and Housing,BUPA CARE HOMES,865576,15-Aug-22,1031.5,0,105027,Older People Placements - East,321017              Nursing & Residential Care Homes,A,2022,5
444,Community and Housing,BUPA CARE HOMES,871845,31-Aug-22,3154.12,0,105027,Older People Placements - East,321017              Nursing & Residential Care Homes,A,2022,5
445,Community and Housing,BUPA CARE HOMES,871851,31-Aug-22,3289.24,0,105027,Older People Placements - East,321017              Nursing & Residential Care Homes,A,2022,5
446,Community and Housing,BUPA CARE HOMES,871854,31-Aug-22,3289.24,0,105027,Older People Placements - East,321017              Nursing & Residential Care Homes,A,2022,5
447,Community and Housing,BUPA CARE HOMES,871879,31-Aug-22,3154.12,0,105027,Older People Placements - East,321017              Nursing & Residential Care Homes,A,2022,5
448,Community and Housing,BUPA CARE HOMES,871929,31-Aug-22,3289.24,0,105027,Older People Placements - East,321017              Nursing & Residential Care Homes,A,2022,5
449,Community and Housing,BUPA CARE HOMES,871938,31-Aug-22,3154.12,0,105027,Older People Placements - East,321017              Nursing & Residential Care Homes,A,2022,5
450,Community and Housing,BUPA CARE HOMES,871961,31-Aug-22,3154.12,0,105027,Older People Placements - East,321017              Nursing & Residential Care Homes,A,2022,5
451,Community and Housing,BUPA CARE HOMES,871984,31-Aug-22,3154.12,0,105027,Older People Placements - East,321017              Nursing & Residential Care Homes,A,2022,5
452,Community and Housing,BUPA CARE HOMES,872024,31-Aug-22,939.78,0,105027,Phys/Sens Placements - East,321017              Nursing & Residential Care Homes,A,2022,5
453,Community and Housing,BUPA CARE HOMES,872039,31-Aug-22,3154.12,0,105027,Older People Placements - East,321017              Nursing & Residential Care Homes,A,2022,5
454,Community and Housing,BUPA CARE HOMES,872053,31-Aug-22,3289.24,0,105027,Older People Placements - East,321017              Nursing & Residential Care Homes,A,2022,5
455,Community and Housing,BUPA CARE HOMES,872056,31-Aug-22,3154.12,0,105027,Older People Placements - East,321017              Nursing & Residential Care Homes,A,2022,5
456,Community and Housing,BUPA CARE HOMES,872099,31-Aug-22,3289.24,0,105027,Older People Placements - East,321017              Nursing & Residential Care Homes,A,2022,5
457,Community and Housing,BUPA CARE HOMES,872108,31-Aug-22,4321.08,0,105027,Phys/Sens Placements - East,321017              Nursing & Residential Care Homes,A,2022,5
458,Community and Housing,BUPA CARE HOMES,872121,31-Aug-22,3569.4,0,105027,Older People Placements - East,321017              Nursing & Residential Care Homes,A,2022,5
459,Community and Housing,BUPA CARE HOMES,872155,31-Aug-22,3154.12,0,105027,Older People Placements - East,321017              Nursing & Residential Care Homes,A,2022,5
460,Community and Housing,BUPA CARE HOMES,872217,31-Aug-22,850.97,0,105027,Older People Placements - East,321017              Nursing & Residential Care Homes,A,2022,5
461,Community and Housing,BUPA CARE HOMES,872240,31-Aug-22,3154.12,0,105027,Older People Placements - East,321017              Nursing & Residential Care Homes,A,2022,5
462,Community and Housing,REDACTED PERSONAL DATA,864014,16-Aug-22,2689.24,0,105300,Learning Disabilities Placemnt,DIRECT PAYMENTS,R,2022,5
463,"Children, Schools and Family",NEWSCHOOLS (MERTON) LIMITED,NSM01024,10-Aug-22,3498.36,583.06,106428, PFI Unitary Charges,200000              Financial Services,A,2022,5
464,"Children, Schools and Family",NEWSCHOOLS (MERTON) LIMITED,NSM01031,10-Aug-22,4581.95,763.66,106428, PFI Unitary Charges,200000              Financial Services,A,2022,5
465,"Children, Schools and Family",NEWSCHOOLS (MERTON) LIMITED,NSM01026,10-Aug-22,19030.2,3171.7,106428, PFI Unitary Charges,200000              Financial Services,A,2022,5
466,"Children, Schools and Family",NEWSCHOOLS (MERTON) LIMITED,NSM01028,10-Aug-22,1233.65,205.61,106428, PFI Unitary Charges,200000              Financial Services,A,2022,5
467,"Children, Schools and Family",NEWSCHOOLS (MERTON) LIMITED,NSM01027,10-Aug-22,11583,1930.5,106428, PFI Unitary Charges,200000              Financial Services,A,2022,5
468,"Children, Schools and Family",NEWSCHOOLS (MERTON) LIMITED,NSM01032,10-Aug-22,1854.72,309.12,106428, PFI Unitary Charges,200000              Financial Services,A,2022,5
469,"Children, Schools and Family",NEWSCHOOLS (MERTON) LIMITED,NSM01029,10-Aug-22,35781.72,5963.62,106428, PFI Unitary Charges,200000              Financial Services,A,2022,5
470,Community and Housing,ASCENDIT LIFTS LTD,38949,26-Aug-22,538.6,59.6,107196,Occupational Therapy,"390000              Works - Construction, Repair & Maintenance",A,2022,5
471,Community and Housing,REDACTED PERSONAL DATA,870199,23-Aug-22,789.04,0,110403,MH Housing Support Placements,321000              Social Community Care Supplies & Services - Adult,R,2022,5
472,Community and Housing,REDACTED PERSONAL DATA,870202,23-Aug-22,1052.04,0,110403,Learning Disabilities Placemnt,321000              Social Community Care Supplies & Services - Adult,R,2022,5
473,Community and Housing,REDACTED PERSONAL DATA,870204,23-Aug-22,780.68,0,110403,MH Housing Support Placements,321000              Social Community Care Supplies & Services - Adult,R,2022,5
474,Community and Housing,REDACTED PERSONAL DATA,870217,23-Aug-22,780.68,0,110403,MH Housing Support Placements,321000              Social Community Care Supplies & Services - Adult,R,2022,5
475,Community and Housing,REDACTED PERSONAL DATA,870218,23-Aug-22,789.04,0,110403,MH Housing Support Placements,321000              Social Community Care Supplies & Services - Adult,R,2022,5
476,Community and Housing,REDACTED PERSONAL DATA,870230,23-Aug-22,1235.28,0,110403,Phys/Sens Placements - East,321000              Social Community Care Supplies & Services - Adult,R,2022,5
477,Community and Housing,REDACTED PERSONAL DATA,870234,23-Aug-22,780.68,0,110403,Mental Health Placements,321000              Social Community Care Supplies & Services - Adult,R,2022,5
478,Community and Housing,REDACTED PERSONAL DATA,870240,23-Aug-22,780.68,0,110403,MH Housing Support Placements,321000              Social Community Care Supplies & Services - Adult,R,2022,5
479,Community and Housing,REDACTED PERSONAL DATA,870251,23-Aug-22,780.68,0,110403,MH Housing Support Placements,321000              Social Community Care Supplies & Services - Adult,R,2022,5
480,Community and Housing,REDACTED PERSONAL DATA,870252,23-Aug-22,780.68,0,110403,Mental Health Placements,321000              Social Community Care Supplies & Services - Adult,R,2022,5
481,Community and Housing,REDACTED PERSONAL DATA,870254,23-Aug-22,520.48,0,110403,MH Housing Support Placements,321000              Social Community Care Supplies & Services - Adult,R,2022,5
482,Community and Housing,REDACTED PERSONAL DATA,870255,23-Aug-22,1040.92,0,110403,Phys/Sens Placements - East,321000              Social Community Care Supplies & Services - Adult,R,2022,5
483,Community and Housing,REDACTED PERSONAL DATA,870257,23-Aug-22,2240,0,110403,Mental Health Placements,321000              Social Community Care Supplies & Services - Adult,R,2022,5
484,Community and Housing,REDACTED PERSONAL DATA,870209,23-Aug-22,780.68,0,110406,LD Housing Support Placements,321000              Social Community Care Supplies & Services - Adult,R,2022,5
485,Environment and Regeneration,ANDREW SCOTT ROBERTSON,14957VC,01-Aug-22,7847.51,1307.92,111834,Property Mgt & Review,150000              Consultancy,A,2022,5
486,Environment and Regeneration,ANDREW SCOTT ROBERTSON,14900ACC,24-Aug-22,5400,900,111834,Property Mgt & Review,150000              Consultancy,A,2022,5
487,Environment and Regeneration,ANDREW SCOTT ROBERTSON,15072LRC,24-Aug-22,6600,1100,111834,Property Mgt & Review,150000              Consultancy,A,2022,5
488,Environment and Regeneration,ANDREW SCOTT ROBERTSON,15071RRC,24-Aug-22,7200,1200,111834,Durnsford industrial estate,150000              Consultancy,A,2022,5
489,"Children, Schools and Family",REDACTED PERSONAL DATA,860172,01-Aug-22,580.68,0,112660,Fostering Recruit/Assessment,321100              Social Community Care Supplies & Services - Children,R,2022,5
490,"Children, Schools and Family",REDACTED PERSONAL DATA,865402,15-Aug-22,580.68,0,112660,Fostering Recruit/Assessment,321100              Social Community Care Supplies & Services - Children,R,2022,5
491,"Children, Schools and Family",REDACTED PERSONAL DATA,871720,31-Aug-22,580.68,0,112660,Fostering Recruit/Assessment,321100              Social Community Care Supplies & Services - Children,R,2022,5
492,Environment and Regeneration,CHARTERED INST.OF ENVIR.HEALTH,PS004351,09-Aug-22,1140,190,112693,Reg. Serv - Shared Mgnt Costs,200000              Financial Services,A,2022,5
493,Environment and Regeneration,CHARTERED INST.OF ENVIR.HEALTH,PS008232,30-Aug-22,1140,190,112693,Private Sector Housing,200000              Financial Services,A,2022,5
494,Community and Housing,MEADBANK NURSING CENTRE,861173,04-Aug-22,3984.68,0,113139,Phys/Sens Placements - East,321017              Nursing & Residential Care Homes,A,2022,5
495,Community and Housing,MEADBANK NURSING CENTRE,861357,04-Aug-22,2880.08,0,113139,Older People Placements - East,321017              Nursing & Residential Care Homes,A,2022,5
496,Community and Housing,MEADBANK NURSING CENTRE,872035,31-Aug-22,3984.68,0,113139,Phys/Sens Placements - East,321017              Nursing & Residential Care Homes,A,2022,5
497,Community and Housing,MEADBANK NURSING CENTRE,872222,31-Aug-22,2880.08,0,113139,Older People Placements - East,321017              Nursing & Residential Care Homes,A,2022,5
498,"Children, Schools and Family",REDACTED PERSONAL DATA,860127,01-Aug-22,561.24,0,113452,Fostering Recruit/Assessment,321100              Social Community Care Supplies & Services - Children,R,2022,5
499,"Children, Schools and Family",REDACTED PERSONAL DATA,865359,15-Aug-22,561.24,0,113452,Fostering Recruit/Assessment,321100              Social Community Care Supplies & Services - Children,R,2022,5
500,"Children, Schools and Family",JIGSAW4U,2733032022,16-Aug-22,18750,0,113501, Centralised Commiss Services,321100              Social Community Care Supplies & Services - Children,A,2022,5
501,"Children, Schools and Family",JIGSAW4U,2795032022,16-Aug-22,18750,0,113501, Centralised Commiss Services,321100              Social Community Care Supplies & Services - Children,A,2022,5
502,Community and Housing,MIHOMECARE LIMITED,LIVE1W-268703,19-Aug-22,1113.7,0,114370,Learning Disabilities Placemnt,321000              Social Community Care Supplies & Services - Adult,A,2022,5
503,Community and Housing,MIHOMECARE LIMITED,LIVE1W-247037,31-Aug-22,1039.8,0,114370,Learning Disabilities Placemnt,321000              Social Community Care Supplies & Services - Adult,A,2022,5
504,Community and Housing,MIHOMECARE LIMITED,LIVE1W239513,31-Aug-22,1039.8,0,114370,Learning Disabilities Placemnt,321000              Social Community Care Supplies & Services - Adult,A,2022,5
505,Community and Housing,MIHOMECARE LIMITED,LIVE1W-239510,31-Aug-22,1039.8,0,114370,Learning Disabilities Placemnt,321000              Social Community Care Supplies & Services - Adult,A,2022,5
506,Community and Housing,MIHOMECARE LIMITED,LIVE1W-239231,31-Aug-22,1039.8,0,114370,Learning Disabilities Placemnt,321000              Social Community Care Supplies & Services - Adult,A,2022,5
507,Community and Housing,MIHOMECARE LIMITED,LIVE1W247178,31-Aug-22,1039.8,0,114370,Learning Disabilities Placemnt,321000              Social Community Care Supplies & Services - Adult,A,2022,5
508,Community and Housing,REDACTED PERSONAL DATA,870211,23-Aug-22,780.68,0,114970,MH Housing Support Placements,321000              Social Community Care Supplies & Services - Adult,R,2022,5
509,Community and Housing,REDACTED PERSONAL DATA,870213,23-Aug-22,1783,0,114970,Mental Health Placements,321000              Social Community Care Supplies & Services - Adult,R,2022,5
510,Community and Housing,REDACTED PERSONAL DATA,870231,23-Aug-22,1511.64,0,114970,Mental Health Placements,321000              Social Community Care Supplies & Services - Adult,R,2022,5
511,Community and Housing,REDACTED PERSONAL DATA,870247,23-Aug-22,1052.08,0,114970,MH Housing Support Placements,321000              Social Community Care Supplies & Services - Adult,R,2022,5
512,Community and Housing,REDACTED PERSONAL DATA,870233,26-Aug-22,1040.92,0,114970,Hospital To Home,321000              Social Community Care Supplies & Services - Adult,R,2022,5
513,Community and Housing,GRANGE COTTAGE LIMITED,861023,04-Aug-22,2680,0,117931,Older People Placements - East,321017              Nursing & Residential Care Homes,A,2022,5
514,Community and Housing,GRANGE COTTAGE LIMITED,861073,04-Aug-22,2680,0,117931,Older People Placements - East,321017              Nursing & Residential Care Homes,A,2022,5
515,Community and Housing,GRANGE COTTAGE LIMITED,861076,04-Aug-22,3200,0,117931,Older People Placements - East,321017              Nursing & Residential Care Homes,A,2022,5
516,Community and Housing,GRANGE COTTAGE LIMITED,861186,04-Aug-22,3600,0,117931,Older People Placements - East,321017              Nursing & Residential Care Homes,A,2022,5
517,Community and Housing,GRANGE COTTAGE LIMITED,861279,04-Aug-22,2680,0,117931,Older People Placements - East,321017              Nursing & Residential Care Homes,A,2022,5
518,Community and Housing,GRANGE COTTAGE LIMITED,871888,31-Aug-22,2680,0,117931,Older People Placements - East,321017              Nursing & Residential Care Homes,A,2022,5
519,Community and Housing,GRANGE COTTAGE LIMITED,871937,31-Aug-22,2680,0,117931,Older People Placements - East,321017              Nursing & Residential Care Homes,A,2022,5
520,Community and Housing,GRANGE COTTAGE LIMITED,871940,31-Aug-22,3200,0,117931,Older People Placements - East,321017              Nursing & Residential Care Homes,A,2022,5
521,Community and Housing,GRANGE COTTAGE LIMITED,872049,31-Aug-22,3600,0,117931,Older People Placements - East,321017              Nursing & Residential Care Homes,A,2022,5
522,Community and Housing,GRANGE COTTAGE LIMITED,872141,31-Aug-22,2680,0,117931,Older People Placements - East,321017              Nursing & Residential Care Homes,A,2022,5
523,Community and Housing,REDACTED PERSONAL DATA,870207,23-Aug-22,789.04,0,117970,MH Housing Support Placements,321000              Social Community Care Supplies & Services - Adult,R,2022,5
524,Community and Housing,REDACTED PERSONAL DATA,870220,23-Aug-22,1052.08,0,117970,Mental Health Placements,321000              Social Community Care Supplies & Services - Adult,R,2022,5
525,Community and Housing,REDACTED PERSONAL DATA,870245,23-Aug-22,1202.38,0,117970,Mental Health Placements,321000              Social Community Care Supplies & Services - Adult,R,2022,5
526,Community and Housing,L'ARCHE,861306,04-Aug-22,3094.6,0,118483,Learning Disabilities Placemnt,321017              Nursing & Residential Care Homes,A,2022,5
527,Community and Housing,L'ARCHE,872170,31-Aug-22,3094.6,0,118483,Learning Disabilities Placemnt,321017              Nursing & Residential Care Homes,A,2022,5
528,Community and Housing,Alexander House,861039,04-Aug-22,3100,0,119109,Older People Placements - East,321017              Nursing & Residential Care Homes,A,2022,5
529,Community and Housing,Alexander House,871903,31-Aug-22,3100,0,119109,Older People Placements - East,321017              Nursing & Residential Care Homes,A,2022,5
530,Environment and Regeneration,Flowbird Smart City UK Ltd,UK153700,30-Aug-22,2664,444,119359,Operational Running Costs,350000              Street & Traffic Management,A,2022,5
531,Environment and Regeneration,Flowbird Smart City UK Ltd,UK153701,30-Aug-22,2664,444,119359,Operational Running Costs,350000              Street & Traffic Management,A,2022,5
532,Environment and Regeneration,Flowbird Smart City UK Ltd,UK153702,30-Aug-22,2664,444,119359,Operational Running Costs,350000              Street & Traffic Management,A,2022,5
533,Environment and Regeneration,Flowbird Smart City UK Ltd,UK153703,30-Aug-22,2664,444,119359,Operational Running Costs,350000              Street & Traffic Management,A,2022,5
534,Capital,Flowbird Smart City UK Ltd,UK153100,30-Aug-22,99416.4,16569.4,119359,On Street Parking - P&D,350000              Street & Traffic Management,A,2022,5
535,Environment and Regeneration,KINGDOM SECURITY LTD,SER-00032101INV,22-Aug-22,12588.08,2098.01,123458,Vestry Hall,260000              Human Resources,A,2022,5
536,Environment and Regeneration,KINGDOM SECURITY LTD,SER00032101INV,23-Aug-22,12588.08,2098.01,123458,Vestry Hall,260000              Human Resources,A,2022,5
537,Community and Housing,REDACTED PERSONAL DATA,863751,16-Aug-22,1412.4,0,124097,Older People Placements - East,DIRECT PAYMENTS,R,2022,5
538,Community and Housing,UNITED RESPONSE,860994,04-Aug-22,7455.89,1242.65,125227,Learning Disabilities Placemnt,321000              Social Community Care Supplies & Services - Adult,A,2022,5
539,Community and Housing,UNITED RESPONSE,861031,04-Aug-22,7455.89,1242.65,125227,Learning Disabilities Placemnt,321000              Social Community Care Supplies & Services - Adult,A,2022,5
540,Community and Housing,UNITED RESPONSE,861046,04-Aug-22,7455.89,1242.65,125227,Learning Disabilities Placemnt,321000              Social Community Care Supplies & Services - Adult,A,2022,5
541,Community and Housing,UNITED RESPONSE,861104,04-Aug-22,7455.89,1242.65,125227,Learning Disabilities Placemnt,321000              Social Community Care Supplies & Services - Adult,A,2022,5
542,Community and Housing,UNITED RESPONSE,861147,04-Aug-22,7455.89,1242.65,125227,Learning Disabilities Placemnt,321000              Social Community Care Supplies & Services - Adult,A,2022,5
543,Community and Housing,UNITED RESPONSE,861258,04-Aug-22,7455.89,1242.65,125227,Learning Disabilities Placemnt,321000              Social Community Care Supplies & Services - Adult,A,2022,5
544,Community and Housing,UNITED RESPONSE,871857,31-Aug-22,7455.89,1242.65,125227,Learning Disabilities Placemnt,321000              Social Community Care Supplies & Services - Adult,A,2022,5
545,Community and Housing,UNITED RESPONSE,871895,31-Aug-22,7455.89,1242.65,125227,Learning Disabilities Placemnt,321000              Social Community Care Supplies & Services - Adult,A,2022,5
546,Community and Housing,UNITED RESPONSE,871910,31-Aug-22,7455.89,1242.65,125227,Learning Disabilities Placemnt,321000              Social Community Care Supplies & Services - Adult,A,2022,5
547,Community and Housing,UNITED RESPONSE,871968,31-Aug-22,7455.89,1242.65,125227,Learning Disabilities Placemnt,321000              Social Community Care Supplies & Services - Adult,A,2022,5
548,Community and Housing,UNITED RESPONSE,872007,31-Aug-22,7455.89,1242.65,125227,Learning Disabilities Placemnt,321000              Social Community Care Supplies & Services - Adult,A,2022,5
549,Community and Housing,UNITED RESPONSE,872119,31-Aug-22,7455.89,1242.65,125227,Learning Disabilities Placemnt,321000              Social Community Care Supplies & Services - Adult,A,2022,5
550,Community and Housing,REDACTED PERSONAL DATA,863828,16-Aug-22,1336.44,0,125642,Phys/Sens Placements - East,DIRECT PAYMENTS,R,2022,5
551,Community and Housing,REDACTED PERSONAL DATA,863898,16-Aug-22,890.96,0,126189,Older People Placements - East,DIRECT PAYMENTS,R,2022,5
552,Community and Housing,KELSTONE COURT NURSING HOME,860956,04-Aug-22,2920,0,126473,Older People Placements - East,321017              Nursing & Residential Care Homes,A,2022,5
553,Community and Housing,KELSTONE COURT NURSING HOME,861157,04-Aug-22,2920,0,126473,Older People Placements - East,321017              Nursing & Residential Care Homes,A,2022,5
554,Community and Housing,KELSTONE COURT NURSING HOME,861194,04-Aug-22,2920,0,126473,Older People Placements - East,321017              Nursing & Residential Care Homes,A,2022,5
555,Community and Housing,KELSTONE COURT NURSING HOME,861196,04-Aug-22,3000,0,126473,Older People Placements - East,321017              Nursing & Residential Care Homes,A,2022,5
556,Community and Housing,KELSTONE COURT NURSING HOME,861197,04-Aug-22,2920,0,126473,Older People Placements - East,321017              Nursing & Residential Care Homes,A,2022,5
557,Community and Housing,KELSTONE COURT NURSING HOME,861231,04-Aug-22,2944.32,0,126473,Older People Placements - East,321017              Nursing & Residential Care Homes,A,2022,5
558,Community and Housing,KELSTONE COURT NURSING HOME,861238,04-Aug-22,3000,0,126473,Older People Placements - East,321017              Nursing & Residential Care Homes,A,2022,5
559,Community and Housing,KELSTONE COURT NURSING HOME,861275,04-Aug-22,2920,0,126473,Older People Placements - East,321017              Nursing & Residential Care Homes,A,2022,5
560,Community and Housing,KELSTONE COURT NURSING HOME,861316,04-Aug-22,2920,0,126473,Older People Placements - East,321017              Nursing & Residential Care Homes,A,2022,5
561,Community and Housing,KELSTONE COURT NURSING HOME,861318,04-Aug-22,3000,0,126473,Older People Placements - East,321017              Nursing & Residential Care Homes,A,2022,5
562,Community and Housing,KELSTONE COURT NURSING HOME,861328,04-Aug-22,2920,0,126473,Older People Placements - East,321017              Nursing & Residential Care Homes,A,2022,5
563,Community and Housing,KELSTONE COURT NURSING HOME,861331,04-Aug-22,2920,0,126473,Older People Placements - East,321017              Nursing & Residential Care Homes,A,2022,5
564,Community and Housing,KELSTONE COURT NURSING HOME,861345,04-Aug-22,2920,0,126473,Older People Placements - East,321017              Nursing & Residential Care Homes,A,2022,5
565,Community and Housing,KELSTONE COURT NURSING HOME,861352,04-Aug-22,1821.43,0,126473,Older People Placements - East,321017              Nursing & Residential Care Homes,A,2022,5
566,Community and Housing,KELSTONE COURT NURSING HOME,861379,04-Aug-22,2920,0,126473,Older People Placements - East,321017              Nursing & Residential Care Homes,A,2022,5
567,Community and Housing,KELSTONE COURT NURSING HOME,871392,25-Aug-22,821.43,0,126473,Older People Placements - East,321017              Nursing & Residential Care Homes,A,2022,5
568,Community and Housing,KELSTONE COURT NURSING HOME,871393,25-Aug-22,1178.57,0,126473,Older People Placements - East,321017              Nursing & Residential Care Homes,A,2022,5
569,Community and Housing,KELSTONE COURT NURSING HOME,871815,31-Aug-22,1071.43,0,126473,Older People Placements - East,321017              Nursing & Residential Care Homes,A,2022,5
570,Community and Housing,KELSTONE COURT NURSING HOME,871819,31-Aug-22,2920,0,126473,Older People Placements - East,321017              Nursing & Residential Care Homes,A,2022,5
571,Community and Housing,KELSTONE COURT NURSING HOME,871841,31-Aug-22,3000,0,126473,Older People Placements - East,321017              Nursing & Residential Care Homes,A,2022,5
572,Community and Housing,KELSTONE COURT NURSING HOME,872018,31-Aug-22,2920,0,126473,Older People Placements - East,321017              Nursing & Residential Care Homes,A,2022,5
573,Community and Housing,KELSTONE COURT NURSING HOME,872057,31-Aug-22,2920,0,126473,Older People Placements - East,321017              Nursing & Residential Care Homes,A,2022,5
574,Community and Housing,KELSTONE COURT NURSING HOME,872059,31-Aug-22,2920,0,126473,Older People Placements - East,321017              Nursing & Residential Care Homes,A,2022,5
575,Community and Housing,KELSTONE COURT NURSING HOME,872091,31-Aug-22,2944.32,0,126473,Older People Placements - East,321017              Nursing & Residential Care Homes,A,2022,5
576,Community and Housing,KELSTONE COURT NURSING HOME,872098,31-Aug-22,3000,0,126473,Older People Placements - East,321017              Nursing & Residential Care Homes,A,2022,5
577,Community and Housing,KELSTONE COURT NURSING HOME,872137,31-Aug-22,2920,0,126473,Older People Placements - East,321017              Nursing & Residential Care Homes,A,2022,5
578,Community and Housing,KELSTONE COURT NURSING HOME,872146,31-Aug-22,2603.52,0,126473,Older People Placements - East,321017              Nursing & Residential Care Homes,A,2022,5
579,Community and Housing,KELSTONE COURT NURSING HOME,872158,31-Aug-22,1821.43,0,126473,Older People Placements - East,321017              Nursing & Residential Care Homes,A,2022,5
580,Community and Housing,KELSTONE COURT NURSING HOME,872179,31-Aug-22,2920,0,126473,Older People Placements - East,321017              Nursing & Residential Care Homes,A,2022,5
581,Community and Housing,KELSTONE COURT NURSING HOME,872181,31-Aug-22,3000,0,126473,Older People Placements - East,321017              Nursing & Residential Care Homes,A,2022,5
582,Community and Housing,KELSTONE COURT NURSING HOME,872193,31-Aug-22,2920,0,126473,Older People Placements - East,321017              Nursing & Residential Care Homes,A,2022,5
583,Community and Housing,KELSTONE COURT NURSING HOME,872196,31-Aug-22,2920,0,126473,Older People Placements - East,321017              Nursing & Residential Care Homes,A,2022,5
584,Community and Housing,KELSTONE COURT NURSING HOME,872244,31-Aug-22,2920,0,126473,Older People Placements - East,321017              Nursing & Residential Care Homes,A,2022,5
585,Community and Housing,KELSTONE COURT NURSING HOME,873739,31-Aug-22,1071.43,0,126473,Older People Placements - East,321017              Nursing & Residential Care Homes,A,2022,5
586,Community and Housing,KELSTONE COURT NURSING HOME,873742,31-Aug-22,750,0,126473,Older People Placements - East,321017              Nursing & Residential Care Homes,A,2022,5
587,Community and Housing,KELSTONE COURT NURSING HOME,873760,31-Aug-22,1370.27,0,126473,Older People Placements - East,321017              Nursing & Residential Care Homes,A,2022,5
588,Community and Housing,REDACTED PERSONAL DATA,863626,16-Aug-22,668.24,0,127266,Phys/Sens Placements - East,DIRECT PAYMENTS,R,2022,5
589,"Children, Schools and Family",EAGLE HOUSE SCHOOL,EHM22/062,18-Aug-22,20016,0,128617,Non-Delegated Statements,170000              Education,A,2022,5
590,Environment and Regeneration,TRL LIMITED,11616448,02-Aug-22,630.28,105.05,128700,Environmental Health-Pollution,180000              Environmental Services,A,2022,5
591,Environment and Regeneration,TRL LIMITED,11616449,02-Aug-22,1285.2,214.2,128700,LBR - Pollution,180000              Environmental Services,A,2022,5
592,Environment and Regeneration,TRL LIMITED,11616450,02-Aug-22,4345.04,724.17,128700,Wandsworth Air Quality,180000              Environmental Services,A,2022,5
593,Community and Housing,BUPA CARE HOMES,861342,04-Aug-22,6141.52,0,130491,Phys/Sens Placements - East,321017              Nursing & Residential Care Homes,A,2022,5
594,Community and Housing,BUPA CARE HOMES,872207,31-Aug-22,6141.52,0,130491,Phys/Sens Placements - East,321017              Nursing & Residential Care Homes,A,2022,5
595,Corporate Services,DOMINO 4 LIMITED,D.44229,08-Aug-22,676.5,112.75,132991,Policy & Partnerships Meetings,190000              Facilities & Management Services                                                          Confirmed,A,2022,5
596,Community and Housing,DOMINO 4 LIMITED,D.44206,24-Aug-22,1749,291.5,132991,UKRAINE,190000              Facilities & Management Services                                                          Confirmed,A,2022,5
597,Community and Housing,VOYAGE CARE LTD,861068,04-Aug-22,6393.92,0,133700,Learning Disabilities Placemnt,321017              Nursing & Residential Care Homes,A,2022,5
598,Community and Housing,VOYAGE CARE LTD,861175,04-Aug-22,7174.48,0,133700,Learning Disabilities Placemnt,321017              Nursing & Residential Care Homes,A,2022,5
599,Community and Housing,VOYAGE CARE LTD,861256,04-Aug-22,7246.76,0,133700,Learning Disabilities Placemnt,321017              Nursing & Residential Care Homes,A,2022,5
600,Community and Housing,VOYAGE CARE LTD,871932,31-Aug-22,6393.92,0,133700,Learning Disabilities Placemnt,321017              Nursing & Residential Care Homes,A,2022,5
601,Community and Housing,VOYAGE CARE LTD,872037,31-Aug-22,7174.48,0,133700,Learning Disabilities Placemnt,321017              Nursing & Residential Care Homes,A,2022,5
602,Community and Housing,VOYAGE CARE LTD,872117,31-Aug-22,7246.76,0,133700,Learning Disabilities Placemnt,321017              Nursing & Residential Care Homes,A,2022,5
603,Community and Housing,HOMECARE SERVICES LTD,28099,12-Aug-22,3659.3,0,134594,Phys/Sens Placements - East,321100              Social Community Care Supplies & Services - Children,A,2022,5
604,Corporate Services,POSTURITE (UK),INV1009972,30-Aug-22,1121.28,186.88,134719,Legal Shared Service,210000              Furniture & Soft Furnishings,A,2022,5
605,Community and Housing,Sunrise Rehabilitation Centre,860985,04-Aug-22,4923.4,0,135093,Learning Disabilities Placemnt,321017              Nursing & Residential Care Homes,A,2022,5
606,Community and Housing,Sunrise Rehabilitation Centre,861012,04-Aug-22,4923.4,0,135093,Learning Disabilities Placemnt,321017              Nursing & Residential Care Homes,A,2022,5
607,Community and Housing,Sunrise Rehabilitation Centre,861170,04-Aug-22,4873.96,0,135093,Learning Disabilities Placemnt,321017              Nursing & Residential Care Homes,A,2022,5
608,Community and Housing,Sunrise Rehabilitation Centre,861261,04-Aug-22,3272.32,0,135093,Learning Disabilities Placemnt,321017              Nursing & Residential Care Homes,A,2022,5
609,Community and Housing,Sunrise Rehabilitation Centre,861293,04-Aug-22,4762.72,0,135093,Learning Disabilities Placemnt,321017              Nursing & Residential Care Homes,A,2022,5
610,Community and Housing,Sunrise Rehabilitation Centre,861296,04-Aug-22,4886.32,0,135093,Learning Disabilities Placemnt,321017              Nursing & Residential Care Homes,A,2022,5
611,Community and Housing,Sunrise Rehabilitation Centre,861315,04-Aug-22,4923.4,0,135093,Learning Disabilities Placemnt,321017              Nursing & Residential Care Homes,A,2022,5
612,Community and Housing,Sunrise Rehabilitation Centre,861382,04-Aug-22,4120,0,135093,Learning Disabilities Placemnt,321017              Nursing & Residential Care Homes,A,2022,5
613,Community and Housing,Sunrise Rehabilitation Centre,871849,31-Aug-22,4923.4,0,135093,Learning Disabilities Placemnt,321017              Nursing & Residential Care Homes,A,2022,5
614,Community and Housing,Sunrise Rehabilitation Centre,871876,31-Aug-22,4923.4,0,135093,Learning Disabilities Placemnt,321017              Nursing & Residential Care Homes,A,2022,5
615,Community and Housing,Sunrise Rehabilitation Centre,872032,31-Aug-22,4873.96,0,135093,Learning Disabilities Placemnt,321017              Nursing & Residential Care Homes,A,2022,5
616,Community and Housing,Sunrise Rehabilitation Centre,872122,31-Aug-22,3272.32,0,135093,Learning Disabilities Placemnt,321017              Nursing & Residential Care Homes,A,2022,5
617,Community and Housing,Sunrise Rehabilitation Centre,872156,31-Aug-22,4762.72,0,135093,Learning Disabilities Placemnt,321017              Nursing & Residential Care Homes,A,2022,5
618,Community and Housing,Sunrise Rehabilitation Centre,872160,31-Aug-22,4886.32,0,135093,Learning Disabilities Placemnt,321017              Nursing & Residential Care Homes,A,2022,5
619,Community and Housing,Sunrise Rehabilitation Centre,872178,31-Aug-22,4923.4,0,135093,Learning Disabilities Placemnt,321017              Nursing & Residential Care Homes,A,2022,5
620,Community and Housing,Sunrise Rehabilitation Centre,872247,31-Aug-22,4120,0,135093,Learning Disabilities Placemnt,321017              Nursing & Residential Care Homes,A,2022,5
621,Community and Housing,REDACTED PERSONAL DATA,864042,16-Aug-22,1275.96,0,135784,Phys/Sens Placements - East,DIRECT PAYMENTS,R,2022,5
622,"Children, Schools and Family",REDACTED PERSONAL DATA,860238,01-Aug-22,554.92,0,135795,Fostering Recruit/Assessment,321100              Social Community Care Supplies & Services - Children,R,2022,5
623,"Children, Schools and Family",REDACTED PERSONAL DATA,865469,15-Aug-22,554.92,0,135795,Fostering Recruit/Assessment,321100              Social Community Care Supplies & Services - Children,R,2022,5
624,"Children, Schools and Family",REDACTED PERSONAL DATA,871787,31-Aug-22,554.92,0,135795,Fostering Recruit/Assessment,321100              Social Community Care Supplies & Services - Children,R,2022,5
625,Community and Housing,VITALISE,860965,04-Aug-22,5107,0,135823,Older People Placements - East,321017              Nursing & Residential Care Homes,A,2022,5
626,Community and Housing,VITALISE,861327,04-Aug-22,2333,0,135823,Learning Disabilities Placemnt,321017              Nursing & Residential Care Homes,A,2022,5
627,Unassigned,ZURICH INSURANCE GROUP,QLA-01E223AUG22T,15-Aug-22,100000,0,137315,Corporate Services,200000              Financial Services,A,2022,5
628,Unassigned,LB Wandsworth Pension Fund Account,INTERFUND010,15-Aug-22,16268.94,0,137418,London Borough of Merton,PENSIONS,A,2022,5
629,Community and Housing,REDACTED PERSONAL DATA,864416,16-Aug-22,1463.72,0,137843,Phys/Sens Placements - East,DIRECT PAYMENTS,R,2022,5
630,Community and Housing,HESTIA HOUSING AND SUPPORT,ARINV/00005476,04-Aug-22,21712.25,0,139090,Supporting People (HRS),321000              Social Community Care Supplies & Services - Adult,A,2022,5
631,Community and Housing,HESTIA HOUSING AND SUPPORT,ARINV/00005622,18-Aug-22,21712.25,0,139090,Supporting People (HRS),321000              Social Community Care Supplies & Services - Adult,A,2022,5
632,Community and Housing,REDACTED PERSONAL DATA,863675,16-Aug-22,1078,0,139365,Phys/Sens Placements - East,DIRECT PAYMENTS,R,2022,5
633,Community and Housing,REDACTED PERSONAL DATA,864310,16-Aug-22,509.12,0,140662,Phys/Sens Placements - East,DIRECT PAYMENTS,R,2022,5
634,Community and Housing,REDACTED PERSONAL DATA,864011,16-Aug-22,4263.88,0,140759,Phys/Sens Placements - East,DIRECT PAYMENTS,R,2022,5
635,Community and Housing,REDACTED PERSONAL DATA,864103,16-Aug-22,792.32,0,140759,Phys/Sens Placements - East,DIRECT PAYMENTS,R,2022,5
636,Community and Housing,SURREY AND BORDERS PARTNERSHIP,861139,04-Aug-22,11448.72,0,140911,Learning Disabilities Placemnt,321017              Nursing & Residential Care Homes,A,2022,5
637,Community and Housing,SURREY AND BORDERS PARTNERSHIP,871999,31-Aug-22,11448.72,0,140911,Learning Disabilities Placemnt,321017              Nursing & Residential Care Homes,A,2022,5
638,Community and Housing,GARWOOD FOUNDATION,861017,04-Aug-22,2755.48,0,142358,Phys/Sens Placements - East,321017              Nursing & Residential Care Homes,A,2022,5
639,Community and Housing,GARWOOD FOUNDATION,861124,04-Aug-22,2755.48,0,142358,Older People Placements - East,321017              Nursing & Residential Care Homes,A,2022,5
640,Community and Housing,GARWOOD FOUNDATION,871882,31-Aug-22,2755.48,0,142358,Phys/Sens Placements - East,321017              Nursing & Residential Care Homes,A,2022,5
641,Community and Housing,GARWOOD FOUNDATION,871985,31-Aug-22,2755.48,0,142358,Older People Placements - East,321017              Nursing & Residential Care Homes,A,2022,5
642,"Children, Schools and Family",CHUBB FIRE AND SECURITY LTD,9422441,16-Aug-22,808.51,134.75,142411,Church Road Building,"390000              Works - Construction, Repair & Maintenance",A,2022,5
643,"Children, Schools and Family",CHUBB FIRE AND SECURITY LTD,9409773,16-Aug-22,1481.03,246.84,142411,Steers Mead BuildingManagement,"390000              Works - Construction, Repair & Maintenance",A,2022,5
644,Community and Housing,CHHG LTD T/A GRETTON HOMES,861337,04-Aug-22,7961.72,0,142442,Learning Disabilities Placemnt,321017              Nursing & Residential Care Homes,A,2022,5
645,Community and Housing,CHHG LTD T/A GRETTON HOMES,872202,31-Aug-22,7961.72,0,142442,Learning Disabilities Placemnt,321017              Nursing & Residential Care Homes,A,2022,5
646,Community and Housing,EVERGREEN PARTNERSHIP,861063,04-Aug-22,11775,0,142455,Learning Disabilities Placemnt,321017              Nursing & Residential Care Homes,A,2022,5
647,Community and Housing,EVERGREEN PARTNERSHIP,861077,04-Aug-22,6629.16,0,142455,Learning Disabilities Placemnt,321017              Nursing & Residential Care Homes,A,2022,5
648,Community and Housing,EVERGREEN PARTNERSHIP,871926,31-Aug-22,11775,0,142455,Learning Disabilities Placemnt,321017              Nursing & Residential Care Homes,A,2022,5
649,Community and Housing,EVERGREEN PARTNERSHIP,871942,31-Aug-22,6629.16,0,142455,Learning Disabilities Placemnt,321017              Nursing & Residential Care Homes,A,2022,5
650,Community and Housing,REDACTED PERSONAL DATA,870221,23-Aug-22,1052.08,0,143597,MH Housing Support Placements,321000              Social Community Care Supplies & Services - Adult,R,2022,5
651,Community and Housing,REDACTED PERSONAL DATA,870232,23-Aug-22,616.82,0,143597,Learning Disabilities Placemnt,321000              Social Community Care Supplies & Services - Adult,R,2022,5
652,Community and Housing,REDACTED PERSONAL DATA,870241,23-Aug-22,1315.04,0,143597,LD Housing Support Placements,321000              Social Community Care Supplies & Services - Adult,R,2022,5
653,Community and Housing,REDACTED PERSONAL DATA,870244,23-Aug-22,685.88,0,143597,Learning Disabilities Placemnt,321000              Social Community Care Supplies & Services - Adult,R,2022,5
654,Community and Housing,REDACTED PERSONAL DATA,870259,23-Aug-22,1462.32,0,143597,Learning Disabilities Placemnt,321000              Social Community Care Supplies & Services - Adult,R,2022,5
655,Corporate Services,REDACTED PERSONAL DATA,JR175,09-Aug-22,1196,0,143840,Translation Service,TRANSLATIONS,R,2022,5
656,Community and Housing,REDACTED PERSONAL DATA,863996,16-Aug-22,3731.72,0,144689,Learning Disabilities Placemnt,DIRECT PAYMENTS,R,2022,5
657,Community and Housing,CRAEGMOOR FACILITIES - WINDSOR,861119,04-Aug-22,6834.88,0,145152,Learning Disabilities Placemnt,321017              Nursing & Residential Care Homes,A,2022,5
658,Community and Housing,CRAEGMOOR FACILITIES - WINDSOR,871981,31-Aug-22,6834.88,0,145152,Learning Disabilities Placemnt,321017              Nursing & Residential Care Homes,A,2022,5
659,Community and Housing,REDACTED PERSONAL DATA,864186,16-Aug-22,4454.8,0,145882,Learning Disabilities Placemnt,DIRECT PAYMENTS,R,2022,5
660,"Children, Schools and Family",SPEECH CENTRE,110462,23-Aug-22,922.99,153.83,147920,Head - Help & Family Assessmnt,270000              Information Communication Technology,A,2022,5
661,Community and Housing,GENERATE,9489,04-Aug-22,824,0,148332,Learning Disabilities Placemnt,321000              Social Community Care Supplies & Services - Adult,A,2022,5
662,Community and Housing,GENERATE,9626,25-Aug-22,727.2,0,148332,Learning Disabilities Placemnt,321000              Social Community Care Supplies & Services - Adult,A,2022,5
663,Community and Housing,GENERATE,9628,25-Aug-22,659.2,0,148332,Learning Disabilities Placemnt,321000              Social Community Care Supplies & Services - Adult,A,2022,5
664,Community and Housing,GENERATE,9234,30-Aug-22,2966.4,0,148332,Learning Disabilities Placemnt,321000              Social Community Care Supplies & Services - Adult,A,2022,5
665,Community and Housing,CHICHESTER HALL CARE HOME LTD,861326,04-Aug-22,2637.2,0,148358,Older People Placements - East,321017              Nursing & Residential Care Homes,A,2022,5
666,Community and Housing,CHICHESTER HALL CARE HOME LTD,872189,31-Aug-22,2637.2,0,148358,Older People Placements - East,321017              Nursing & Residential Care Homes,A,2022,5
667,Unassigned,Canterbury Campus,SCHOOLS 2223/5 A,08-Aug-22,152162.08,0,150054,Schools,170000              Education,A,2022,5
668,Community and Housing,REDACTED PERSONAL DATA,863973,16-Aug-22,2544.32,0,151002,Older People Placements - East,DIRECT PAYMENTS,R,2022,5
669,Community and Housing,AIMS CARE PARTNERSHIP,861067,04-Aug-22,10560,0,151592,Learning Disabilities Placemnt,321017              Nursing & Residential Care Homes,A,2022,5
670,Community and Housing,AIMS CARE PARTNERSHIP,861107,04-Aug-22,3114.72,0,151592,Learning Disabilities Placemnt,321017              Nursing & Residential Care Homes,A,2022,5
671,Community and Housing,AIMS CARE PARTNERSHIP,871931,31-Aug-22,10560,0,151592,Learning Disabilities Placemnt,321017              Nursing & Residential Care Homes,A,2022,5
672,Community and Housing,AIMS CARE PARTNERSHIP,871971,31-Aug-22,3114.72,0,151592,Learning Disabilities Placemnt,321017              Nursing & Residential Care Homes,A,2022,5
673,Community and Housing,REDACTED PERSONAL DATA,863974,16-Aug-22,2269.96,0,151790,Phys/Sens Placements - East,DIRECT PAYMENTS,R,2022,5
674,Community and Housing,HOLISTIC COMMUNITY CARE - FC,3073,19-Aug-22,5080,0,151996,Older People Placements - East,321000              Social Community Care Supplies & Services - Adult,A,2022,5
675,Community and Housing,HOLISTIC COMMUNITY CARE - FC,3072,19-Aug-22,4454.8,0,151996,Learning Disabilities Placemnt,321000              Social Community Care Supplies & Services - Adult,A,2022,5
676,Community and Housing,HOLISTIC COMMUNITY CARE - FC,M222305/7,24-Aug-22,1020.83,0,151996,Older People Placements - East,321000              Social Community Care Supplies & Services - Adult,A,2022,5
677,Community and Housing,HOLISTIC COMMUNITY CARE - FC,M222305/2,24-Aug-22,2975.67,0,151996,Older People Placements - East,321000              Social Community Care Supplies & Services - Adult,A,2022,5
678,Community and Housing,HOLISTIC COMMUNITY CARE - FC,M222305/23,24-Aug-22,1352.2,0,151996,Older People Placements - East,321000              Social Community Care Supplies & Services - Adult,A,2022,5
679,Community and Housing,HOLISTIC COMMUNITY CARE - FC,M222305/4,24-Aug-22,2128.75,0,151996,Older People Placements - East,321000              Social Community Care Supplies & Services - Adult,A,2022,5
680,Community and Housing,HOLISTIC COMMUNITY CARE - FC,M222305/22,24-Aug-22,2762.66,0,151996,Older People Placements - East,321000              Social Community Care Supplies & Services - Adult,A,2022,5
681,Community and Housing,HOLISTIC COMMUNITY CARE - FC,M222305/9,24-Aug-22,741.44,0,151996,Older People Placements - East,321000              Social Community Care Supplies & Services - Adult,A,2022,5
682,Community and Housing,HOLISTIC COMMUNITY CARE - FC,M222305/16,24-Aug-22,841.79,0,151996,Older People Placements - East,321000              Social Community Care Supplies & Services - Adult,A,2022,5
683,Community and Housing,HOLISTIC COMMUNITY CARE - FC,M222305/17,24-Aug-22,1367.4,0,151996,Older People Placements - East,321000              Social Community Care Supplies & Services - Adult,A,2022,5
684,Community and Housing,HOLISTIC COMMUNITY CARE - FC,M222305/37,24-Aug-22,1153.03,0,151996,Older People Placements - East,321000              Social Community Care Supplies & Services - Adult,A,2022,5
685,Community and Housing,HOLISTIC COMMUNITY CARE - FC,M222305/26,24-Aug-22,740.67,0,151996,Older People Placements - East,321000              Social Community Care Supplies & Services - Adult,A,2022,5
686,Community and Housing,HOLISTIC COMMUNITY CARE - FC,M222305/36,24-Aug-22,1139.14,0,151996,Older People Placements - East,321000              Social Community Care Supplies & Services - Adult,A,2022,5
687,Community and Housing,HOLISTIC COMMUNITY CARE - FC,M222305/6,24-Aug-22,1758.54,0,151996,Older People Placements - East,321000              Social Community Care Supplies & Services - Adult,A,2022,5
688,Community and Housing,HOLISTIC COMMUNITY CARE - FC,M222305/30,24-Aug-22,747.04,0,151996,Older People Placements - East,321000              Social Community Care Supplies & Services - Adult,A,2022,5
689,Community and Housing,HOLISTIC COMMUNITY CARE - FC,M222305/34,24-Aug-22,527.62,0,151996,Older People Placements - East,321000              Social Community Care Supplies & Services - Adult,A,2022,5
690,Community and Housing,REDACTED PERSONAL DATA,864491,16-Aug-22,7434,0,152015,Older People Placements - East,321000              Social Community Care Supplies & Services - Adult,R,2022,5
691,Corporate Services,WANDSWORTH CORPORATION,WC376792128M04D,04-Aug-22,2153.04,0,152180,SLLP Client Income,OLA,A,2022,5
692,Community and Housing,REDACTED PERSONAL DATA,864344,16-Aug-22,954.6,0,152709,Older People Placements - East,DIRECT PAYMENTS,R,2022,5
693,Community and Housing,REDACTED PERSONAL DATA,863923,16-Aug-22,1587.84,0,152990,Learning Disabilities Placemnt,DIRECT PAYMENTS,R,2022,5
694,Community and Housing,LYNTON HALL NURSING HOME,860963,08-Aug-22,2985.6,0,153795,Older People Placements - East,321017              Nursing & Residential Care Homes,A,2022,5
695,Community and Housing,LYNTON HALL NURSING HOME,860969,08-Aug-22,2876.32,0,153795,Older People Placements - East,321017              Nursing & Residential Care Homes,A,2022,5
696,Community and Housing,LYNTON HALL NURSING HOME,861145,08-Aug-22,3249.6,0,153795,Older People Placements - East,321017              Nursing & Residential Care Homes,A,2022,5
697,Community and Housing,LYNTON HALL NURSING HOME,871826,31-Aug-22,2985.6,0,153795,Older People Placements - East,321017              Nursing & Residential Care Homes,A,2022,5
698,Community and Housing,LYNTON HALL NURSING HOME,871831,31-Aug-22,2876.32,0,153795,Older People Placements - East,321017              Nursing & Residential Care Homes,A,2022,5
699,Community and Housing,LYNTON HALL NURSING HOME,872005,31-Aug-22,3249.6,0,153795,Older People Placements - East,321017              Nursing & Residential Care Homes,A,2022,5
700,Community and Housing,C AND P HYGIENE,521041,25-Aug-22,1218,168,154469,Mental Health Placements,130000              Cleaning & Janitorial,A,2022,5
701,Unassigned,HARRIS ACADEMY MERTON,SCHOOLS 2223/5 A,08-Aug-22,66889.98,0,155274,Schools,170000              Education,A,2022,5
702,Unassigned,CFBT SCHOOLS TRUST,SCHOOLS 2223/5 A,08-Aug-22,47047.94,0,155275,Schools,170000              Education,A,2022,5
703,Community and Housing,REDACTED PERSONAL DATA,870756,23-Aug-22,1842.48,0,155411,Learning Disabilities Placemnt,DIRECT PAYMENTS,R,2022,5
704,Community and Housing,REDACTED PERSONAL DATA,864296,16-Aug-22,9751.56,0,156181,Phys/Sens Placements - East,DIRECT PAYMENTS,R,2022,5
705,Corporate Services,CILEX,1.46208E+14,30-Aug-22,1465,0,158746,Legal Shared Service,200000              Financial Services,A,2022,5
706,Community and Housing,REDACTED PERSONAL DATA,863865,16-Aug-22,979.36,0,159542,Phys/Sens Placements - East,DIRECT PAYMENTS,R,2022,5
707,Community and Housing,REDACTED PERSONAL DATA,864362,16-Aug-22,3220,0,160044,Phys/Sens Placements - East,DIRECT PAYMENTS,R,2022,5
708,"Children, Schools and Family",REDACTED PERSONAL DATA,865127,15-Aug-22,1104.88,0,160147,Child Disabilities - Placement,CSF-DIRECT PAYMENTS,R,2022,5
709,Community and Housing,REDACTED PERSONAL DATA,864160,16-Aug-22,1272.8,0,160244,Phys/Sens Placements - East,DIRECT PAYMENTS,R,2022,5
710,Community and Housing,REDACTED PERSONAL DATA,864162,16-Aug-22,604.6,0,160273,Learning Disabilities Placemnt,DIRECT PAYMENTS,R,2022,5
711,Community and Housing,REDACTED PERSONAL DATA,863964,16-Aug-22,1018.24,0,160279,Phys/Sens Placements - East,DIRECT PAYMENTS,R,2022,5
712,"Children, Schools and Family",FLEET EDUCATION SERVICES LTD,16917,12-Aug-22,2757.6,459.6,160300,Non-Delegated Statements,260000              Human Resources,A,2022,5
713,"Children, Schools and Family",THE NATIONAL FOSTERING AGENCY,399466,22-Aug-22,5703.38,0,160464,Placements Under 18,321100              Social Community Care Supplies & Services - Children,A,2022,5
714,"Children, Schools and Family",THE NATIONAL FOSTERING AGENCY,399465,22-Aug-22,5703.38,0,160464,Placements Under 18,321100              Social Community Care Supplies & Services - Children,A,2022,5
715,"Children, Schools and Family",THE NATIONAL FOSTERING AGENCY,399467,22-Aug-22,3520.67,0,160464,Placements Under 18,321100              Social Community Care Supplies & Services - Children,A,2022,5
716,"Children, Schools and Family",THE NATIONAL FOSTERING AGENCY,399463,22-Aug-22,2739.94,0,160464,Placements Under 18,321100              Social Community Care Supplies & Services - Children,A,2022,5
717,"Children, Schools and Family",THE NATIONAL FOSTERING AGENCY,3667361,16-Aug-22,3247.35,0,160464,Placements Under 18,321100              Social Community Care Supplies & Services - Children,A,2022,5
718,"Children, Schools and Family",THE NATIONAL FOSTERING AGENCY,388888,16-Aug-22,6067.01,0,160464,Placements Under 18,321100              Social Community Care Supplies & Services - Children,A,2022,5
719,Environment and Regeneration,BRITISH GAS BUSINESS,400669747,02-Aug-22,708.62,118.1,160497,Other Misc Props,370000              Utilities,A,2022,5
720,Environment and Regeneration,BRITISH GAS BUSINESS,968794061,02-Aug-22,713.94,33.99,160497,LBM Shops,370000              Utilities,A,2022,5
721,Community and Housing,WILLOW LODGE NURSING HOME,861159,04-Aug-22,13365.44,0,160658,Older People Placements - East,321017              Nursing & Residential Care Homes,A,2022,5
722,Community and Housing,WILLOW LODGE NURSING HOME,872020,31-Aug-22,13365.44,0,160658,Older People Placements - East,321017              Nursing & Residential Care Homes,A,2022,5
723,Environment and Regeneration,CITY OF LONDON CORPORATION,4322466,15-Aug-22,5339.22,889.87,160895,Waste Disposal,180000              Environmental Services,A,2022,5
724,Community and Housing,CITY OF LONDON CORPORATION,4319302,24-Aug-22,22905.11,0,160895,PH - Sexual Health,180000              Environmental Services,A,2022,5
725,Community and Housing,CITY OF LONDON CORPORATION,4317134,24-Aug-22,3562.41,0,160895,PH - Sexual Health,180000              Environmental Services,A,2022,5
726,Community and Housing,CITY OF LONDON CORPORATION,4317140,30-Aug-22,8362.79,0,160895,PH - Sexual Health,180000              Environmental Services,A,2022,5
727,Community and Housing,REDACTED PERSONAL DATA,864481,16-Aug-22,540.96,0,160909,Older People Placements - East,DIRECT PAYMENTS,R,2022,5
728,"Children, Schools and Family",REDACTED PERSONAL DATA,862394,05-Aug-22,514.75,0,161094,Placements Under 18,321100              Social Community Care Supplies & Services - Children,R,2022,5
729,"Children, Schools and Family",REDACTED PERSONAL DATA,864857,12-Aug-22,514.75,0,161094,Placements Under 18,321100              Social Community Care Supplies & Services - Children,R,2022,5
730,"Children, Schools and Family",REDACTED PERSONAL DATA,869284,19-Aug-22,514.75,0,161094,Placements Under 18,321100              Social Community Care Supplies & Services - Children,R,2022,5
731,"Children, Schools and Family",REDACTED PERSONAL DATA,872545,26-Aug-22,514.75,0,161094,Placements Under 18,321100              Social Community Care Supplies & Services - Children,R,2022,5
732,Corporate Services,JC APPLICATIONS DEVELOPMENT,19182,15-Aug-22,22765.2,3794.2,161398,Insurance Premiums & Funding,270000              Information Communication Technology,A,2022,5
733,Corporate Services,DATA INTERCHANGE PLC,UKSI-102405,23-Aug-22,596.28,99.38,162623,Local Taxation Bailiffs,270000              Information Communication Technology,A,2022,5
734,Corporate Services,WALLINGTON CARS AND COURIERS LTD,291686,24-Aug-22,1250.1,207.35,162637,PrintUnit-HighVolPhtcopying,300000              Mail Services,A,2022,5
735,"Children, Schools and Family",WALLINGTON CARS AND COURIERS LTD,291699,24-Aug-22,516,86,162637,CIC Care Exp under 18 staffing,300000              Mail Services,A,2022,5
736,Corporate Services,WALLINGTON CARS AND COURIERS LTD,290868,25-Aug-22,2014.34,335.72,162637,PrintUnit-HighVolPhtcopying,300000              Mail Services,A,2022,5
737,Community and Housing,REDACTED PERSONAL DATA,863747,16-Aug-22,1562.56,0,163392,Learning Disabilities Placemnt,DIRECT PAYMENTS,R,2022,5
738,Environment and Regeneration,D N H PROPERTY MAINTENANCE,2121DNH,23-Aug-22,4758.84,793.14,163395,Pks Rec Grds (Unloc),"390000              Works - Construction, Repair & Maintenance",A,2022,5
739,Corporate Services,D N H PROPERTY MAINTENANCE,2129DNH,24-Aug-22,4963.07,827.18,163395,Schools FM,"390000              Works - Construction, Repair & Maintenance",A,2022,5
740,Environment and Regeneration,D N H PROPERTY MAINTENANCE,2120DNH,23-Aug-22,2190,365,163395,Vestry Hall,"390000              Works - Construction, Repair & Maintenance",A,2022,5
741,"Children, Schools and Family",REDACTED PERSONAL DATA,862413,05-Aug-22,785.52,0,163471,Placements Under 18,200000              Financial Services,R,2022,5
742,"Children, Schools and Family",REDACTED PERSONAL DATA,862421,05-Aug-22,955.97,0,163471,Placements Under 18,200000              Financial Services,R,2022,5
743,"Children, Schools and Family",REDACTED PERSONAL DATA,864876,12-Aug-22,785.52,0,163471,Placements Under 18,200000              Financial Services,R,2022,5
744,"Children, Schools and Family",REDACTED PERSONAL DATA,864884,12-Aug-22,514.75,0,163471,Placements Under 18,200000              Financial Services,R,2022,5
745,"Children, Schools and Family",REDACTED PERSONAL DATA,869306,19-Aug-22,785.52,0,163471,Placements Under 18,200000              Financial Services,R,2022,5
746,"Children, Schools and Family",REDACTED PERSONAL DATA,869314,19-Aug-22,514.75,0,163471,Placements Under 18,200000              Financial Services,R,2022,5
747,"Children, Schools and Family",REDACTED PERSONAL DATA,872564,26-Aug-22,785.52,0,163471,Placements Under 18,200000              Financial Services,R,2022,5
748,"Children, Schools and Family",REDACTED PERSONAL DATA,872572,26-Aug-22,914.75,0,163471,Placements Under 18,200000              Financial Services,R,2022,5
749,Community and Housing,Active Prospects,860995,04-Aug-22,6103.76,0,163859,Learning Disabilities Placemnt,321017              Nursing & Residential Care Homes,A,2022,5
750,Community and Housing,Active Prospects,871858,31-Aug-22,6103.76,0,163859,Learning Disabilities Placemnt,321017              Nursing & Residential Care Homes,A,2022,5
751,Community and Housing,REDACTED PERSONAL DATA,864469,16-Aug-22,1129.64,0,163971,Phys/Sens Placements - East,DIRECT PAYMENTS,R,2022,5
752,"Children, Schools and Family",BUMBLE BEES'S DAY NURSERY-COCC,P1 22 LATE START,24-Aug-22,2238.3,0,164240,EARLY YEARS NURSERY GRANTS,200000              Financial Services,A,2022,5
753,Environment and Regeneration,LONDON COUNCILS,4321563,08-Aug-22,13137.58,0,164343,Operational Running Costs,OLA,A,2022,5
754,Community and Housing,LONDON COUNCILS,4322467,22-Aug-22,115367.69,0,164343,Concessionary Fares,OLA,A,2022,5
755,Community and Housing,ENTERPRISE CARE SUPPORT LTD,19209,01-Aug-22,1166.25,0,164431,Older People Placements - East,321000              Social Community Care Supplies & Services - Adult,A,2022,5
756,Community and Housing,ENTERPRISE CARE SUPPORT LTD,19208,01-Aug-22,747.04,0,164431,Older People Placements - East,321000              Social Community Care Supplies & Services - Adult,A,2022,5
757,Community and Housing,ENTERPRISE CARE SUPPORT LTD,19207,01-Aug-22,527.62,0,164431,Older People Placements - East,321000              Social Community Care Supplies & Services - Adult,A,2022,5
758,Community and Housing,ENTERPRISE CARE SUPPORT LTD,19206,01-Aug-22,963.48,0,164431,Older People Placements - East,321000              Social Community Care Supplies & Services - Adult,A,2022,5
759,Community and Housing,ENTERPRISE CARE SUPPORT LTD,19205,01-Aug-22,747.04,0,164431,Older People Placements - East,321000              Social Community Care Supplies & Services - Adult,A,2022,5
760,Community and Housing,ENTERPRISE CARE SUPPORT LTD,19202,01-Aug-22,1068.2,0,164431,Older People Placements - East,321000              Social Community Care Supplies & Services - Adult,A,2022,5
761,Community and Housing,ENTERPRISE CARE SUPPORT LTD,19200,01-Aug-22,946.02,0,164431,Older People Placements - East,321000              Social Community Care Supplies & Services - Adult,A,2022,5
762,Community and Housing,ENTERPRISE CARE SUPPORT LTD,19199,01-Aug-22,681.48,0,164431,Learning Disabilities Placemnt,321000              Social Community Care Supplies & Services - Adult,A,2022,5
763,Community and Housing,ENTERPRISE CARE SUPPORT LTD,19196,01-Aug-22,747.04,0,164431,Older People Placements - East,321000              Social Community Care Supplies & Services - Adult,A,2022,5
764,Community and Housing,ENTERPRISE CARE SUPPORT LTD,19194,01-Aug-22,681.48,0,164431,Older People Placements - East,321000              Social Community Care Supplies & Services - Adult,A,2022,5
765,Community and Housing,ENTERPRISE CARE SUPPORT LTD,19193,01-Aug-22,747.04,0,164431,Older People Placements - East,321000              Social Community Care Supplies & Services - Adult,A,2022,5
766,Community and Housing,ENTERPRISE CARE SUPPORT LTD,19191,01-Aug-22,1068.2,0,164431,Older People Placements - East,321000              Social Community Care Supplies & Services - Adult,A,2022,5
767,Community and Housing,ENTERPRISE CARE SUPPORT LTD,19190,01-Aug-22,3197.04,0,164431,Older People Placements - East,321000              Social Community Care Supplies & Services - Adult,A,2022,5
768,Community and Housing,ENTERPRISE CARE SUPPORT LTD,19188,01-Aug-22,1068.2,0,164431,Older People Placements - East,321000              Social Community Care Supplies & Services - Adult,A,2022,5
769,Community and Housing,ENTERPRISE CARE SUPPORT LTD,19187,01-Aug-22,518.39,0,164431,Older People Placements - East,321000              Social Community Care Supplies & Services - Adult,A,2022,5
770,Community and Housing,ENTERPRISE CARE SUPPORT LTD,19186,01-Aug-22,2732.84,0,164431,Older People Placements - East,321000              Social Community Care Supplies & Services - Adult,A,2022,5
771,Community and Housing,ENTERPRISE CARE SUPPORT LTD,19185,01-Aug-22,3306.14,0,164431,Older People Placements - East,321000              Social Community Care Supplies & Services - Adult,A,2022,5
772,Community and Housing,ENTERPRISE CARE SUPPORT LTD,19204,04-Aug-22,2778.72,0,164431,Older People Placements - East,321000              Social Community Care Supplies & Services - Adult,A,2022,5
773,Community and Housing,ENTERPRISE CARE SUPPORT LTD,19201,04-Aug-22,2136.4,0,164431,Older People Placements - East,321000              Social Community Care Supplies & Services - Adult,A,2022,5
774,Community and Housing,ENTERPRISE CARE SUPPORT LTD,19195,04-Aug-22,1371.08,0,164431,Older People Placements - East,321000              Social Community Care Supplies & Services - Adult,A,2022,5
775,Community and Housing,ENTERPRISE CARE SUPPORT LTD,19341,31-Aug-22,747.04,0,164431,Older People Placements - East,321000              Social Community Care Supplies & Services - Adult,A,2022,5
776,Community and Housing,ENTERPRISE CARE SUPPORT LTD,19340,31-Aug-22,2778.72,0,164431,Older People Placements - East,321000              Social Community Care Supplies & Services - Adult,A,2022,5
777,Community and Housing,ENTERPRISE CARE SUPPORT LTD,19337,31-Aug-22,1068.2,0,164431,Older People Placements - East,321000              Social Community Care Supplies & Services - Adult,A,2022,5
778,Community and Housing,ENTERPRISE CARE SUPPORT LTD,19336,31-Aug-22,2136.4,0,164431,Older People Placements - East,321000              Social Community Care Supplies & Services - Adult,A,2022,5
779,Community and Housing,ENTERPRISE CARE SUPPORT LTD,19335,31-Aug-22,888.92,0,164431,Older People Placements - East,321000              Social Community Care Supplies & Services - Adult,A,2022,5
780,Community and Housing,ENTERPRISE CARE SUPPORT LTD,19333,31-Aug-22,681.48,0,164431,Learning Disabilities Placemnt,321000              Social Community Care Supplies & Services - Adult,A,2022,5
781,Community and Housing,ENTERPRISE CARE SUPPORT LTD,19331,31-Aug-22,747.04,0,164431,Older People Placements - East,321000              Social Community Care Supplies & Services - Adult,A,2022,5
782,Community and Housing,ENTERPRISE CARE SUPPORT LTD,19330,31-Aug-22,747.04,0,164431,Older People Placements - East,321000              Social Community Care Supplies & Services - Adult,A,2022,5
783,Community and Housing,ENTERPRISE CARE SUPPORT LTD,19329,31-Aug-22,1371.08,0,164431,Older People Placements - East,321000              Social Community Care Supplies & Services - Adult,A,2022,5
784,Community and Housing,ENTERPRISE CARE SUPPORT LTD,19327,31-Aug-22,747.04,0,164431,Older People Placements - East,321000              Social Community Care Supplies & Services - Adult,A,2022,5
785,Community and Housing,ENTERPRISE CARE SUPPORT LTD,19324,31-Aug-22,953.75,0,164431,Older People Placements - East,321000              Social Community Care Supplies & Services - Adult,A,2022,5
786,Community and Housing,ENTERPRISE CARE SUPPORT LTD,19323,31-Aug-22,3197.04,0,164431,Older People Placements - East,321000              Social Community Care Supplies & Services - Adult,A,2022,5
787,Community and Housing,ENTERPRISE CARE SUPPORT LTD,19321,31-Aug-22,1068.2,0,164431,Older People Placements - East,321000              Social Community Care Supplies & Services - Adult,A,2022,5
788,Community and Housing,ENTERPRISE CARE SUPPORT LTD,19320,31-Aug-22,533.6,0,164431,Older People Placements - East,321000              Social Community Care Supplies & Services - Adult,A,2022,5
789,Community and Housing,ENTERPRISE CARE SUPPORT LTD,19319,31-Aug-22,2778.72,0,164431,Older People Placements - East,321000              Social Community Care Supplies & Services - Adult,A,2022,5
790,Community and Housing,ENTERPRISE CARE SUPPORT LTD,19318,31-Aug-22,3329.08,0,164431,Older People Placements - East,321000              Social Community Care Supplies & Services - Adult,A,2022,5
791,Community and Housing,ENTERPRISE CARE SUPPORT LTD,19328,31-Aug-22,681.48,0,164431,Older People Placements - East,321000              Social Community Care Supplies & Services - Adult,A,2022,5
792,Community and Housing,BUPA CARE SERVICES BACS RECEIP,861184,04-Aug-22,8538.76,0,164629,Older People Placements - East,321017              Nursing & Residential Care Homes,A,2022,5
793,Community and Housing,BUPA CARE SERVICES BACS RECEIP,872046,31-Aug-22,8538.76,0,164629,Older People Placements - East,321017              Nursing & Residential Care Homes,A,2022,5
794,Community and Housing,REDACTED PERSONAL DATA,864482,16-Aug-22,1272.8,0,164694,Phys/Sens Placements - East,DIRECT PAYMENTS,R,2022,5
795,"Children, Schools and Family",SYNERGY FOSTERING LTD,INV-3822,03-Aug-22,7944.68,0,165111,Placements Under 18,321100              Social Community Care Supplies & Services - Children,A,2022,5
796,Unassigned,MARSTON GROUP,62301,22-Aug-22,2297.7,0,165202,Corporate Accountancy,200000              Financial Services,A,2022,5
797,Corporate Services,DX NETWORK SERVICES LTD,83591985,24-Aug-22,1620,270,165316,Legal Shared Service,300000              Mail Services,A,2022,5
798,Community and Housing,REDACTED PERSONAL DATA,864349,16-Aug-22,1349.48,0,165602,Learning Disabilities Placemnt,DIRECT PAYMENTS,R,2022,5
799,Community and Housing,REDACTED PERSONAL DATA,863854,16-Aug-22,2228.4,0,165619,Phys/Sens Placements - East,DIRECT PAYMENTS,R,2022,5
800,Community and Housing,REDACTED PERSONAL DATA,864063,16-Aug-22,3538.2,0,165619,Phys/Sens Placements - East,DIRECT PAYMENTS,R,2022,5
801,Community and Housing,BUPA CARE HOMES (ANS) LTD,861365,04-Aug-22,3511.52,0,165704,Phys/Sens Placements - East,321017              Nursing & Residential Care Homes,A,2022,5
802,Community and Housing,BUPA CARE HOMES (ANS) LTD,872230,31-Aug-22,3511.52,0,165704,Phys/Sens Placements - East,321017              Nursing & Residential Care Homes,A,2022,5
803,Community and Housing,REDACTED PERSONAL DATA,864271,16-Aug-22,1149.95,0,165786,Older People Placements - East,DIRECT PAYMENTS,R,2022,5
804,Community and Housing,REDACTED PERSONAL DATA,864493,16-Aug-22,700.8,0,166085,Learning Disabilities Placemnt,DIRECT PAYMENTS,R,2022,5
805,Community and Housing,REDACTED PERSONAL DATA,864260,16-Aug-22,1588.64,0,166158,Phys/Sens Placements - East,DIRECT PAYMENTS,R,2022,5
806,Environment and Regeneration,Wimbledon Society,MUSEUM PROJECT,04-Aug-22,25000,0,166189,Reg & Partnerhips Staffing,200000              Financial Services,A,2022,5
807,Environment and Regeneration,COMPLETE ECOLOGY LTD,Jun-23,26-Aug-22,2340,390,166208,Nature Conservation,240000              Horticultural                                                                             Confirmed,A,2022,5
808,"Children, Schools and Family",UNSTED PARK,4280003345,01-Aug-22,27500,0,166487,Non-Delegated Statements,170000              Education,A,2022,5
809,"Children, Schools and Family",UNSTED PARK,4280003347,01-Aug-22,21474.67,0,166487,Non-Delegated Statements,170000              Education,A,2022,5
810,"Children, Schools and Family",UNSTED PARK,4280003346,04-Aug-22,19812,0,166487,Non-Delegated Statements,170000              Education,A,2022,5
811,Community and Housing,REDACTED PERSONAL DATA,863786,16-Aug-22,1209.16,0,166547,Learning Disabilities Placemnt,DIRECT PAYMENTS,R,2022,5
812,"Children, Schools and Family",REDACTED PERSONAL DATA,862346,05-Aug-22,1295.53,0,166742,Placements Under 18,321100              Social Community Care Supplies & Services - Children,R,2022,5
813,"Children, Schools and Family",REDACTED PERSONAL DATA,864808,12-Aug-22,1295.53,0,166742,Placements Under 18,321100              Social Community Care Supplies & Services - Children,R,2022,5
814,"Children, Schools and Family",REDACTED PERSONAL DATA,869235,19-Aug-22,1295.53,0,166742,Placements Under 18,321100              Social Community Care Supplies & Services - Children,R,2022,5
815,"Children, Schools and Family",REDACTED PERSONAL DATA,872495,26-Aug-22,1295.53,0,166742,Placements Under 18,321100              Social Community Care Supplies & Services - Children,R,2022,5
816,Corporate Services,REDACTED PERSONAL DATA,00564-19177434-0,30-Aug-22,1425,0,166885,Client Finance Affairs,120000              Cemetery & Crematorium,R,2022,5
817,Corporate Services,REDACTED PERSONAL DATA,00564-19177431-0,26-Aug-22,1425,0,166885,Client Finance Affairs,120000              Cemetery & Crematorium,R,2022,5
818,Corporate Services,UNIQUE OFFICE SOLUTIONS LTD,111858,12-Aug-22,786,131,166889,Legal Shared Service,210000              Furniture & Soft Furnishings,A,2022,5
819,Environment and Regeneration,IMPERIAL CIVIL ENFORC.SOLUT.,INV0000005264,01-Aug-22,2119.1,353.18,167737,Operational Running Costs,270000              Information Communication Technology,A,2022,5
820,"Children, Schools and Family",THE MOAT SCHOOL,6220952,15-Aug-22,12728,0,167981,Non-Delegated Statements,200000              Financial Services,A,2022,5
821,"Children, Schools and Family",THE MOAT SCHOOL,220951,15-Aug-22,12694,0,167981,Non-Delegated Statements,200000              Financial Services,A,2022,5
822,Capital,CBS Adaptation Design,1650,04-Aug-22,1504.66,221.44,168147,Disabled Facilities Grant,200000              Financial Services,A,2022,5
823,Capital,CBS Adaptation Design,1645,11-Aug-22,840,140,168147,Disabled Facilities Grant,200000              Financial Services,A,2022,5
824,Capital,CBS Adaptation Design,1657,19-Aug-22,507.96,54.66,168147,Disabled Facilities Grant,200000              Financial Services,A,2022,5
825,Capital,CBS Adaptation Design,1652,19-Aug-22,1124.68,120.61,168147,Disabled Facilities Grant,200000              Financial Services,A,2022,5
826,Corporate Services,LANGUAGE BANK,MTS-210722,08-Aug-22,972,162,168229,Translation Service,TRANSLATIONS,A,2022,5
827,Corporate Services,LANGUAGE BANK,MTS-110722,05-Aug-22,660,110,168229,Translation Service,TRANSLATIONS,A,2022,5
828,Corporate Services,LANGUAGE BANK,MTS-150722,05-Aug-22,810,135,168229,Translation Service,TRANSLATIONS,A,2022,5
829,Corporate Services,LANGUAGE BANK,MTS-200722,05-Aug-22,513,85.5,168229,Translation Service,TRANSLATIONS,A,2022,5
830,Corporate Services,LANGUAGE BANK,MTS-050722,03-Aug-22,813,135.5,168229,Translation Service,TRANSLATIONS,A,2022,5
831,Corporate Services,LANGUAGE BANK,MTS-280722,11-Aug-22,678,113,168229,Translation Service,TRANSLATIONS,A,2022,5
832,Corporate Services,LANGUAGE BANK,MTS-270722,11-Aug-22,930,155,168229,Translation Service,TRANSLATIONS,A,2022,5
833,Corporate Services,LANGUAGE BANK,MTS-250722,11-Aug-22,912,152,168229,Translation Service,TRANSLATIONS,A,2022,5
834,Corporate Services,LANGUAGE BANK,MTS-040822,19-Aug-22,876,146,168229,Translation Service,TRANSLATIONS,A,2022,5
835,Corporate Services,LANGUAGE BANK,MTS-010822,19-Aug-22,660,110,168229,Translation Service,TRANSLATIONS,A,2022,5
836,Community and Housing,REDACTED PERSONAL DATA,863892,16-Aug-22,572.76,0,168403,Learning Disabilities Placemnt,DIRECT PAYMENTS,R,2022,5
837,Community and Housing,VICTIM SUPPORT,3016025,26-Aug-22,54000,9000,168404,Outbreak Contain Mngment Grant,310000              Healthcare,A,2022,5
838,"Children, Schools and Family",WILLOWS PRE SCHOOL,P1 22 LATE START,24-Aug-22,2475,0,168752,EARLY YEARS NURSERY GRANTS,170000              Education,A,2022,5
839,Community and Housing,HOUSING21,INV659544-675161,30-Aug-22,650.52,0,169230,Older People Placements - East,321000              Social Community Care Supplies & Services - Adult,A,2022,5
840,Community and Housing,HOUSING21,INV659544-82473,30-Aug-22,2589.57,0,169230,Older People Placements - East,321000              Social Community Care Supplies & Services - Adult,A,2022,5
841,Community and Housing,HOUSING21,INV659544-583114,30-Aug-22,4203.36,0,169230,Older People Placements - East,321000              Social Community Care Supplies & Services - Adult,A,2022,5
842,Community and Housing,HOUSING21,INV659544-819723,30-Aug-22,767.28,0,169230,Older People Placements - East,321000              Social Community Care Supplies & Services - Adult,A,2022,5
843,Community and Housing,HOUSING21,INV659544-534037,30-Aug-22,988.29,0,169230,Older People Placements - East,321000              Social Community Care Supplies & Services - Adult,A,2022,5
844,Community and Housing,HOUSING21,INV659544-532662,30-Aug-22,1401.12,0,169230,Older People Placements - East,321000              Social Community Care Supplies & Services - Adult,A,2022,5
845,Community and Housing,HOUSING21,INV659544-882704,30-Aug-22,888.21,0,169230,Older People Placements - East,321000              Social Community Care Supplies & Services - Adult,A,2022,5
846,Community and Housing,HOUSING21,INV659544-934625,30-Aug-22,817.32,0,169230,Older People Placements - East,321000              Social Community Care Supplies & Services - Adult,A,2022,5
847,Community and Housing,HOUSING21,INV659544-507687,30-Aug-22,1301.04,0,169230,Phys/Sens Placements - East,321000              Social Community Care Supplies & Services - Adult,A,2022,5
848,Community and Housing,HOUSING21,INV659544-596014,30-Aug-22,867.36,0,169230,Older People Placements - East,321000              Social Community Care Supplies & Services - Adult,A,2022,5
849,Community and Housing,HOUSING21,INV659544-512370,30-Aug-22,583.8,0,169230,Older People Placements - East,321000              Social Community Care Supplies & Services - Adult,A,2022,5
850,Community and Housing,HOUSING21,INV659544-819746,30-Aug-22,1050.84,0,169230,Older People Placements - East,321000              Social Community Care Supplies & Services - Adult,A,2022,5
851,Community and Housing,HOUSING21,INV659549-675161,30-Aug-22,608.82,0,169230,Older People Placements - East,321000              Social Community Care Supplies & Services - Adult,A,2022,5
852,Community and Housing,HOUSING21,INV659549-82473,30-Aug-22,2589.57,0,169230,Older People Placements - East,321000              Social Community Care Supplies & Services - Adult,A,2022,5
853,Community and Housing,HOUSING21,INV659549-583114,30-Aug-22,4203.36,0,169230,Older People Placements - East,321000              Social Community Care Supplies & Services - Adult,A,2022,5
854,Community and Housing,HOUSING21,INV659549-819723,30-Aug-22,767.28,0,169230,Older People Placements - East,321000              Social Community Care Supplies & Services - Adult,A,2022,5
855,Community and Housing,HOUSING21,INV659549-534037,30-Aug-22,988.29,0,169230,Older People Placements - East,321000              Social Community Care Supplies & Services - Adult,A,2022,5
856,Community and Housing,HOUSING21,INV659549-532662,30-Aug-22,1401.12,0,169230,Older People Placements - East,321000              Social Community Care Supplies & Services - Adult,A,2022,5
857,Community and Housing,HOUSING21,INV659549-882704,30-Aug-22,888.21,0,169230,Older People Placements - East,321000              Social Community Care Supplies & Services - Adult,A,2022,5
858,Community and Housing,HOUSING21,INV659549-934625,30-Aug-22,817.32,0,169230,Older People Placements - East,321000              Social Community Care Supplies & Services - Adult,A,2022,5
859,Community and Housing,HOUSING21,INV659549-507687,30-Aug-22,1401.12,0,169230,Phys/Sens Placements - East,321000              Social Community Care Supplies & Services - Adult,A,2022,5
860,Community and Housing,HOUSING21,INV659549-596014,30-Aug-22,867.36,0,169230,Older People Placements - East,321000              Social Community Care Supplies & Services - Adult,A,2022,5
861,Community and Housing,HOUSING21,INV659549-819746,30-Aug-22,1050.84,0,169230,Older People Placements - East,321000              Social Community Care Supplies & Services - Adult,A,2022,5
862,Community and Housing,HOUSING21,INV659549-512370,30-Aug-22,583.8,0,169230,Older People Placements - East,321000              Social Community Care Supplies & Services - Adult,A,2022,5
863,Community and Housing,FITZROY SUPPORT,861028,04-Aug-22,6104.92,0,169400,Learning Disabilities Placemnt,321017              Nursing & Residential Care Homes,A,2022,5
864,Community and Housing,FITZROY SUPPORT,871892,31-Aug-22,6104.92,0,169400,Learning Disabilities Placemnt,321017              Nursing & Residential Care Homes,A,2022,5
865,Community and Housing,FITZROY SUPPORT,873697,31-Aug-22,2747.7,0,169400,Learning Disabilities Placemnt,321017              Nursing & Residential Care Homes,A,2022,5
866,"Children, Schools and Family",REDACTED PERSONAL DATA,865257,16-Aug-22,594,0,169403,CWD Placements,CSF-DIRECT PAYMENTS,R,2022,5
867,"Children, Schools and Family",JULIUS RUTHERFOORD AND CO LTD,INVS144902,02-Aug-22,26967.77,4494.63,170092, PFI Unitary Charges,130000              Cleaning & Janitorial,A,2022,5
868,"Children, Schools and Family",JULIUS RUTHERFOORD AND CO LTD,INVS144507,16-Aug-22,1077.19,179.53,170092,Newminster CC Building Mgt,130000              Cleaning & Janitorial,A,2022,5
869,"Children, Schools and Family",JULIUS RUTHERFOORD AND CO LTD,INVS144016,16-Aug-22,1077.19,179.53,170092,Newminster CC Building Mgt,130000              Cleaning & Janitorial,A,2022,5
870,"Children, Schools and Family",JULIUS RUTHERFOORD AND CO LTD,INVS144780,16-Aug-22,1155.05,192.51,170092,Bond Road Building,130000              Cleaning & Janitorial,A,2022,5
871,"Children, Schools and Family",JULIUS RUTHERFOORD AND CO LTD,INVS145362,22-Aug-22,26967.77,4494.63,170092, PFI Unitary Charges,130000              Cleaning & Janitorial,A,2022,5
872,"Children, Schools and Family",JULIUS RUTHERFOORD AND CO LTD,INVS145509,22-Aug-22,27334.73,4555.77,170092, PFI Unitary Charges,130000              Cleaning & Janitorial,A,2022,5
873,"Children, Schools and Family",JULIUS RUTHERFOORD AND CO LTD,INVS145507,22-Aug-22,25451.04,4241.83,170092, PFI Unitary Charges,130000              Cleaning & Janitorial,A,2022,5
874,"Children, Schools and Family",JULIUS RUTHERFOORD AND CO LTD,INVS145503,22-Aug-22,25962.45,4327.07,170092, PFI Unitary Charges,130000              Cleaning & Janitorial,A,2022,5
875,Corporate Services,JULIUS RUTHERFOORD AND CO LTD,INVS145458,22-Aug-22,3044.86,507.48,170092,PDC,130000              Cleaning & Janitorial,A,2022,5
876,Corporate Services,JULIUS RUTHERFOORD AND CO LTD,INV.S145458,26-Aug-22,2856.34,476.06,170092,PDC,130000              Cleaning & Janitorial,A,2022,5
877,Community and Housing,INDEPENDENCE HOMES LTD,861290,04-Aug-22,7493.76,0,170527,Learning Disabilities Placemnt,321017              Nursing & Residential Care Homes,A,2022,5
878,Community and Housing,INDEPENDENCE HOMES LTD,CED00053,15-Aug-22,5347.24,0,170527,Learning Disabilities Placemnt,321017              Nursing & Residential Care Homes,A,2022,5
879,Community and Housing,INDEPENDENCE HOMES LTD,872153,31-Aug-22,7493.76,0,170527,Learning Disabilities Placemnt,321017              Nursing & Residential Care Homes,A,2022,5
880,Community and Housing,INDEPENDENCE HOMES LTD,873669,31-Aug-22,1436.89,0,170527,Learning Disabilities Placemnt,321017              Nursing & Residential Care Homes,A,2022,5
881,"Children, Schools and Family",GREATER LONDON FOSTERING LTD,35763,22-Aug-22,3565,0,170596,Placements Under 18,321100              Social Community Care Supplies & Services - Children,A,2022,5
882,"Children, Schools and Family",GREATER LONDON FOSTERING LTD,35762,22-Aug-22,3565,0,170596,Placements Under 18,321100              Social Community Care Supplies & Services - Children,A,2022,5
883,"Children, Schools and Family",GREATER LONDON FOSTERING LTD,35761,22-Aug-22,3516.95,0,170596,Placements Under 18,321100              Social Community Care Supplies & Services - Children,A,2022,5
884,Community and Housing,CHOICE SUPPORT,ARINV38030MB,16-Aug-22,5056.8,0,170834,Learning Disabilities Placemnt,321000              Social Community Care Supplies & Services - Adult,A,2022,5
885,Community and Housing,CHOICE SUPPORT,ARINV38030PM,16-Aug-22,4283.42,0,170834,Learning Disabilities Placemnt,321000              Social Community Care Supplies & Services - Adult,A,2022,5
886,Community and Housing,CHOICE SUPPORT,ARINV38030MG,16-Aug-22,4736.47,0,170834,Learning Disabilities Placemnt,321000              Social Community Care Supplies & Services - Adult,A,2022,5
887,Community and Housing,CHOICE SUPPORT,ARINV38030EL,16-Aug-22,5610.2,0,170834,Learning Disabilities Placemnt,321000              Social Community Care Supplies & Services - Adult,A,2022,5
888,Community and Housing,CHOICE SUPPORT,ARINV38030RM,16-Aug-22,4412.84,0,170834,Learning Disabilities Placemnt,321000              Social Community Care Supplies & Services - Adult,A,2022,5
889,Community and Housing,CHOICE SUPPORT,ARINV38030DL,16-Aug-22,4283.42,0,170834,Learning Disabilities Placemnt,321000              Social Community Care Supplies & Services - Adult,A,2022,5
890,Community and Housing,CHOICE SUPPORT,ARINV38030RW,16-Aug-22,4736.47,0,170834,Learning Disabilities Placemnt,321000              Social Community Care Supplies & Services - Adult,A,2022,5
891,Community and Housing,CHOICE SUPPORT,ARINV38030PK,16-Aug-22,4930.63,0,170834,Learning Disabilities Placemnt,321000              Social Community Care Supplies & Services - Adult,A,2022,5
892,Community and Housing,CHOICE SUPPORT,ARINV38030LD,16-Aug-22,5060.08,0,170834,Learning Disabilities Placemnt,321000              Social Community Care Supplies & Services - Adult,A,2022,5
893,Community and Housing,CHOICE SUPPORT,ARINV38030GH,16-Aug-22,4445.23,0,170834,Learning Disabilities Placemnt,321000              Social Community Care Supplies & Services - Adult,A,2022,5
894,Community and Housing,CHOICE SUPPORT,ARINV38030FK,16-Aug-22,4930.68,0,170834,Learning Disabilities Placemnt,321000              Social Community Care Supplies & Services - Adult,A,2022,5
895,Community and Housing,CHOICE SUPPORT,ARINV38030YB,16-Aug-22,4283.42,0,170834,Learning Disabilities Placemnt,321000              Social Community Care Supplies & Services - Adult,A,2022,5
896,Community and Housing,CHOICE SUPPORT,ARINV38030EJ,16-Aug-22,4930.63,0,170834,Learning Disabilities Placemnt,321000              Social Community Care Supplies & Services - Adult,A,2022,5
897,Community and Housing,CHOICE SUPPORT,ARINV38030CW,16-Aug-22,4412.87,0,170834,Learning Disabilities Placemnt,321000              Social Community Care Supplies & Services - Adult,A,2022,5
898,Community and Housing,CHOICE SUPPORT,ARINV38030MP,16-Aug-22,4157.12,0,170834,Learning Disabilities Placemnt,321000              Social Community Care Supplies & Services - Adult,A,2022,5
899,Community and Housing,CHOICE SUPPORT,ARINV38030LW,16-Aug-22,4092.4,0,170834,Learning Disabilities Placemnt,321000              Social Community Care Supplies & Services - Adult,A,2022,5
900,Community and Housing,CHOICE SUPPORT,ARINV38030VOID,16-Aug-22,8113.83,0,170834,Learning Disabilities Placemnt,321000              Social Community Care Supplies & Services - Adult,A,2022,5
901,Community and Housing,CHOICE SUPPORT,861304,24-Aug-22,4193,0,170834,Learning Disabilities Placemnt,321000              Social Community Care Supplies & Services - Adult,A,2022,5
902,Community and Housing,REDACTED PERSONAL DATA,864034,16-Aug-22,1591,0,170878,Learning Disabilities Placemnt,DIRECT PAYMENTS,R,2022,5
903,Community and Housing,REDACTED PERSONAL DATA,863904,16-Aug-22,1304.64,0,171056,Phys/Sens Placements - East,DIRECT PAYMENTS,R,2022,5
904,Community and Housing,ST GEORGES RES. CARE HOME,861335,04-Aug-22,4871.4,0,171491,Learning Disabilities Placemnt,321017              Nursing & Residential Care Homes,A,2022,5
905,Community and Housing,ST GEORGES RES. CARE HOME,861360,04-Aug-22,4024.2,0,171491,Learning Disabilities Placemnt,321017              Nursing & Residential Care Homes,A,2022,5
906,Community and Housing,ST GEORGES RES. CARE HOME,872200,31-Aug-22,4871.4,0,171491,Learning Disabilities Placemnt,321017              Nursing & Residential Care Homes,A,2022,5
907,Community and Housing,ST GEORGES RES. CARE HOME,872225,31-Aug-22,4024.2,0,171491,Learning Disabilities Placemnt,321017              Nursing & Residential Care Homes,A,2022,5
908,"Children, Schools and Family",SSD LIMITED,SI-392,01-Aug-22,1566.67,261.11,171736, Children's Centres Support,190000              Facilities & Management Services,A,2022,5
909,"Children, Schools and Family",SSD LIMITED,SI-393,01-Aug-22,643.34,107.22,171736, Children's Centres Support,190000              Facilities & Management Services,A,2022,5
910,"Children, Schools and Family",SSD LIMITED,SI-395,01-Aug-22,1218.06,203.01,171736, Children's Centres Support,190000              Facilities & Management Services,A,2022,5
911,"Children, Schools and Family",SSD LIMITED,SI-397,01-Aug-22,1274.81,212.47,171736, Children's Centres Support,190000              Facilities & Management Services,A,2022,5
912,"Children, Schools and Family",SSD LIMITED,SI-398,01-Aug-22,1229.52,204.92,171736, Children's Centres Support,190000              Facilities & Management Services,A,2022,5
913,"Children, Schools and Family",SSD LIMITED,SI-400,26-Aug-22,643.4,107.23,171736, Children's Centres Support,190000              Facilities & Management Services,A,2022,5
914,"Children, Schools and Family",SSD LIMITED,SI-401,01-Aug-22,2683.1,447.18,171736, Children's Centres Support,190000              Facilities & Management Services,A,2022,5
915,Capital,SSD LIMITED,SI-435,16-Aug-22,9979.2,1663.2,171736,Works to other buildings,190000              Facilities & Management Services,A,2022,5
916,Corporate Services,SSD LIMITED,SI-427,18-Aug-22,3309.6,551.6,171736,Corporate Services Buildings,190000              Facilities & Management Services,A,2022,5
917,Community and Housing,REDACTED PERSONAL DATA,863889,16-Aug-22,588.08,0,172070,Learning Disabilities Placemnt,DIRECT PAYMENTS,R,2022,5
918,Community and Housing,NORBURY PROPERTY SERV LDN LTD,SI-7477,23-Aug-22,10402.75,0,172104,Bed & Breakfast - accomm,321000              Social Community Care Supplies & Services - Adult,A,2022,5
919,Community and Housing,EALING COUNCIL,860986,04-Aug-22,2985.92,0,172129,Mental Health Placements,OLA,A,2022,5
920,Community and Housing,EALING COUNCIL,871850,31-Aug-22,2985.92,0,172129,Mental Health Placements,OLA,A,2022,5
921,Community and Housing,CARRICKS BROOK,861000,04-Aug-22,6536.16,0,172297,Learning Disabilities Placemnt,321017              Nursing & Residential Care Homes,A,2022,5
922,Community and Housing,CARRICKS BROOK,871863,31-Aug-22,6536.16,0,172297,Learning Disabilities Placemnt,321017              Nursing & Residential Care Homes,A,2022,5
923,Community and Housing,BROADHAM CARE LTD,861052,04-Aug-22,7386.96,0,172298,Learning Disabilities Placemnt,321017              Nursing & Residential Care Homes,A,2022,5
924,Community and Housing,BROADHAM CARE LTD,861319,04-Aug-22,6135.44,0,172298,Learning Disabilities Placemnt,321017              Nursing & Residential Care Homes,A,2022,5
925,Community and Housing,BROADHAM CARE LTD,871915,31-Aug-22,7386.96,0,172298,Learning Disabilities Placemnt,321017              Nursing & Residential Care Homes,A,2022,5
926,Community and Housing,BROADHAM CARE LTD,872182,31-Aug-22,6135.44,0,172298,Learning Disabilities Placemnt,321017              Nursing & Residential Care Homes,A,2022,5
927,Community and Housing,REDACTED PERSONAL DATA,864109,16-Aug-22,845.76,0,172912,Learning Disabilities Placemnt,DIRECT PAYMENTS,R,2022,5
928,Community and Housing,REDACTED PERSONAL DATA,863926,16-Aug-22,890.96,0,172914,Learning Disabilities Placemnt,DIRECT PAYMENTS,R,2022,5
929,"Children, Schools and Family",REDACTED PERSONAL DATA,860191,01-Aug-22,552.32,0,172922,Fostering Recruit/Assessment,321100              Social Community Care Supplies & Services - Children,R,2022,5
930,"Children, Schools and Family",REDACTED PERSONAL DATA,865422,15-Aug-22,552.32,0,172922,Fostering Recruit/Assessment,321100              Social Community Care Supplies & Services - Children,R,2022,5
931,"Children, Schools and Family",REDACTED PERSONAL DATA,871739,31-Aug-22,552.32,0,172922,Fostering Recruit/Assessment,321100              Social Community Care Supplies & Services - Children,R,2022,5
932,Community and Housing,REDACTED PERSONAL DATA,864524,16-Aug-22,636,0,172936,Phys/Sens Placements - East,DIRECT PAYMENTS,R,2022,5
933,Community and Housing,HAVERING COURT NURSING HOME,860967,04-Aug-22,4678.12,0,173297,Older People Placements - East,321017              Nursing & Residential Care Homes,A,2022,5
934,Community and Housing,HAVERING COURT NURSING HOME,871829,31-Aug-22,4678.12,0,173297,Older People Placements - East,321017              Nursing & Residential Care Homes,A,2022,5
935,Community and Housing,REDACTED PERSONAL DATA,863608,16-Aug-22,706.6,0,173308,Phys/Sens Placements - East,DIRECT PAYMENTS,R,2022,5
936,"Children, Schools and Family",REDACTED PERSONAL DATA,860116,01-Aug-22,719.06,0,173600,Fostering Recruit/Assessment,321100              Social Community Care Supplies & Services - Children,R,2022,5
937,"Children, Schools and Family",REDACTED PERSONAL DATA,865349,15-Aug-22,719.06,0,173600,Fostering Recruit/Assessment,321100              Social Community Care Supplies & Services - Children,R,2022,5
938,"Children, Schools and Family",REDACTED PERSONAL DATA,871668,31-Aug-22,719.06,0,173600,Fostering Recruit/Assessment,321100              Social Community Care Supplies & Services - Children,R,2022,5
939,"Children, Schools and Family",REDACTED PERSONAL DATA,865202,15-Aug-22,3603.24,0,173793,Child Disabilities - Placement,CSF-DIRECT PAYMENTS,R,2022,5
940,Community and Housing,HARBOUR CARE (UK) LTD,861268,04-Aug-22,6448.68,0,173947,Learning Disabilities Placemnt,321017              Nursing & Residential Care Homes,A,2022,5
941,Community and Housing,HARBOUR CARE (UK) LTD,872129,31-Aug-22,6448.68,0,173947,Learning Disabilities Placemnt,321017              Nursing & Residential Care Homes,A,2022,5
942,Community and Housing,ASHINGTON HOUSE,861021,04-Aug-22,4406.68,0,174259,Learning Disabilities Placemnt,321017              Nursing & Residential Care Homes,A,2022,5
943,Community and Housing,ASHINGTON HOUSE,871886,31-Aug-22,4406.68,0,174259,Learning Disabilities Placemnt,321017              Nursing & Residential Care Homes,A,2022,5
944,Community and Housing,REDACTED PERSONAL DATA,863783,16-Aug-22,779.6,0,174449,Phys/Sens Placements - East,DIRECT PAYMENTS,R,2022,5
945,Community and Housing,REDACTED PERSONAL DATA,864320,16-Aug-22,2702,0,174465,Older People Placements - East,DIRECT PAYMENTS,R,2022,5
946,Community and Housing,SUPREME HOMES,30110,12-Aug-22,3280,0,174758,Mental Health Placements,321017              Nursing & Residential Care Homes,A,2022,5
947,Community and Housing,ALPENBEST LIMITED,24072022-510147,23-Aug-22,950.74,0,174789,Older People Placements - East,321000              Social Community Care Supplies & Services - Adult,A,2022,5
948,Community and Housing,ALPENBEST LIMITED,24072022-963516,23-Aug-22,545.57,0,174789,Older People Placements - East,321000              Social Community Care Supplies & Services - Adult,A,2022,5
949,Community and Housing,ALPENBEST LIMITED,31072022-510147,24-Aug-22,950.74,0,174789,Older People Placements - East,321000              Social Community Care Supplies & Services - Adult,A,2022,5
950,Community and Housing,ALPENBEST LIMITED,31072022-963516,24-Aug-22,545.57,0,174789,Older People Placements - East,321000              Social Community Care Supplies & Services - Adult,A,2022,5
951,Community and Housing,ALPENBEST LIMITED,07082022-510147,24-Aug-22,950.74,0,174789,Older People Placements - East,321000              Social Community Care Supplies & Services - Adult,A,2022,5
952,Community and Housing,ALPENBEST LIMITED,07082022-963516,24-Aug-22,534.1,0,174789,Older People Placements - East,321000              Social Community Care Supplies & Services - Adult,A,2022,5
953,Community and Housing,ALPENBEST LIMITED,14082022-510147,25-Aug-22,950.74,0,174789,Older People Placements - East,321000              Social Community Care Supplies & Services - Adult,A,2022,5
954,Community and Housing,ALPENBEST LIMITED,14082022-963516,25-Aug-22,545.57,0,174789,Older People Placements - East,321000              Social Community Care Supplies & Services - Adult,A,2022,5
955,Community and Housing,SUTTON COURT CARE CENTRE,861064,04-Aug-22,2827.36,0,174833,Older People Placements - East,321017              Nursing & Residential Care Homes,A,2022,5
956,Community and Housing,SUTTON COURT CARE CENTRE,861161,04-Aug-22,3163.36,0,174833,Older People Placements - East,321017              Nursing & Residential Care Homes,A,2022,5
957,Community and Housing,SUTTON COURT CARE CENTRE,861185,04-Aug-22,4049.6,0,174833,Phys/Sens Placements - East,321017              Nursing & Residential Care Homes,A,2022,5
958,Community and Housing,SUTTON COURT CARE CENTRE,861340,04-Aug-22,4097.28,0,174833,Phys/Sens Placements - East,321017              Nursing & Residential Care Homes,A,2022,5
959,Community and Housing,SUTTON COURT CARE CENTRE,871928,31-Aug-22,2827.36,0,174833,Older People Placements - East,321017              Nursing & Residential Care Homes,A,2022,5
960,Community and Housing,SUTTON COURT CARE CENTRE,872022,31-Aug-22,3163.36,0,174833,Older People Placements - East,321017              Nursing & Residential Care Homes,A,2022,5
961,Community and Housing,SUTTON COURT CARE CENTRE,872048,31-Aug-22,4049.6,0,174833,Phys/Sens Placements - East,321017              Nursing & Residential Care Homes,A,2022,5
962,Community and Housing,SUTTON COURT CARE CENTRE,872205,31-Aug-22,4097.28,0,174833,Phys/Sens Placements - East,321017              Nursing & Residential Care Homes,A,2022,5
963,Community and Housing,REDACTED PERSONAL DATA,864086,16-Aug-22,636.4,0,174975,Learning Disabilities Placemnt,DIRECT PAYMENTS,R,2022,5
964,"Children, Schools and Family",REDACTED PERSONAL DATA,865162,16-Aug-22,648.56,0,175042,CWD Placements,CSF-DIRECT PAYMENTS,R,2022,5
965,"Children, Schools and Family",PROSPECT EDUC (TECH)TRUST LTD,PETTL1274,17-Aug-22,10449.39,0,175114,Non-Delegated Statements,170000              Education,A,2022,5
966,Corporate Services,COSMIC EUROPE LIMTED,UK6685,08-Aug-22,1248,208,175169,Translation Service,TRANSLATIONS,A,2022,5
967,Corporate Services,COSMIC EUROPE LIMTED,UK6686,08-Aug-22,750,125,175169,Translation Service,TRANSLATIONS,A,2022,5
968,Corporate Services,COSMIC EUROPE LIMTED,UK6690,08-Aug-22,702,117,175169,Translation Service,TRANSLATIONS,A,2022,5
969,Corporate Services,COSMIC EUROPE LIMTED,UK6691,08-Aug-22,1038,173,175169,Translation Service,TRANSLATIONS,A,2022,5
970,Corporate Services,COSMIC EUROPE LIMTED,UK6735,08-Aug-22,4194,699,175169,Translation Service,TRANSLATIONS,A,2022,5
971,Corporate Services,COSMIC EUROPE LIMTED,UK6736,08-Aug-22,1008,168,175169,Translation Service,TRANSLATIONS,A,2022,5
972,"Children, Schools and Family",REDACTED PERSONAL DATA,860077,01-Aug-22,539.84,0,175254,Fostering Recruit/Assessment,321100              Social Community Care Supplies & Services - Children,R,2022,5
973,"Children, Schools and Family",REDACTED PERSONAL DATA,865309,15-Aug-22,539.84,0,175254,Fostering Recruit/Assessment,321100              Social Community Care Supplies & Services - Children,R,2022,5
974,"Children, Schools and Family",REDACTED PERSONAL DATA,871627,31-Aug-22,539.84,0,175254,Fostering Recruit/Assessment,321100              Social Community Care Supplies & Services - Children,R,2022,5
975,"Children, Schools and Family",GLOBAL MEDIATION LTD,INV-94035,22-Aug-22,3960,660,175270,Non-Delegated Statements,260000              Human Resources                                                                           Confirmed,A,2022,5
976,Community and Housing,KISIMUL SCHOOL,860960,04-Aug-22,11109.72,0,175545,Learning Disabilities Placemnt,321017              Nursing & Residential Care Homes,A,2022,5
977,Community and Housing,KISIMUL SCHOOL,861347,04-Aug-22,11826.92,0,175545,Learning Disabilities Placemnt,321017              Nursing & Residential Care Homes,A,2022,5
978,Community and Housing,KISIMUL SCHOOL,871823,31-Aug-22,11109.72,0,175545,Learning Disabilities Placemnt,321017              Nursing & Residential Care Homes,A,2022,5
979,Community and Housing,KISIMUL SCHOOL,872212,31-Aug-22,11826.92,0,175545,Learning Disabilities Placemnt,321017              Nursing & Residential Care Homes,A,2022,5
980,Community and Housing,REDACTED PERSONAL DATA,863917,16-Aug-22,1781.92,0,175782,Phys/Sens Placements - East,DIRECT PAYMENTS,R,2022,5
981,Corporate Services,TWOFOLD LTD,9041,11-Aug-22,610,101.66,175861,Legal Shared Service,270000              Information Communication Technology,A,2022,5
982,Community and Housing,REDACTED PERSONAL DATA,864203,16-Aug-22,1336.44,0,175960,Learning Disabilities Placemnt,DIRECT PAYMENTS,R,2022,5
983,Community and Housing,Care for Veterans,861254,04-Aug-22,4294.28,0,176384,Phys/Sens Placements - East,321017              Nursing & Residential Care Homes,A,2022,5
984,Community and Housing,Care for Veterans,872115,31-Aug-22,4294.28,0,176384,Phys/Sens Placements - East,321017              Nursing & Residential Care Homes,A,2022,5
985,"Children, Schools and Family",LONDON BOROUGH OF WANDSWORTH,2101015806,04-Aug-22,2701.84,0,176557,Placements Under 18,OLA,A,2022,5
986,Community and Housing,REDACTED PERSONAL DATA,863641,16-Aug-22,572.76,0,176619,Phys/Sens Placements - East,DIRECT PAYMENTS,R,2022,5
987,Community and Housing,REDACTED PERSONAL DATA,864478,16-Aug-22,5345.76,0,176783,Phys/Sens Placements - East,DIRECT PAYMENTS,R,2022,5
988,"Children, Schools and Family",THE PRE-SCHOOL GROUP LTD,P1 22 LATE START,24-Aug-22,714,0,176785,EARLY YEARS NURSERY GRANTS,200000              Financial Services,A,2022,5
989,Community and Housing,REDACTED PERSONAL DATA,864413,16-Aug-22,2677.04,0,176868,Phys/Sens Placements - East,DIRECT PAYMENTS,R,2022,5
990,Community and Housing,SPRING LAKE CARE HOME LTD,861136,04-Aug-22,11418,0,177067,Learning Disabilities Placemnt,321017              Nursing & Residential Care Homes,A,2022,5
991,Community and Housing,SPRING LAKE CARE HOME LTD,861332,04-Aug-22,6468,0,177067,Learning Disabilities Placemnt,321017              Nursing & Residential Care Homes,A,2022,5
992,Community and Housing,SPRING LAKE CARE HOME LTD,871996,31-Aug-22,11418,0,177067,Learning Disabilities Placemnt,321017              Nursing & Residential Care Homes,A,2022,5
993,Community and Housing,SPRING LAKE CARE HOME LTD,872197,31-Aug-22,6468,0,177067,Learning Disabilities Placemnt,321017              Nursing & Residential Care Homes,A,2022,5
994,Community and Housing,REDACTED PERSONAL DATA,864457,16-Aug-22,652.32,0,177115,Phys/Sens Placements - East,DIRECT PAYMENTS,R,2022,5
995,"Children, Schools and Family",REDACTED PERSONAL DATA,860084,01-Aug-22,931,0,177211,Fostering Recruit/Assessment,321100              Social Community Care Supplies & Services - Children,R,2022,5
996,"Children, Schools and Family",REDACTED PERSONAL DATA,865316,15-Aug-22,931,0,177211,Fostering Recruit/Assessment,321100              Social Community Care Supplies & Services - Children,R,2022,5
997,"Children, Schools and Family",REDACTED PERSONAL DATA,871634,31-Aug-22,931,0,177211,Fostering Recruit/Assessment,321100              Social Community Care Supplies & Services - Children,R,2022,5
998,"Children, Schools and Family",HA TUTORS LTD,INV-12671,09-Aug-22,2398.8,399.8,177219,Non-Delegated Statements,170000              Education,A,2022,5
999,"Children, Schools and Family",HA TUTORS LTD,INV-12678,09-Aug-22,2116.8,352.8,177219,Non-Delegated Statements,170000              Education,A,2022,5
1000,"Children, Schools and Family",HA TUTORS LTD,INV-15565,09-Aug-22,3962.01,660.33,177219,Non-Delegated Statements,170000              Education,A,2022,5
1001,"Children, Schools and Family",HA TUTORS LTD,INV-12675,09-Aug-22,1747.2,291.2,177219,Non-Delegated Statements,170000              Education,A,2022,5
1002,"Children, Schools and Family",HA TUTORS LTD,INV-12672,09-Aug-22,4692.8,782.13,177219,Non-Delegated Statements,170000              Education,A,2022,5
1003,"Children, Schools and Family",HA TUTORS LTD,INV-12680,09-Aug-22,1562.4,260.4,177219,Non-Delegated Statements,170000              Education,A,2022,5
1004,"Children, Schools and Family",HA TUTORS LTD,INV-12681,09-Aug-22,1495.2,249.2,177219,Non-Delegated Statements,170000              Education,A,2022,5
1005,"Children, Schools and Family",HA TUTORS LTD,INV-12674,09-Aug-22,1310.4,218.4,177219,Non-Delegated Statements,170000              Education,A,2022,5
1006,"Children, Schools and Family",HA TUTORS LTD,INV-12682,09-Aug-22,2133.6,355.6,177219,Non-Delegated Statements,170000              Education,A,2022,5
1007,"Children, Schools and Family",HA TUTORS LTD,INV-12676,09-Aug-22,3511.2,585.2,177219,Non-Delegated Statements,170000              Education,A,2022,5
1008,"Children, Schools and Family",HA TUTORS LTD,INV-12712,15-Aug-22,655.2,109.2,177219,PupilPremium- Virtual School,170000              Education,A,2022,5
1009,"Children, Schools and Family",HA TUTORS LTD,INV-12673,11-Aug-22,5955.6,992.6,177219,Non-Delegated Statements,170000              Education,A,2022,5
1010,Environment and Regeneration,PERMANENT FUTURES,5060,11-Aug-22,11310,1885,177323,Reg. Serv - Shared Mgnt Costs,260000              Human Resources                                                                           Confirmed,A,2022,5
1011,Environment and Regeneration,PERMANENT FUTURES,249422,19-Aug-22,17316,2886,177323,Reg. Serv - Shared Mgnt Costs,260000              Human Resources                                                                           Confirmed,A,2022,5
1012,Environment and Regeneration,PERMANENT FUTURES,3420,24-Aug-22,9990,1665,177323,Reg. Serv - Shared Mgnt Costs,260000              Human Resources                                                                           Confirmed,A,2022,5
1013,Unassigned,UK POWER NETWORKS (OPERATIONS),92126516,12-Aug-22,1920,320,177333,Environment and Regeneration,180000              Environmental Services,A,2022,5
1014,"Children, Schools and Family",EXPERT IN MIND,32824,09-Aug-22,1460.16,243.36,177342,Family Supp SafeGuard - Place,280000              Legal Services                                                                            Confirmed,A,2022,5
1015,Corporate Services,EXPERT IN MIND,35068,15-Aug-22,533.52,88.92,177342,SLLP - Disbursements,280000              Legal Services                                                                            Confirmed,A,2022,5
1016,Corporate Services,EXPERT IN MIND,36047,16-Aug-22,648,108,177342,SLLP - Disbursements,280000              Legal Services                                                                            Confirmed,A,2022,5
1017,Corporate Services,EXPERT IN MIND,33612,19-Aug-22,781.96,130.33,177342,SLLP - Disbursements,280000              Legal Services                                                                            Confirmed,A,2022,5
1018,Community and Housing,HYTYME B AND B,26330,15-Aug-22,12522,2087,177425,Bed & Breakfast - accomm,321000              Social Community Care Supplies & Services - Adult,A,2022,5
1019,Community and Housing,HYTYME B AND B,26202,15-Aug-22,1736.4,289.4,177425,Housing Strategy,321000              Social Community Care Supplies & Services - Adult,A,2022,5
1020,Community and Housing,HYTYME B AND B,26272,15-Aug-22,4648.8,774.8,177425,Housing Strategy,321000              Social Community Care Supplies & Services - Adult,A,2022,5
1021,Community and Housing,HYTYME B AND B,26332,15-Aug-22,4724.4,787.4,177425,Housing Strategy,321000              Social Community Care Supplies & Services - Adult,A,2022,5
1022,"Children, Schools and Family",HYTYME B AND B,26366,24-Aug-22,1302,217,177425,Family Assessmt & Intervention,321000              Social Community Care Supplies & Services - Adult,A,2022,5
1023,Community and Housing,REDACTED PERSONAL DATA,863789,16-Aug-22,710.2,0,177453,Phys/Sens Placements - East,DIRECT PAYMENTS,R,2022,5
1024,Community and Housing,REDACTED PERSONAL DATA,863757,16-Aug-22,724.72,0,177476,Learning Disabilities Placemnt,DIRECT PAYMENTS,R,2022,5
1025,Community and Housing,REDACTED PERSONAL DATA,863645,16-Aug-22,1197.28,0,177502,Phys/Sens Placements - East,DIRECT PAYMENTS,R,2022,5
1026,Corporate Services,SUSTAINABLE MERTON,STORAGE FOR COMM,31-Aug-22,3500,0,177594,Local Welfare Support,190000              Facilities & Management Services,A,2022,5
1027,Corporate Services,HPI LIMITED,6160-001306723,22-Aug-22,549.64,91.61,177649,Local Taxation Bailiffs,200000              Financial Services,A,2022,5
1028,"Children, Schools and Family",Catch 22 Charity Ltd,61877,11-Aug-22,3594,599,177705,Care Experienced Over 18,321100              Social Community Care Supplies & Services - Children,A,2022,5
1029,"Children, Schools and Family",Catch 22 Charity Ltd,62362,16-Aug-22,108000,18000,177705, Young Person Substance Misuse,321100              Social Community Care Supplies & Services - Children,A,2022,5
1030,Community and Housing,REDACTED PERSONAL DATA,864364,16-Aug-22,572.76,0,177739,Phys/Sens Placements - East,DIRECT PAYMENTS,R,2022,5
1031,"Children, Schools and Family",WHITE HUT STUDIO,INV0021,08-Aug-22,1200,0,177740,PupilPremium- Virtual School,290000              Arts & Leisure Services                                                                   Confirmed,A,2022,5
1032,"Children, Schools and Family",WHITE HUT STUDIO,INV0019,15-Aug-22,600,0,177740,PupilPremium- Virtual School,290000              Arts & Leisure Services                                                                   Confirmed,A,2022,5
1033,Community and Housing,REDACTED PERSONAL DATA,864294,16-Aug-22,668.2,0,177785,Phys/Sens Placements - East,DIRECT PAYMENTS,R,2022,5
1034,Corporate Services,Toye Kenning and Spencer,SI0000034232,11-Aug-22,2666.46,444.41,177827,Democracy Services,140000              Clothing,A,2022,5
1035,Community and Housing,REDACTED PERSONAL DATA,863631,16-Aug-22,731.4,0,177967,Learning Disabilities Placemnt,DIRECT PAYMENTS,R,2022,5
1036,Community and Housing,REDACTED PERSONAL DATA,864217,16-Aug-22,890.96,0,177999,Learning Disabilities Placemnt,DIRECT PAYMENTS,R,2022,5
1037,Community and Housing,REDACTED PERSONAL DATA,864250,16-Aug-22,3784,0,178412,Learning Disabilities Placemnt,DIRECT PAYMENTS,R,2022,5
1038,Community and Housing,BRAMBLEDOWN CARE HOME,861146,04-Aug-22,7033.8,0,178465,Phys/Sens Placements - East,321017              Nursing & Residential Care Homes,A,2022,5
1039,Community and Housing,BRAMBLEDOWN CARE HOME,872006,31-Aug-22,7033.8,0,178465,Phys/Sens Placements - East,321017              Nursing & Residential Care Homes,A,2022,5
1040,Community and Housing,BRAMBLEDOWN CARE HOME,873583,31-Aug-22,1348.75,0,178465,Phys/Sens Placements - East,321017              Nursing & Residential Care Homes,A,2022,5
1041,Community and Housing,LOVE WALK RESIDENTIAL HOME,861144,04-Aug-22,3193,0,178620,Phys/Sens Placements - East,321017              Nursing & Residential Care Homes,A,2022,5
1042,Community and Housing,LOVE WALK RESIDENTIAL HOME,872004,31-Aug-22,3193,0,178620,Phys/Sens Placements - East,321017              Nursing & Residential Care Homes,A,2022,5
1043,Community and Housing,KEW HOUSE,861151,04-Aug-22,3289.24,0,178621,Older People Placements - East,321017              Nursing & Residential Care Homes,A,2022,5
1044,Community and Housing,KEW HOUSE,861227,04-Aug-22,5800,0,178621,Older People Placements - East,321017              Nursing & Residential Care Homes,A,2022,5
1045,Community and Housing,KEW HOUSE,872011,31-Aug-22,3289.24,0,178621,Older People Placements - East,321017              Nursing & Residential Care Homes,A,2022,5
1046,Community and Housing,KEW HOUSE,872087,31-Aug-22,5800,0,178621,Older People Placements - East,321017              Nursing & Residential Care Homes,A,2022,5
1047,Community and Housing,REDACTED PERSONAL DATA,864018,16-Aug-22,919.76,0,178767,Learning Disabilities Placemnt,DIRECT PAYMENTS,R,2022,5
1048,Community and Housing,REDACTED PERSONAL DATA,864244,16-Aug-22,1882.52,0,178802,Learning Disabilities Placemnt,DIRECT PAYMENTS,R,2022,5
1049,Community and Housing,REDACTED PERSONAL DATA,864070,16-Aug-22,1430.44,0,178874,Learning Disabilities Placemnt,DIRECT PAYMENTS,R,2022,5
1050,Corporate Services,PENNA PLC,656706,09-Aug-22,18859.8,3143.3,179007,Director of Corporate Services,190000              Facilities & Management Services,A,2022,5
1051,Community and Housing,REDACTED PERSONAL DATA,864384,16-Aug-22,1336.44,0,179049,Learning Disabilities Placemnt,DIRECT PAYMENTS,R,2022,5
1052,"Children, Schools and Family",HAYS SPECIALIST RECRUITM'T LTD,1012291837,16-Aug-22,4399.6,733.27,179169,Policy Planning & Performance,260000              Human Resources,A,2022,5
1053,Environment and Regeneration,HAYS SPECIALIST RECRUITM'T LTD,1012350709,30-Aug-22,2070,345,179169,Reg. Serv - Shared Mgnt Costs,260000              Human Resources,A,2022,5
1054,Environment and Regeneration,HAYS SPECIALIST RECRUITM'T LTD,1012356765,30-Aug-22,4400.4,733.4,179169,Reg. Serv - Shared Mgnt Costs,260000              Human Resources,A,2022,5
1055,Environment and Regeneration,HAYS SPECIALIST RECRUITM'T LTD,1012356769,30-Aug-22,4399.2,733.2,179169,Reg. Serv - Shared Mgnt Costs,260000              Human Resources,A,2022,5
1056,Environment and Regeneration,HAYS SPECIALIST RECRUITM'T LTD,1012350758,30-Aug-22,2760,460,179169,Crime and Strategy Team,260000              Human Resources,A,2022,5
1057,Environment and Regeneration,HAYS SPECIALIST RECRUITM'T LTD,1012356766,30-Aug-22,4400.4,733.4,179169,Crime and Strategy Team,260000              Human Resources,A,2022,5
1058,Environment and Regeneration,HAYS SPECIALIST RECRUITM'T LTD,1012350519,30-Aug-22,4400.4,733.4,179169,Parking - Car Parks,260000              Human Resources,A,2022,5
1059,Environment and Regeneration,HAYS SPECIALIST RECRUITM'T LTD,1012350756,30-Aug-22,1440,240,179169,Parking - Car Parks,260000              Human Resources,A,2022,5
1060,Community and Housing,REDACTED PERSONAL DATA,864453,16-Aug-22,1193.28,0,179299,Older People Placements - East,DIRECT PAYMENTS,R,2022,5
1061,Community and Housing,REDACTED PERSONAL DATA,864167,16-Aug-22,1739.6,0,179332,Phys/Sens Placements - East,DIRECT PAYMENTS,R,2022,5
1062,Community and Housing,REDACTED PERSONAL DATA,863594,16-Aug-22,4318.6,0,179383,Learning Disabilities Placemnt,DIRECT PAYMENTS,R,2022,5
1063,"Children, Schools and Family",REDACTED PERSONAL DATA,3 -FP,16-Aug-22,1793.38,0,179598,Placements Under 18,321000              Social Community Care Supplies & Services - Adult,R,2022,5
1064,"Children, Schools and Family",REDACTED PERSONAL DATA,872518,26-Aug-22,1175.43,0,179709,Placements Under 18,321100              Social Community Care Supplies & Services - Children,R,2022,5
1065,Community and Housing,ELYSIUM CARE PARTNERSHIPS LTD,861049,04-Aug-22,10202.48,0,179734,Learning Disabilities Placemnt,321017              Nursing & Residential Care Homes,A,2022,5
1066,Community and Housing,ELYSIUM CARE PARTNERSHIPS LTD,861176,04-Aug-22,9049.16,0,179734,Learning Disabilities Placemnt,321017              Nursing & Residential Care Homes,A,2022,5
1067,Community and Housing,ELYSIUM CARE PARTNERSHIPS LTD,861191,04-Aug-22,3462.2,0,179734,Learning Disabilities Placemnt,321017              Nursing & Residential Care Homes,A,2022,5
1068,Community and Housing,ELYSIUM CARE PARTNERSHIPS LTD,861307,04-Aug-22,9821,0,179734,Learning Disabilities Placemnt,321017              Nursing & Residential Care Homes,A,2022,5
1069,Community and Housing,ELYSIUM CARE PARTNERSHIPS LTD,871913,31-Aug-22,10202.48,0,179734,Learning Disabilities Placemnt,321017              Nursing & Residential Care Homes,A,2022,5
1070,Community and Housing,ELYSIUM CARE PARTNERSHIPS LTD,872038,31-Aug-22,9049.16,0,179734,Learning Disabilities Placemnt,321017              Nursing & Residential Care Homes,A,2022,5
1071,Community and Housing,ELYSIUM CARE PARTNERSHIPS LTD,872054,31-Aug-22,3462.2,0,179734,Learning Disabilities Placemnt,321017              Nursing & Residential Care Homes,A,2022,5
1072,Community and Housing,ELYSIUM CARE PARTNERSHIPS LTD,872171,31-Aug-22,9821,0,179734,Learning Disabilities Placemnt,321017              Nursing & Residential Care Homes,A,2022,5
1073,Community and Housing,WESTHOPE LTD,861148,04-Aug-22,5292.32,0,179748,Learning Disabilities Placemnt,321017              Nursing & Residential Care Homes,A,2022,5
1074,Community and Housing,WESTHOPE LTD,872008,31-Aug-22,5292.32,0,179748,Learning Disabilities Placemnt,321017              Nursing & Residential Care Homes,A,2022,5
1075,Unassigned,BARKLANDS TREE SPECIALISTS,292,15-Aug-22,1500,250,179780,Mitcham Common Conservators,240000              Horticultural,A,2022,5
1076,"Children, Schools and Family",ROEHAMPTON LODGE PRIORY,4290002214,01-Aug-22,22525,0,179785,Non-Delegated Statements,170000              Education,A,2022,5
1077,"Children, Schools and Family",ROEHAMPTON LODGE PRIORY,4290002213,01-Aug-22,22283.66,0,179785,Non-Delegated Statements,170000              Education,A,2022,5
1078,"Children, Schools and Family",ROEHAMPTON LODGE PRIORY,4290002212,01-Aug-22,22103.33,0,179785,Non-Delegated Statements,170000              Education,A,2022,5
1079,"Children, Schools and Family",ROEHAMPTON LODGE PRIORY,4290002219,01-Aug-22,21470,0,179785,Non-Delegated Statements,170000              Education,A,2022,5
1080,"Children, Schools and Family",ROEHAMPTON LODGE PRIORY,4290002211,01-Aug-22,20857,0,179785,Non-Delegated Statements,170000              Education,A,2022,5
1081,"Children, Schools and Family",ROEHAMPTON LODGE PRIORY,4290002218,01-Aug-22,20857,0,179785,Non-Delegated Statements,170000              Education,A,2022,5
1082,"Children, Schools and Family",ROEHAMPTON LODGE PRIORY,4290002210,01-Aug-22,21703.33,0,179785,Non-Delegated Statements,170000              Education,A,2022,5
1083,"Children, Schools and Family",ROEHAMPTON LODGE PRIORY,4290002217,01-Aug-22,21107,0,179785,Non-Delegated Statements,170000              Education,A,2022,5
1084,"Children, Schools and Family",ROEHAMPTON LODGE PRIORY,4290002216,01-Aug-22,21620,0,179785,Non-Delegated Statements,170000              Education,A,2022,5
1085,"Children, Schools and Family",ROEHAMPTON LODGE PRIORY,4290002215,01-Aug-22,21745,0,179785,Non-Delegated Statements,170000              Education,A,2022,5
1086,Community and Housing,SUNNINGDALE HOUSE CARE HOME,861301,04-Aug-22,2575,0,179794,Learning Disabilities Placemnt,321017              Nursing & Residential Care Homes,A,2022,5
1087,Community and Housing,SUNNINGDALE HOUSE CARE HOME,872165,31-Aug-22,2575,0,179794,Learning Disabilities Placemnt,321017              Nursing & Residential Care Homes,A,2022,5
1088,Community and Housing,SUNLIGHT HOUSE,861080,04-Aug-22,7667.6,0,179813,Learning Disabilities Placemnt,321017              Nursing & Residential Care Homes,A,2022,5
1089,Community and Housing,SUNLIGHT HOUSE,861198,04-Aug-22,5140,0,179813,Learning Disabilities Placemnt,321017              Nursing & Residential Care Homes,A,2022,5
1090,Community and Housing,SUNLIGHT HOUSE,871945,31-Aug-22,7667.6,0,179813,Learning Disabilities Placemnt,321017              Nursing & Residential Care Homes,A,2022,5
1091,Community and Housing,SUNLIGHT HOUSE,872060,31-Aug-22,5140,0,179813,Learning Disabilities Placemnt,321017              Nursing & Residential Care Homes,A,2022,5
1092,"Children, Schools and Family",COLLIERS WOOD VILLAGE DAY NUR.,P1 22 LATE START,24-Aug-22,1857.6,0,179896,EARLY YEARS NURSERY GRANTS,200000              Financial Services,A,2022,5
1093,Capital,CYCLEHOOP LTD,INV011674,23-Aug-22,20724,3454,179899,Cycle Route Improvements,380000              Vehicle Management,A,2022,5
1094,Capital,CYCLEHOOP LTD,INV011688,30-Aug-22,2808,468,179899,Cycle Route Improvements,380000              Vehicle Management,A,2022,5
1095,Capital,SUTTON STAYING PUT,3190284906,04-Aug-22,600,0,179904,Disabled Facilities Grant,200000              Financial Services,A,2022,5
1096,Capital,SUTTON STAYING PUT,3190277699,04-Aug-22,703,0,179904,Disabled Facilities Grant,200000              Financial Services,A,2022,5
1097,Capital,SUTTON STAYING PUT,3190284862,04-Aug-22,700,0,179904,Disabled Facilities Grant,200000              Financial Services,A,2022,5
1098,Capital,SUTTON STAYING PUT,3185418203,04-Aug-22,1104.3,184.05,179904,Disabled Facilities Grant,200000              Financial Services,A,2022,5
1099,Capital,SUTTON STAYING PUT,3190284680,04-Aug-22,655.48,109.25,179904,Disabled Facilities Grant,200000              Financial Services,A,2022,5
1100,Capital,SUTTON STAYING PUT,3190284844,11-Aug-22,700,0,179904,Disabled Facilities Grant,200000              Financial Services,A,2022,5
1101,Capital,SUTTON STAYING PUT,3190284853,11-Aug-22,1127.98,188,179904,Disabled Facilities Grant,200000              Financial Services,A,2022,5
1102,Capital,SUTTON STAYING PUT,3190331336,11-Aug-22,802.8,133.8,179904,Disabled Facilities Grant,200000              Financial Services,A,2022,5
1103,Capital,SUTTON STAYING PUT,3190331345,11-Aug-22,700,0,179904,Disabled Facilities Grant,200000              Financial Services,A,2022,5
1104,Capital,SUTTON STAYING PUT,3190277661,11-Aug-22,1275.6,212.6,179904,Disabled Facilities Grant,200000              Financial Services,A,2022,5
1105,Community and Housing,BHAKTI SHYAMA CARE CENTRE,861369,04-Aug-22,2985.6,0,179993,Older People Placements - East,321017              Nursing & Residential Care Homes,A,2022,5
1106,Community and Housing,BHAKTI SHYAMA CARE CENTRE,872233,31-Aug-22,2985.6,0,179993,Older People Placements - East,321017              Nursing & Residential Care Homes,A,2022,5
1107,"Children, Schools and Family",REAMCARE LTD,LHSRPAM082201,09-Aug-22,20105.67,0,180045,Placements Under 18,321100              Social Community Care Supplies & Services - Children Residential,A,2022,5
1108,Community and Housing,REDACTED PERSONAL DATA,864415,16-Aug-22,1109.32,0,180174,Older People Placements - East,DIRECT PAYMENTS,R,2022,5
1109,Community and Housing,SUNRISE DAY CARE,4260,15-Aug-22,510.24,0,180196,Older People Placements - East,321000              Social Community Care Supplies & Services - Adult,A,2022,5
1110,Community and Housing,SUNRISE DAY CARE,4259,15-Aug-22,510.24,0,180196,Older People Placements - East,321000              Social Community Care Supplies & Services - Adult,A,2022,5
1111,Community and Housing,SUNRISE DAY CARE,4258,15-Aug-22,510.24,0,180196,Older People Placements - East,321000              Social Community Care Supplies & Services - Adult,A,2022,5
1112,Community and Housing,SUNRISE DAY CARE,4250,15-Aug-22,680.32,0,180196,Learning Disabilities Placemnt,321000              Social Community Care Supplies & Services - Adult,A,2022,5
1113,Community and Housing,SUNRISE DAY CARE,4249,15-Aug-22,510.24,0,180196,Older People Placements - East,321000              Social Community Care Supplies & Services - Adult,A,2022,5
1114,Community and Housing,SUNRISE DAY CARE,4245,15-Aug-22,510.24,0,180196,Older People Placements - East,321000              Social Community Care Supplies & Services - Adult,A,2022,5
1115,Community and Housing,SUNRISE DAY CARE,DP4699,15-Aug-22,3013.08,0,180196,Phys/Sens Placements - East,321000              Social Community Care Supplies & Services - Adult,A,2022,5
1116,Community and Housing,SUNRISE DAY CARE,DP4698,15-Aug-22,1961.12,0,180196,Older People Placements - East,321000              Social Community Care Supplies & Services - Adult,A,2022,5
1117,Community and Housing,SUNRISE DAY CARE,DP4697,15-Aug-22,1437.84,0,180196,Older People Placements - East,321000              Social Community Care Supplies & Services - Adult,A,2022,5
1118,Community and Housing,REDACTED PERSONAL DATA,864258,16-Aug-22,3945.68,0,180232,Older People Placements - East,DIRECT PAYMENTS,R,2022,5
1119,Community and Housing,REDACTED PERSONAL DATA,864116,16-Aug-22,509.12,0,180242,Phys/Sens Placements - East,DIRECT PAYMENTS,R,2022,5
1120,Community and Housing,REDACTED PERSONAL DATA,863634,16-Aug-22,954.6,0,180282,Phys/Sens Placements - East,DIRECT PAYMENTS,R,2022,5
1121,Community and Housing,REDACTED PERSONAL DATA,864229,16-Aug-22,510.24,0,180285,Older People Placements - East,DIRECT PAYMENTS,R,2022,5
1122,Community and Housing,SEVACARE,07.08.22/20,22-Aug-22,1989.41,0,180307,Older People Placements - East,321000              Social Community Care Supplies & Services - Adult,A,2022,5
1123,Community and Housing,SEVACARE,07.08.22/27,22-Aug-22,756.31,0,180307,Older People Placements - East,321000              Social Community Care Supplies & Services - Adult,A,2022,5
1124,Community and Housing,SEVACARE,07.08.22/14,22-Aug-22,660.63,0,180307,Older People Placements - East,321000              Social Community Care Supplies & Services - Adult,A,2022,5
1125,Community and Housing,SEVACARE,07.08.22/11,22-Aug-22,1126.84,0,180307,Older People Placements - East,321000              Social Community Care Supplies & Services - Adult,A,2022,5
1126,Community and Housing,SEVACARE,07.08.22/8,22-Aug-22,669.89,0,180307,Older People Placements - East,321000              Social Community Care Supplies & Services - Adult,A,2022,5
1127,Community and Housing,SEVACARE,07.08.22/12,22-Aug-22,739.25,0,180307,Older People Placements - East,321000              Social Community Care Supplies & Services - Adult,A,2022,5
1128,Community and Housing,SEVACARE,07.08.22/22,22-Aug-22,610.4,0,180307,Older People Placements - East,321000              Social Community Care Supplies & Services - Adult,A,2022,5
1129,Community and Housing,SEVACARE,57325-752403,23-Aug-22,934.08,0,180307,Older People Placements - East,321000              Social Community Care Supplies & Services - Adult,A,2022,5
1130,Community and Housing,SEVACARE,57325-791266,23-Aug-22,583.8,0,180307,Older People Placements - East,321000              Social Community Care Supplies & Services - Adult,A,2022,5
1131,Community and Housing,SEVACARE,57325-506355,23-Aug-22,867.36,0,180307,Phys/Sens Placements - East,321000              Social Community Care Supplies & Services - Adult,A,2022,5
1132,Community and Housing,SEVACARE,57325-569458,23-Aug-22,1367.76,0,180307,Phys/Sens Placements - East,321000              Social Community Care Supplies & Services - Adult,A,2022,5
1133,Community and Housing,SEVACARE,57325-41998,23-Aug-22,550.44,0,180307,Phys/Sens Placements - East,321000              Social Community Care Supplies & Services - Adult,A,2022,5
1134,Community and Housing,SEVACARE,57325-52108,23-Aug-22,600.48,0,180307,Learning Disabilities Placemnt,321000              Social Community Care Supplies & Services - Adult,A,2022,5
1135,Community and Housing,SEVACARE,57325-505367,23-Aug-22,2301.84,0,180307,Older People Placements - East,321000              Social Community Care Supplies & Services - Adult,A,2022,5
1136,Community and Housing,SEVACARE,57325-872605,23-Aug-22,617.16,0,180307,Older People Placements - East,321000              Social Community Care Supplies & Services - Adult,A,2022,5
1137,Community and Housing,SEVACARE,57325-79481,23-Aug-22,1438.48,0,180307,Older People Placements - East,321000              Social Community Care Supplies & Services - Adult,A,2022,5
1138,Community and Housing,SEVACARE,57325-867847,23-Aug-22,1050.84,0,180307,Older People Placements - East,321000              Social Community Care Supplies & Services - Adult,A,2022,5
1139,Community and Housing,SEVACARE,57325-565513,23-Aug-22,2852.28,0,180307,Phys/Sens Placements - East,321000              Social Community Care Supplies & Services - Adult,A,2022,5
1140,Community and Housing,SEVACARE,57325-78739,23-Aug-22,667.2,0,180307,Learning Disabilities Placemnt,321000              Social Community Care Supplies & Services - Adult,A,2022,5
1141,Community and Housing,SEVACARE,57325-74975,23-Aug-22,1718.04,0,180307,Older People Placements - East,321000              Social Community Care Supplies & Services - Adult,A,2022,5
1142,Community and Housing,SEVACARE,57325-38267,23-Aug-22,1034.16,0,180307,Older People Placements - East,321000              Social Community Care Supplies & Services - Adult,A,2022,5
1143,Community and Housing,SEVACARE,57325-68278,23-Aug-22,2835.6,0,180307,Learning Disabilities Placemnt,321000              Social Community Care Supplies & Services - Adult,A,2022,5
1144,Community and Housing,SEVACARE,57325-72268,23-Aug-22,1301.04,0,180307,Learning Disabilities Placemnt,321000              Social Community Care Supplies & Services - Adult,A,2022,5
1145,Community and Housing,SEVACARE,57325-558717,23-Aug-22,1592.94,0,180307,Older People Placements - East,321000              Social Community Care Supplies & Services - Adult,A,2022,5
1146,Community and Housing,SEVACARE,57325-732707,23-Aug-22,884.04,0,180307,Older People Placements - East,321000              Social Community Care Supplies & Services - Adult,A,2022,5
1147,Community and Housing,SEVACARE,57325-654036,23-Aug-22,600.48,0,180307,Older People Placements - East,321000              Social Community Care Supplies & Services - Adult,A,2022,5
1148,Community and Housing,SEVACARE,57325-871695,23-Aug-22,950.76,0,180307,Older People Placements - East,321000              Social Community Care Supplies & Services - Adult,A,2022,5
1149,Community and Housing,SEVACARE,57325-503697,23-Aug-22,834,0,180307,Older People Placements - East,321000              Social Community Care Supplies & Services - Adult,A,2022,5
1150,Community and Housing,SEVACARE,57325-533922,23-Aug-22,9340.8,0,180307,Older People Placements - East,321000              Social Community Care Supplies & Services - Adult,A,2022,5
1151,Community and Housing,SEVACARE,57325-514140,23-Aug-22,1251,0,180307,Older People Placements - East,321000              Social Community Care Supplies & Services - Adult,A,2022,5
1152,Corporate Services,NETWORK SOLUTIONS INC,LBM230,22-Aug-22,2169.6,361.6,180382,IT-Telecomms,270000              Information Communication Technology,A,2022,5
1153,Corporate Services,RESTORE PLC,1276767,18-Aug-22,673.2,112.2,180441,Legal Shared Service,190000              Facilities & Management Services,A,2022,5
1154,"Children, Schools and Family",RESTORE PLC,1275137,18-Aug-22,981.41,163.57,180441,Head of CSC & Youth Inclusion,190000              Facilities & Management Services,A,2022,5
1155,"Children, Schools and Family",RESTORE PLC,1268602,12-Aug-22,533.5,88.92,180441,Fostering Recruit/Assessment,190000              Facilities & Management Services,A,2022,5
1156,"Children, Schools and Family",RESTORE PLC,1276765,18-Aug-22,551.28,91.88,180441,Fostering Recruit/Assessment,190000              Facilities & Management Services,A,2022,5
1157,Community and Housing,REDACTED PERSONAL DATA,864377,16-Aug-22,1320.52,0,180447,Older People Placements - East,DIRECT PAYMENTS,R,2022,5
1158,Community and Housing,REDACTED PERSONAL DATA,864423,16-Aug-22,500.96,0,180478,Phys/Sens Placements - East,DIRECT PAYMENTS,R,2022,5
1159,"Children, Schools and Family",REDACTED PERSONAL DATA,862396,05-Aug-22,514.75,0,180579,UASC LAC Under 18,321100              Social Community Care Supplies & Services - Children,R,2022,5
1160,"Children, Schools and Family",REDACTED PERSONAL DATA,864859,12-Aug-22,514.75,0,180579,UASC LAC Under 18,321100              Social Community Care Supplies & Services - Children,R,2022,5
1161,"Children, Schools and Family",REDACTED PERSONAL DATA,869286,19-Aug-22,514.75,0,180579,UASC LAC Under 18,321100              Social Community Care Supplies & Services - Children,R,2022,5
